Workbook

Sheet 0 TOC
A2: Version: 15.08 | I2: =MID(CELL("filename",A1),FIND("]",CELL("filename",A1))+1,255) -> 0 TOC
A3: Last Mods: 2018-Nov-30 19:31
A4: You MUST first load the dBase file ... | G4: Instructions
B5: [01 Parts List WKS dBase.xlsm] | H5: GreenBar | I5: Easy reading of lines | J5: Protected
D6: IMPORTANT! | H6: OchreBar | I6: Easy reading of lines | J6: Protected
H7: White normal cell | I7: Normal white cell = No Entry. Protected | J7: Protected
B8: Links | C8: Action | E8: By whom | H8: Orange | I8: Section Title/Heading-ALARMS | J8: Protected
B9: 1 Alarms | C9: Costing Sheet | E9: Alarms only | H9: Light Red | I9: Section Title/Heading-EXTINGUISHERS-CABINETS | J9: Protected
B10: 2 Wet | C10: Costing Sheet | E10: Sprinks | H10: Dark Blue | I10: Section Title/Heading-SPRINKLERS | J10: Protected
B11: 3 FEC | C11: Not yet implemented | E11: FE/FEC | H11: Pick List | I11: Select from the DropDown list when you click this cell type | J11: Protected
B12: A Heads | C12: Parts Pick List | E12: Sprinks | H12: =CHAR(242) -> ò | I12: Shows you should to do something below | J12: Protected
B13: B ELs | C13: Parts Pick List | E13: Sprinks | H13: =CHAR(252) -> ü | I13: Shows you did sommat right | J13: Protected
B14: C Pipe | C14: Parts Pick List | E14: Sprinks | H14: Yellow | I14: Take Notice | J14: Protected
B15: D Mech-T | C15: Parts Pick List | E15: Sprinks | H15: Blue Field | I15: Type numbers or text into this field | J15: UnProtected
B16: E Weldlets | C16: Parts Pick List | E16: Sprinks | H16: FALSE | I16: When Ticked turns on the calculation for that row. | J16: =IF(H16=TRUE,"Ticked","UnChecked") -> UnChecked
B17: F Hangars | C17: Parts Pick List | E17: Sprinks
B18: G Valves | C18: Parts Pick List | E18: Sprinks | H18: Colors may differ on YOUR monitor
B19: H Alms FACP | C19: Parts Pick List | E19: Alarms only | H19: IF you do not see the many [Tabs] at the bottom of this window, then …
B20: I Alms EST | C20: Parts Pick List | E20: Alarms only | I20: On the Menu bar above Click View
B21: J Alms HK | C21: Parts Pick List | E21: Alarms only | I21: Click Arrange All
B22: K Alms HW | C22: Parts Pick List | E22: Alarms only | I22: Select any option in the Dialogue that opens
B23: L Alms SK | C23: Parts Pick List | E23: Alarms only | I23: Click [Ok]
B24: M Alms VS | C24: Parts Pick List | E24: Alarms only | I24: You will see the [Tabs] below
B25: N Alms GTex | C25: Parts Pick List | E25: Alarms only | I25: or click button [Show Tabs] om the left.
B26: O Alms SS | C26: Parts Pick List | E26: Alarms only | H26: The First sheet is the ALARM COSTING sheet
B27: w Alms BLANK | C27: Parts Pick List | E27: Alarms only | I27: Alarm Div-28 use this sheet AND the [0 Alarms] Sheet
B28: x AWP | H28: The Second Sheet is the WET Suppression COSTING Sheet
B29: y Misc | C29: It's Complicated! | I29: Sprinks folk use this sheet and the sheets 1 thru 9
B30: zCalcs | C30: It's Complicated! | E30: IT | H30: The Third is still in a separate workbook (FEC)
B31: zColumns | C31: It's Complicated! | E31: IT | I31: Used by the Div-10 FE & Cabinets
B32: zWageSheet | C32: Hidden | E32: HR
H34: Work on the sub-sheets first
C35: Cheers: Arun | I35: They reference the Parts List Database.
C36: Cheers: Arun | I36: The totals on these sheets are transferred to the TOTALING sheet
H38: The workbook you are looking at now is named 00 Job Cost JobName.xlsm
H39: You should load TWO workbooks
I40: FIRST -load 01 Parts List WKS dBase.xlsm
I41: It will load minimised
I42: SECOND -load the workbook 00 Job Cost WKS JobName.xlsm
H44: The file: 01 Parts List WKS dBase.xlsm
I45: Is the so-called pricelist database which will change often
I46: as we add/change/delete pricing.
I47: IF you reach the expiry date: it will not open!
H49: Burden
H50: Per Hour
H51: Employee Pay Rate: | I51: 20 | J51: 25
H52: Plus Labor Burden *1.48: | I52: =+I51*1.48 -> 29.6 | J52: =+J51*1.48 -> 37
H53: Plus MarkUp: | I53: =+I52*1.5 -> 44.4 | J53: =+J52*1.5 -> 55.5
I54: !!!approximations!!!
H56: UpDate 2016-04-23: | I56: Changed it
H58: IN FSS Multiplier I use 1.50LB * 1.75MU = 2.625
I59: so: $20 pay = $52.5 and $25 pay = 65.625
H61: Per Hour
H62: Employee Pay Rate: | I62: 20 | J62: 25
H63: Plus Labor Burden *1.50: | I63: =+I62*1.5 -> 30 | J63: =+J62*1.5 -> 37.5
H64: Plus MarkUp: | I64: =+I63*1.75 -> 52.5 | J64: =+J63*1.75 -> 65.625
I65: !!!approximations!!!
H68: Note: NEVER tell your client your hourly rate …
H69: If you disclose your rate per hour, which you should never do,
H70: you are setting yourself up for a fight near the end of the job when they decide
H71: you are charging too much for your work.
H73: Revision: 2018-11-06 19:30

Sheet 1 Alarms
C1: To Table of Contents
C2: =MID(CELL("filename"),SEARCH("[",CELL("filename"))+1, SEARCH("]",CELL("filename"))-SEARCH("[",CELL("filename"))-6) -> 00 Job Cost WKS Ver 15.08 | E2: ALARMS
C4: =+"Div-28 " &RIGHT(CELL("filename"),LEN(CELL("filename"))-FIND("]",CELL("filename"),1)) -> Div-28 2 Wet | E4: =IF(I124>0,I124,0) -> 0 | F4: =+IF(E4>0," <-- Base price","") ->  | K4: =+I136 -> 0 | L4: Division-28 Life Safety & Alarms
D5: =IF(E5>0,"Monitoring->","") ->  | E5: =IF(+L112>0,L112,0) -> 0 | F5: =+IF(E5>0," <-- add as an Optional item to your Bid Doc required by Code","") -> 
D6: =IF(E6>0,"Bond->","") ->  | E6: =IF(I128>0,+I128,0) -> 0 | F6: =+IF(E6>0," <-- add as an Optional item to your Bid Doc if CONTRACT SPECS require a Bond","") -> 
D8: Site name | K8: ENTER DATA ONLY IN the CYAN cells
D9: & Streetname | K9: DO NOT CHANGE white CELLS
D10: & City, State, Zip | E10: Device
D11: Enter Sq Foot below LEFT & Section description below | E11: Count
D13: Basement | G13: Warranty
D14: Main | G14: YOU MUST ADD extra parts!!
D15: Up | G15: See the notes in [Devices] cell F19 below
D16: Down
D17: Garage
D18: Deck
D19: Crawl
D21: Spare | E21: =IF((SUM(E12:E20))>0,2+SUM(E12:E20)*10%,0) -> 0 | F21: Devices | M21: =IF(M136>0,M136,"") -> 
C23: =SUM(C12:C20) -> 0 | D23: Total Square Footage | E23: =SUM(E12:E20)+E21 -> 0 | F23: total Devices | L23: Burden | M23: InDirect | N23: InDirect | O23: InDirect | P23: InDirect | Q23: InDirect | R23: InDirect | S23: InDirect | T23: Material | V23: Labour
E25: Tech Rate | F25: =IF(F26=FALSE,"Davis-Bacon?","Davis Bacon") -> Davis-Bacon? | G25: Lead Rate | H25: Inspector | I25: Division Head | J25: Corp | K25: PE-NICET | L25: info | M25: Insurance & | N25: External | O25: Mob/DeMob
C26: Enter | D26: Employee Pay Rate --> | E26: 18 | F26: FALSE | G26: 25 | H26: 35 | I26: 35 | J26: 70 | K26: 150 | L26: only | M26: Bonding | N26: Subs
C27: Unit/s | D27: Labour Rate --> | E27: =IF(F26=FALSE,+PayRateTechAlm*2.625,+(((PayRateTechAlm+(PayRateTechAlm*30%))*3.1))) -> 47.25 | G27: =IF(F26=FALSE,+PayRateLeadAlm*2.625,+(((PayRateLeadAlm+(PayRateLeadAlm*30%))*3.1))) -> 65.625 | H27: =IF(F26=FALSE,+PayRateInspectAlm*2.625,+(((PayRateInspectAlm+(PayRateInspectAlm*30%))*3.1))) -> 91.875 | I27: =IF(F26=FALSE,+PayRateDivHdAlm*2.625,+(PayRateDivHdAlm*2.625)) -> 91.875 | J27: =IF(F26=FALSE,+PayRateCorpAlm*2.625,+(PayRateCorpAlm*2.625)) -> 183.75 | K27: =+PayRatePEAlm -> 150 | L27: Section | O27: Travel | Q27: Inspect
D28: =IF(F26=TRUE,"","Profit per Employee per REGULAR RATE hour->") -> Profit per Employee per REGULAR RATE hour-> | E28: =IF(F26=FALSE,+PayRateTechAlm*2.25,+(PayRateTechAlm*3))-(IF(F26=FALSE,+PayRateTechAlm*1.45,+(PayRateTechAlm*3))) -> 14.4 | G28: =IF(F26=FALSE,+PayRateLeadAlm*2.25,+(PayRateLeadAlm*3))-(IF(F26=FALSE,+PayRateLeadAlm*1.45,+(PayRateLeadAlm*3))) -> 20 | H28: =IF(F26=FALSE,+PayRateInspectAlm*2.25,+(PayRateInspectAlm*3))-(IF(F26=FALSE,+PayRateInspectAlm*1.4,+(PayRateInspectAlm*3))) -> 29.75 | K28: Don't touch | O28: Transport | P28: AWP | Q28: Tests | T28: & | U28: spare | W28: Man
C29: Below | D29: Description | E29: Rate/Cost | J29: Unit P | K29: Extension below | L29: SubTotals | O29: & Freight | Q29: Training | R29: Printing | S29: PreLims | T29: Parts | V29: Labour | W29: Hours
C31: Preliminary
D32: Bond | F32: =G128 ->  | J32: =IF(C32=TRUE,ROUNDUP(+F32,-2),0) -> 0
D33: Surety Rate: | E33: =IF($C$32=TRUE,4%,"") ->  | F33: =IF(C32=FALSE,"",I124*E33) -> 
D34: Insurance Agent Commission: | E34: =IF($C$32=TRUE,1%,"") ->  | F34: =IF(C32=FALSE,"",I124*E34) -> 
D35: Registration & Setup Fee: | E35: =IF($C$32=TRUE,1%,"") ->  | F35: =IF(C32=FALSE,"",I124*E35) -> 
E37: 4
D38: Approval | E38: Rate is Either of:
C39: FALSE | D39: Design | E39: =IF(C39=TRUE,IF(ISBLANK(F39),0.035,0),"") ->  | G39: =IF(C39=TRUE,(IF(E39=0," Per page","cents per Square Foot")),"") ->  | J39: =IF(C39=TRUE,(IF(F39>0,F39,E39)),"") ->  | K39: =IF(C39=TRUE,IF(F39>0,F39*H39,+C23*E39),0) -> 0 | S39: =IF(C39>0,K39,"") -> 0
C40: FALSE | D40: Battery Calcs | E40: =IF(C40=TRUE,IF(ISBLANK(F40),0.035,0),"") ->  | G40: =IF(C40=TRUE,(IF(E40=0," Per page","cents per Square Foot")),"") ->  | J40: =IF(C40=TRUE,(IF(F40>0,F40,E40)),"") ->  | K40: =IF(C40=TRUE,IF(F40>0,F40*H40,+C24*E40),0) -> 0 | S40: =IF(C40>0,K40,"") -> 0
D41: Submit | E41: =IF(F41>0,"",250) -> 250 | J41: =IF(C41>0,(IF(F41>0,F41,E41)),"") ->  | K41: =IF(C41>0,IF(F41>0,C41*F41,+C41*E41),0) -> 0 | S41: =IF(C41>0,K41,"") -> 
D42: Permit | E42: =IF(F42>0,"",450+15) -> 465 | K42: =IF(C42>0,IF(F42>0,C42*F42,+C42*E42),0) -> 0 | S42: =IF(C42>0,K42,"") -> 
C43: FALSE | D43: 3rd Party Review | E43: =IF(F43>0,"",485) -> 485 | J43: =IF(C43=TRUE,(IF(F43>0,F43,E43)),"") ->  | K43: =IF(C43>0,IF(F43>0,C43*F43,+C43*E43),0) -> 0 | S43: =IF(K43>0,K43,"") -> 
C44: FALSE | D44: Drawings and Printing (Initial) | E44: =IF(F44>0,"",150) -> 150 | J44: =IF(C44=TRUE,(IF(F44>0,F44,E44)),"") ->  | K44: =IF(C44>0,IF(F44>0,C44*F44,+C44*E44),0) -> 0 | R44: =IF(C44=TRUE,K44,"") -> 
C45: =IF(C23>1200,1,0) -> 0 | D45: Lien Info Recording | E45: 30 | F45: =IF(C45<1,0,E45*2) -> 0 | K45: =+J45 ->  | L45: =SUM(K37:K46) -> 0 | S45: =IF(C45=1,K45,"") -> 
C47: Movement
C48: FALSE | D48: Mobilization | E48: 150 | J48: =IF(C48=TRUE,IF(F48>0,(F48)+IF(OR(C51>0,C52>0,C53>0,C54>0,C55>0),G51+G52+G53+G54+G55,0),(E48)+IF(OR(C51>0,C52>0,C53>0,C54>0,C55>0),G51+G52+G53+G54+G55,0)),(IF(OR(C51>0,C52>0,C53>0,C54>0,C55>0),G51+G52+G53+G54+G55,0))) -> 0 | K48: =+J48 -> 0 | O48: =IF(K48>0,+K48,"") -> 
G49: One Way | H49: Choose | I49: How Many
D50: AWP/Rentals | E50: Rate | G50: Drop off or PickUp | H50: Period | I50: Periods | K50: with tax
B51: 1 | D51: Compressor Cage 32 CFM truck deck | E51: =IF(ISBLANK(D51),"",IF(H51="Day",VLOOKUP(D51,[1]!equipRent,2),(IF(H51="Week",VLOOKUP(D51,[1]!equipRent,3),(VLOOKUP(D51,[1]!equipRent,4)))))) -> 500 | G51: =IF(C51>0,VLOOKUP(D51,[1]!equipRent,5,)*C51,0) -> 0 | H51: Month | J51: =IF(C51>0,(IF(I51>0,C51*I51*E51,"")),"") ->  | K51: =IF(J51="","",+J51+(J51*7%)) ->  | P51: =IF(K51>0,K51,"") -> 
D52: 39 ft Scissor Lift Haulotte 3947 47" wide | E52: =IF(ISBLANK(D52),"",IF(H52="Day",VLOOKUP(D52,[1]!equipRent,2),(IF(H52="Week",VLOOKUP(D52,[1]!equipRent,3),(VLOOKUP(D52,[1]!equipRent,4)))))) -> 700 | G52: =IF(C52>0,VLOOKUP(D52,[1]!equipRent,5,)*C52,0) -> 0 | H52: Week | J52: =IF(C52>0,(IF(I52>0,C52*I52*E52,"")),"") ->  | K52: =IF(J52="","",+J52+(J52*7%)) ->  | P52: =IF(K52>0,K52,"") -> 
D53: 40 ft Scissor Lift JLG4069LE 69" Wide | E53: =IF(ISBLANK(D53),"",IF(H53="Day",VLOOKUP(D53,[1]!equipRent,2),(IF(H53="Week",VLOOKUP(D53,[1]!equipRent,3),(VLOOKUP(D53,[1]!equipRent,4)))))) -> 370 | G53: =IF(C53>0,VLOOKUP(D53,[1]!equipRent,5,)*C53,0) -> 0 | H53: Day | J53: =IF(C53>0,(IF(I53>0,C53*I53*E53,"")),"") ->  | K53: =IF(J53="","",+J53+(J53*7%)) ->  | P53: =IF(K53>0,K53,"") -> 
D54: 19 ft Scissor Lift FSS1930 30 ins wide | E54: =IF(ISBLANK(D54),"",IF(H54="Day",VLOOKUP(D54,[1]!equipRent,2),(IF(H54="Week",VLOOKUP(D54,[1]!equipRent,3),(VLOOKUP(D54,[1]!equipRent,4)))))) -> 100 | G54: =IF(C54>0,VLOOKUP(D54,[1]!equipRent,5,)*C54,0) -> 0 | H54: Day | J54: =IF(C54>0,(IF(I54>0,C54*I54*E54,"")),"") ->  | K54: =IF(J54="","",+J54+(J54*7%)) ->  | P54: =IF(K54>0,K54,"") -> 
H55: Week | J55: =IF(C55>0,(IF(I55>0,C55*I55*E55,"")),"") ->  | K55: =IF(J55="","",+J55+(J55*7%)) ->  | L55: =SUM(K46:K56) -> 0 | P55: =IF(K55>0,K55,"") -> 
E57: Rate | F57: Hour/s | H57: Day/s | I57: Travel Hours
D58: Travel & Transport (150 per 5 day week) | E58: =((8+1+2+1+3)) -> 15 | G58: hours each day for | I58: =IF(ISBLANK(H58),C58*F58,C58*F58*H58) -> 0 | J58: =IF(C58>0,E58*I58,0) -> 0 | K58: =+J58 -> 0 | O58: =IF(K58>0,+K58,"") ->  | W58: =IF(I58=0,"",I58) -> 
D59: Per Diem | E59: 35 | I59: =IF(ISBLANK(H59),C59*F59,C59*F59*H59) -> 0 | J59: =IF(C59>0,C59*E59*H59,0) -> 0 | K59: 0
D60: Accommodation | E60: 65 | J60: =IF(C60>0,C60*E60*H60,0) -> 0 | K60: 0
J61: =IF(C61>0,C61*E61*H61,0) -> 0 | K61: 0
D62: Fuel | E62: 100 | J62: =IF(C62>0,IF(F62>0,F62,E62),0) -> 0 | K62: 0
D63: Freight | E63: 150 | G63: incl. Removal of old work | J63: =IF(C63>0,IF(F63>0,C63*F63,C63*E63),0) -> 0 | K63: 0
J64: =IF(C64>0,C64*E64,0) -> 0 | K64: 0 | L64: =SUM(K56:K65) -> 0
C66: Parts & Materials
C67: FALSE | D67: FACP, Parts & Accessories | E67: =+'H Alms FACP'!O8 -> 0 | J67: =IF(C67=TRUE,IF(F67>0,F67,E67),"") ->  | K67: =IF(C67=TRUE,+C67*J67,"") ->  | T67: =+IF(K67>0,K67,"") -> 
C68: FALSE | D68: EST | E68: =+'I Alms EST'!O7 -> 0
C69: FALSE | D69: Gentex | E69: =+'N Alms GTex'!O7 -> 0 | J69: =IF(C69=TRUE,IF(F69>0,F69,E69),"") ->  | K69: =IF(C69=TRUE,+C69*J69,"") -> 
C70: FALSE | D70: Hochiki | E70: =+'J Alms HK'!O7 -> 0
C71: FALSE | D71: HoneyWell | E71: =+'K Alms HW'!O7 -> 0
C72: FALSE | D72: SilentKnight | E72: =+'L Alms SK'!O7 -> 0
C73: FALSE | D73: SystemSensor | E73: =+'I Alms EST'!O7 -> 0
C74: FALSE | D74: Vigilant | E74: =+'M Alms VS'!O7 -> 0
C75: FALSE | D75: Misc. items: tools etc. Default minimum requirement | E75: =+'H Alms FACP'!O7 -> 236.62674 | J75: =IF(C75=TRUE,IF(F75>0,F75,E75),"") ->  | K75: =IF(C75=TRUE,+C75*J75,"") -> 
C76: FALSE | D76: Parts & Accessories | E76: =+'H Alms FACP'!O9 -> 412.8705 | J76: =IF(C76=TRUE,IF(F76>0,F76,E76),"") ->  | K76: =IF(C76=TRUE,+C76*J76,"") ->  | T76: =+IF(K76>0,K76,"") -> 
D77: Include: SA-ETH-VS-1/2 ethernet adapter | E77: 300 | J77: =IF(C77>0,IF(F77>0,F77,E77),"") ->  | K77: =IF(C77>0,+C77*J77,"") -> 
L80: =SUM(K65:K81) -> 0
C82: Labour | E82: Rate | F82: Hour/s | H82: Day/s | I82: huMAN Hours
B83: 1 | D83: <- How many LEAD Techs @ regular labour rate of: | E83: =+IF(C83>0,LaborRateLeadAlm,"") ->  | G83: hours over | I83: =IF(ISBLANK(H83),C83*F83,C83*F83*H83) -> 0 | J83: =IF(C83>0,E83*I83,0) -> 0 | K83: =+J83 -> 0 | V83: =+IF(K83>0,K83,"") ->  | W83: =+IF(I83>0,I83,"") -> 
D84: <- How many LEAD Techs @ OT labour rate of: | E84: =+IF(C84>0,LaborRateLeadAlm+(LaborRateLeadAlm/2),"") ->  | I84: 0 | J84: 0 | K84: 0
D85: <- How many Techs @ regular labour rate of: | E85: =IF(C85>0,+LaborRateTechAlm,"") ->  | G85: hours over | I85: 0 | J85: 0 | K85: 0
D86: <- How many Techs @ OT labour rate of:: | E86: =IF(C86>0,+LaborRateTechAlm+(LaborRateTechAlm/2),"") ->  | G86: hours over | I86: 0 | J86: 0 | K86: 0
C87: FALSE | D87: El Presidente | E87: =+LaborRateCORPAlm -> 183.75 | G87: hours over | I87: 0 | J87: 0 | K87: 0
D88: Presidents Men | E88: =+IF(C88>0,LaborRateTechAlm-10,"") ->  | I88: 0 | J88: 0 | K88: 0
D89: Employee BkG & Substance | E89: =+LaborRateTechAlm+30 -> 77.25 | F89: 4 | I89: =IF(H89<1,C89*F89,C89*F89*H89) -> 0 | J89: 0 | K89: 0 | L89: =SUM(K81:K90) -> 0
C91: Finals | E91: Rate | F91: Hour/s | H91: Day/s | I91: Total Hours
C92: FALSE | D92: Testing, Inspections & Trip Test | E92: =LaborRateInspectAlm -> 91.875 | G92: hours over | I92: =IF(C92=TRUE,(IF(ISBLANK(H92),F92,F92*H92)),"") ->  | J92: =IF(AND(C92=TRUE,F92>0),(E92*I92),"") ->  | K92: =+J92 ->  | Q92: =+K92 ->  | W92: =+I92 -> 
C94: =IF(C48=TRUE,1,0) -> 0 | D94: De-Mobilisation | E94: =IF(C94>0,IF(F48>0,F48,E48),0) -> 0 | G94: =IF(C94>0,SUM(G50:G56),0) -> 0 | J94: =+J48 -> 0 | K94: =+J94 -> 0 | O94: =+IF(K94>0,K94,"") -> 
C96: FALSE | D96: Printing Drawings, As-Builts, Manuals, & Tags | E96: 150 | J96: =IF(C96=TRUE,+E96*C96,"") ->  | K96: =+J96 ->  | R96: =IF(K96>0,+K96,"") -> 
C98: FALSE | D98: Panel Programming | E98: =+LaborRateDivHdAlm -> 91.875 | I98: =IF(C98=TRUE,F98,"") ->  | J98: =IF(C98=TRUE,E98*I98,"") ->  | K98: =IF(C98=TRUE,J98,"") ->  | Q98: =+IF(K98>0,K98,"") ->  | W98: =+IF(I98>0,I98,"") -> 
C99: FALSE | D99: Training | E99: =+LaborRateInspectAlm -> 91.875 | I99: =IF(C99=TRUE,IF(ISBLANK(H99),F99,F99*H99),"") ->  | J99: =IF(C99=TRUE,E99*I99,"") ->  | K99: =IF(C99=TRUE,J99,"") ->  | L99: =SUM(K91:K99) -> 0 | Q99: =+IF(K99>0,K99,"") ->  | W99: =+IF(I99>0,I99,"") -> 
C101: External Subs | E101: Rate is either | F101: or | G101: How Many? | I101: Total Hours
C102: FALSE | D102: NICET Field checks | E102: =+LaborRatePEAlm -> 150 | G102: 2 | J102: =IF(C102=TRUE,IF(ISTEXT(E102),IF(F102>0,F102,""),(IF(F102>0,F102,E102))),"") ->  | K102: =IF(ISTEXT(J102),"",G102*J102) ->  | N102: =+K102 -> 
D103: 01 Electrician KP Electric Sandy | E103: =IF(OR(C103<0,D103=""),"",VLOOKUP(D103,[1]!subsEtAl,3)) -> 82.5 | J103: =IF(C103=FALSE,"",IF(ISNUMBER(F103),F103,IF(ISNUMBER(E103),E103,""))) ->  | K103: =IF(ISTEXT(J103),"",G103*J103) ->  | N103: =+K103 -> 
D104: 04 EST Spectrum Brock Sere | E104: =IF(OR(C104<0,D104=""),"",VLOOKUP(D104,[1]!subsEtAl,3)) -> enter $-> | K104: =IF(ISTEXT(J104),"",G104*J104) -> 
D105: 09 b Compliance Reporting Fee American Fork | E105: =IF(OR(C105<0,D105=""),"",VLOOKUP(D105,[1]!subsEtAl,3)) -> 55 | K105: =IF(ISTEXT(J105),"",G105*J105) ->  | L105: =SUM(K101:K105) -> 0
D107: Monitoring Contract
D108: NOT part Of the YELLOW dollar TOTAL AMOUNT
D109: A DSC24 Wireless per panel Annual | E109: =IF(OR(C109<0,D109=""),"",VLOOKUP(D109,[1]!AlmMonitorEtAl,3)) -> 720 | J109: =IF(C109>0,C109*E109,0) -> 0 | K109: =+J109 -> 0
D110: E DSC24 Wireless per panel per month | E110: =IF(OR(C110<0,D110=""),"",VLOOKUP(D110,[1]!AlmMonitorEtAl,3)) -> 65 | J110: =IF(C110>0,C110*E110,0) -> 0 | K110: =+J110 -> 0
J111: =IF(C111>0,C111*F111,0) -> 0 | K111: =+J111 -> 0
L112: =SUM(K107:K113) -> 0
C116: Totals
C117: =IF(C118=TRUE,CHAR(252),CHAR(242)) -> ò | D117: =IF(C118=TRUE,"MarkUp rate is","No markup set yet?") -> No markup set yet? | E117: =IF(C118=TRUE,"Either","") ->  | F117: =IF(C118=TRUE,"OR","") ->  | H117: Total of Parts etc w/out labour | I117: =SUM(K37:K81)+SUM(K94:K97)+SUM(K103:K106) -> 0
C118: FALSE | E118: 0.3 | I118: =IF(C118=TRUE,IF(F118>0,F118*I117,+E118*I117),0) -> 0
C119: =IF(C120=TRUE,CHAR(252),CHAR(242)) -> ò | H119: Labour only | I119: =SUM(K81:K92)+SUM(K97:K102) -> 0
C120: FALSE | D120: =IF(C120=FALSE,"No Project Management set yet?","Project Management Charge is:") -> No Project Management set yet? | E120: 0.04 | H120: =IF(C120=TRUE,"of Totaled Project amount of:","") ->  | I120: =SUM(I117:I119) -> 0 | J120: =IF(C120=TRUE,IF(F120>0,F120*I120,+E120*I120),0) -> 0 | V120: =IF(J120>0,J120,"") -> 
I121: =+J120 -> 0
H122: Total: | I122: =+I120+I121 -> 0
H124: Bid Price: | I124: =+ROUNDUP((I120+I121),-2) -> 0
C127: Bond | E127: Rate | G127: Extension
C128: =IF(C32=TRUE,1,0) -> 0 | D128: Bond | G128: =IF(C128=1,+I124*SUM(E129:E131),"") ->  | I128: =IF(C128>0,ROUNDUP(+G128,-2),0) -> 0 | M128: =IF(C128=1,I128,"") -> 
D129: =IF(C128>0,+D33,"") ->  | E129: =IF($C$128>0,+E33,"") ->  | G129: =IF(C128=0,"",I122*E129) -> 
D130: =IF(C128>0,+D34,"") ->  | E130: =IF($C$128>0,+E34,"") ->  | G130: =IF(C128=0,"",I122*E130) -> 
D131: =IF(C128>0,+D35,"") ->  | E131: =IF($C$128>0,+E35,"") ->  | G131: =IF(C128=0,"",I122*E131) -> 
H136: Total: | I136: =+SUM(I123:I131) -> 0 | L136: =SUM(L65:L81) -> 0 | M136: =SUM(M31:M135) -> 0 | N136: 0 | O136: 0 | P136: 0 | Q136: 0 | R136: 0 | S136: 0 | T136: 0 | U136: 0 | V136: 0 | W136: 0 | Y136: =SUM(M136:V136) -> 0
L137: =+IF((ISBLANK(L25)),"",L25) -> info | M137: Insurance & | N137: External | O137: Mob/DeMob | T137: =+IF((ISBLANK(T23)),"",T23) -> Material | U137: =+IF((ISBLANK(U25)),"",U25) ->  | Y137: No markup
L138: only | M138: Bonding | N138: Subs | T138: =+IF((ISBLANK(T26)),"",T26) ->  | Y138: No PM
L139: =+IF((ISBLANK(L27)),"",L27) -> Section | M139: =+IF((ISBLANK(M27)),"",M27) ->  | O139: =+IF((ISBLANK(O27)),"",O27) -> Travel | Q139: Inspect | T139: =+IF((ISBLANK(T27)),"",T27) ->  | U139: =+IF((ISBLANK(U27)),"",U27) -> 
L140: =+IF((ISBLANK(L28)),"",L28) ->  | M140: =+IF((ISBLANK(M28)),"",M28) ->  | N140: =+IF((ISBLANK(N27)),"",N27) ->  | O140: Transport | P140: AWP | Q140: Tests | S140: =+IF((ISBLANK(S28)),"",S28) ->  | T140: =+IF((ISBLANK(T28)),"",T28) -> & | U140: =+IF((ISBLANK(U28)),"",U28) -> spare | V140: =+IF((ISBLANK(V27)),"",V27) ->  | W140: =+IF((ISBLANK(W28)),"",W28) -> Man
C141: Rev: 2018-11-30 20:00 | E141: =MID(CELL("filename",A2),FIND("[",CELL("filename",A2))+1,FIND("]",CELL("filename",A2))-FIND("[",CELL("filename",A2))-1) -> 00 Job Cost WKS Ver 15.08.xlsm | K141: =SUM(K37:K140) -> 0 | L141: =+IF((ISBLANK(L29)),"",L29) -> SubTotals | O141: & Freight | Q141: Training | R141: Printing | S141: PreLims | T141: =+IF((ISBLANK(T29)),"",T29) -> Parts | U141: =+IF((ISBLANK(U29)),"",U29) ->  | W141: =+IF((ISBLANK(W29)),"",W29) -> Hours
E142: =UPPER(LEFT(E141)) & LOWER(RIGHT(E141, LEN(E141)-1)) -> 00 job cost wks ver 15.08.xlsm | R142: Total Burden: | S142: =SUM(M136:S136) -> 0 | T142: Total Material: | U142: =SUM(T136:U136) -> 0 | V142: Labor Cost | W142: =+V136 -> 0
D143: Ref:
D144: http://firealarmresources.com/vigilant-vs1-vs2-technical-reference-manual/

Sheet 2 Wet
C1: To Table of Contents
C2: =+'1 Alarms'!C2 -> 00 Job Cost WKS Ver 15.08 | E2: SPRINKS
C4: =+"Div-21 "&RIGHT(CELL("filename"),LEN(CELL("filename"))-FIND("]",CELL("filename"),1)) &" Suppression" -> Div-21 2 Wet Suppression | E4: =+IF(I190>0,I190,0) -> 0 | F4: =+IF(E4>0," <-- Base price","") ->  | K4: =+I190 -> 0 | L4: Division-21 Wet Suppression
D5: =IF(E5>0,"Monitoring->","") ->  | E5: =+IF(K169>0,K169,0) -> 0 | F5: =+IF(E5>0,"<-- add as an Optional item to your Bid Doc required by Code","") -> 
D6: =IF(E6>0,"Bond->","") ->  | E6: =+I184 -> 0 | F6: =+IF(E6>0," <-- add as an Optional item to your Bid Doc if CONTRACT SPECS require a Bond","") -> 
D8: =+'1 Alarms'!D8 -> Site name | E8: READ these COMMENTS | I8: ENTER DATA ONLY | J8: in the CYAN | K8: cells | L8: Notes
D9: =+'1 Alarms'!D9 -> & Streetname | K9: DO NOT CHANGE white CELLS
D10: =+'1 Alarms'!D10 -> & City, State, Zip
D11: =+'1 Alarms'!D11 -> Enter Sq Foot below LEFT & Section description below | E11: Head Count | F11: Color | G11: Choose Type | J11: To give a rate of:
C13: =IF(+'1 Alarms'!C13>0,+'1 Alarms'!C13,"") ->  | D13: =IF(C13="","'<-in this form, Enter Data in Blue Fields ONLY->'",+'1 Alarms'!D13) -> '<-in this form, Enter Data in Blue Fields ONLY->' | G13: Head Ext Brass 1.0 inch long | J13: =IF((SUM(E12:E20))>0,+J190/E21,"") ->  | K13: =IF(J13=""," no heads!"," per head") -> no heads!
C14: =IF(+'1 Alarms'!C14>0,+'1 Alarms'!C14,"") ->  | D14: =IF(C14="","'<-in this form, Enter Data in Blue Fields ONLY->'",+'1 Alarms'!D14) -> '<-in this form, Enter Data in Blue Fields ONLY->' | G14: Head Ext Brass 1.0 inch long | J14: =IF(C23>0,I190/C23,"") ->  | K14: per SF
C15: =IF(+'1 Alarms'!C15>0,+'1 Alarms'!C15,"") ->  | D15: =IF(C15="","'<-in this form, Enter Data in Blue Fields ONLY->'",+'1 Alarms'!D15) -> '<-in this form, Enter Data in Blue Fields ONLY->' | G15: Head Ext Brass 1.0 inch long | J15: For Warranty ..
C16: =IF(+'1 Alarms'!C16>0,+'1 Alarms'!C16,"") ->  | D16: =IF(C16="","'<-in this form, Enter Data in Blue Fields ONLY->'",+'1 Alarms'!D16) -> '<-in this form, Enter Data in Blue Fields ONLY->' | G16: Head Ext Brass 1.0 inch long | J16: YOU MUST ADD extra parts!!
C17: =IF(+'1 Alarms'!C17>0,+'1 Alarms'!C17,"") ->  | D17: =IF(C17="","'<-in this form, Enter Data in Blue Fields ONLY->'",+'1 Alarms'!D17) -> '<-in this form, Enter Data in Blue Fields ONLY->' | G17: Head Ext Brass 1.0 inch long | J17: ADD extra parts!!
C18: =IF(+'1 Alarms'!C18>0,+'1 Alarms'!C18,"") ->  | D18: =IF(C18="","'<-in this form, Enter Data in Blue Fields ONLY->'",+'1 Alarms'!D18) -> '<-in this form, Enter Data in Blue Fields ONLY->' | G18: Head Ext Brass 1.0 inch long | J18: See the notes in [Heads] cell F20 below
C19: =IF(+'1 Alarms'!C19>0,+'1 Alarms'!C19,"") ->  | D19: =IF(C19="","'<-in this form, Enter Data in Blue Fields ONLY->'",+'1 Alarms'!D19) -> '<-in this form, Enter Data in Blue Fields ONLY->' | G19: Head Ext Brass 1.0 inch long
D21: Spare | E21: =IF((SUM(E12:E20))>0,SUM(E12:E20)*10%,0) -> 0 | F21: heads | M21: =+M190 -> 0 | N21: 0 | O21: 0 | P21: 0 | Q21: 0 | R21: 0 | S21: 0
C23: =SUM(C12:C20) -> 0 | D23: Total Square Footage | E23: =SUM(E12:E20)+E21 -> 0 | F23: total heads | L23: Burden | M23: InDirect | N23: InDirect | O23: InDirect | P23: InDirect | Q23: InDirect | R23: InDirect | S23: InDirect | T23: Material | V23: Labour
E25: Tech Rate | F25: =IF(F26=FALSE,"Davis-Bacon?","Davis Bacon") -> Davis-Bacon? | G25: Lead Rate | H25: Inspector | I25: Corp | J25: PE-NICET | L25: info | M25: Insurance & | N25: External | O25: Mob/DeMob
C26: Enter | D26: Employee Pay Rate --> | E26: 22 | F26: FALSE | G26: 25 | H26: 30 | I26: 70 | J26: 165 | L26: only | M26: Bonding | N26: Subs | O26: Travel | Q26: Inspect
C27: Unit/s | D27: Labour Rate --> | E27: =IF(F26=FALSE,+PayRateTechWet*2.625,+(((PayRateTechWet+(PayRateTechWet*30%))*3.1))) -> 57.75 | G27: =IF(F26=FALSE,+PayRateLeadWet*2.625,+(((PayRateLeadWet+(PayRateLeadWet*30%))*3.1))) -> 65.625 | H27: =IF(F26=FALSE,+PayRateInspectWet*2.625,+(((PayRateInspectWet+(PayRateInspectWet*30%))*3.1))) -> 78.75 | I27: =IF(G26=FALSE,+PayRateCorpWet*2.625,+(PayRateCorpWet*2.625)) -> 183.75 | J27: =+PayRatePEWet -> 165 | L27: Section | O27: Transport | P27: AWP | Q27: Tests | T27: & | U27: spare | W27: Man
D28: =IF(F26=TRUE,"","Profit per Employee per REGULAR RATE hour->") -> Profit per Employee per REGULAR RATE hour-> | E28: =IF(F26=FALSE,+PayRateTechWet*2.25,+(PayRateTechWet*3))-(IF(F26=FALSE,+PayRateTechWet*1.45,+(PayRateTechWet*3))) -> 17.6 | G28: =IF(F26=FALSE,+PayRateLeadWet*2.25,+(PayRateLeadWet*3))-(IF(F26=FALSE,+PayRateLeadWet*1.45,+(PayRateLeadWet*3))) -> 20 | H28: =IF(F26=FALSE,+PayRateInspectWet*2.25,+(PayRateInspectWet*3))-(IF(F26=FALSE,+PayRateInspectWet*1.4,+(PayRateInspectWet*3))) -> 25.5 | I28: =IF(G26=FALSE,+PayRateInspectWet*2.25,+(PayRateInspectWet*3))-(IF(G26=FALSE,+PayRateInspectWet*1.4,+(PayRateInspectWet*3))) -> 0 | K28: Don't touch
C29: Below | D29: Description | E29: Rate/Cost | J29: Unit P | K29: Extension | L29: SubTotals | O29: & Freight | Q29: Training | R29: Printing | S29: PreLims | T29: Parts | V29: Labour | W29: Hours
C31: Preliminary
C32: FALSE | D32: Bond | F32: =IF(C$32=TRUE,F184,"") ->  | J32: =IF(C32=TRUE,ROUNDUP(+F32,-2),0) -> 0 | S32: =IF(K32>0,K32,"") -> 
D33: Surety Rate: | E33: =IF($C$32=TRUE,4%,"") ->  | F33: =IF(C$32=FALSE,"",F185) -> 
D34: Insurance Agent Commission: | E34: =IF($C$32=TRUE,1%,"") ->  | F34: =IF(C$32=FALSE,"",F186) -> 
D35: Registration & Setup Fee: | E35: =IF($C$32=TRUE,1%,"") ->  | F35: =IF(C$32=FALSE,"",F187) -> 
D38: Approval | E38: Rate is Either of: | S38: =IF(K38>0,K38,"") -> 
C39: TRUE | D39: Design | E39: =IF(C39=TRUE,IF(ISBLANK(F39),0.035,0),"") -> 0.035 | G39: =IF(C39=TRUE,(IF(E39=0," Per page"," cents per Square Foot")),"") -> cents per Square Foot | J39: =IF(C39=TRUE,(IF(F39>0,F39,E39)),"") -> 0.035 | K39: =IF(C39=TRUE,IF(F39>0,F39*H39,+C23*E39),0) -> 0
C40: TRUE | D40: Hydraulic Calcs | E40: =IF(C40=TRUE,IF(ISBLANK(F40),0.035,0),"") -> 0.035 | G40: =IF(C40=TRUE,(IF(E40=0," Per page"," cents per Square Foot")),"") -> cents per Square Foot | J40: =IF(C40=TRUE,(IF(F40>0,F40,E40)),"") -> 0.035 | K40: =IF(C40=TRUE,IF(F40>0,F40*H40,+C24*E40),0) -> 0
D41: Submit | E41: =IF(F41>0,"",400) -> 400 | J41: =IF(C41>0,(IF(F41>0,F41,E41)),"") ->  | K41: =IF(C41>0,IF(F41>0,C41*F41,+C41*E41),0) -> 0
D42: Permit | E42: =IF(F42>0,"",400+15) -> 415 | J42: =IF(C42>0,(IF(F42>0,F42,E42)),"") ->  | K42: =IF(C42>0,IF(F42>0,C42*F42,+C42*E42),0) -> 0
C43: FALSE | D43: 3rd Party Review | E43: =IF(F43>0,"",850) -> 850 | J43: =IF(C43=TRUE,(IF(F43>0,F43,E43)),"") ->  | K43: =IF(C43=TRUE,IF(F43>0,F43,E43),0) -> 0
C44: FALSE | D44: Drawings and Printing (Initial) | E44: =IF(F44>0,"",150) -> 150 | J44: =IF(C44=TRUE,(IF(F44>0,F44,E44)),"") ->  | K44: =IF(C44=TRUE,IF(F44>0,F44,+E44),0) -> 0 | R44: =IF(C44=TRUE,K44,"") -> 
C45: =IF(C23>1200,1,0) -> 0 | D45: Lien Info Recording: | E45: 30 | F45: =IF(C45<1,0,E45*2) -> 0 | J45: =+F45 -> 0 | K45: =+J45 -> 0 | L45: =SUM(K37:K46) -> 0 | S45: =IF(K45>0,K45,"") -> 
C47: Movement
C48: FALSE | D48: Mobilization | E48: 250 | J48: =IF(C48=TRUE,IF(F48>0,(F48)+IF(OR(C51=TRUE),G51,0),(E48)+IF(OR(C51=TRUE),G51,0)),(IF(OR(C51=TRUE),G51,0))) -> 0 | K48: =+J48 -> 0 | O48: =+K48 -> 0
G49: Drop off
D50: AWP/Rentals | G50: Pick Up
C51: FALSE | D51: =IF(C51>0,'x AWP'!D25 &" " & 'x AWP'!E25,"") -> 0 AWP | E51: =IF(C51=TRUE,'x AWP'!O7,"") ->  | G51: =IF(C51=TRUE,'x AWP'!G7,"") ->  | K51: =+E51 ->  | P51: =+K51 -> 
J53: =IF(C53>0,E53,"") ->  | K53: =+J53 ->  | P53: =+K53 -> 
L54: =SUM(K46:K55) -> 0
E56: Rate | F56: Hour/s | H56: Day/s | I56: Travel Hours
D57: Travel & Transport (150 per 5 day week) | E57: =((8+1+2+1+3)) -> 15 | G57: hours each day for | I57: =IF(ISBLANK(H57),C57*F57,C57*F57*H57) -> 0 | J57: =IF(C57>0,E57*I57,0) -> 0 | K57: =+J57 -> 0 | O57: =+K57 -> 0 | W57: =+I57 -> 0
D58: Per Diem | E58: 40 | I58: =IF(ISBLANK(H58),C58*F58,C58*F58*H58) -> 0 | J58: =IF(C58>0,C58*E58*H58,0) -> 0 | K58: =+J58 -> 0 | O58: 0
D59: Accommodation | E59: 65 | J59: =IF(C59>0,C59*E59*H59,0) -> 0 | K59: =+J59 -> 0 | O59: 0
O60: 0
D61: Fuel | E61: 100 | J61: =IF(C61>0,IF(F61>0,C61*F61,C61*E61),0) -> 0 | K61: =+J61 -> 0 | O61: 0
D62: Freight | E62: 150 | G62: incl. Removal of old pipework delivery fees. Add Knox-$38 | J62: =IF(F62>0,(C62*F62)+IF(OR(C72>0),G72,0),(C62*E62)+IF(OR(C72>0),G72,0)) -> 0 | K62: =+J62 -> 0 | O62: 0
J63: =IF(C63>0,C63*E63,0) -> 0 | K63: =+J63 -> 0 | L63: =SUM(K56:K64) -> 0 | O63: 0
C65: Parts & Materials
D66: Riser Assemblies
D67: -WET | E67: 1 to 2 to 2.5" | F67: 3" | G67: 4" | H67: 6" | I67: Select Diameter
D68: Riser Manifold: Valves, Flow Switch & gauges | E68: =357+2 -> 359 | F68: =380+15 -> 395 | G68: =765+30 -> 795 | H68: =865+30 -> 895 | J68: =IF(ISBLANK(I68),"",IF(OR(I68=0),"",IF(I68=2,E68,(IF(I68=3,F68,(IF(I68=4,G68,(IF(I68=6,H68,0))))))))) ->  | K68: =IF(ISBLANK(C68),"",IF(OR(I68=0),"",J68*C68)) ->  | T68: =+K68 -> 
D69: -BFP
D70: BFP Ames C200 | E70: =IF(C70>0,VLOOKUP(D70,[1]!wetBFPetAl,3),"") ->  | F70: =IF(C70>0,VLOOKUP(D70,[1]!wetBFPetAl,4),"") ->  | G70: =IF(C70>0,VLOOKUP(D70,[1]!wetBFPetAl,5),"") ->  | H70: =IF(C70>0,VLOOKUP(D70,[1]!wetBFPetAl,6),"") ->  | J70: =IF(ISBLANK(I70),"",IF(OR(I70=0),"",IF(I70=2,E70,(IF(I70=3,F70,(IF(I70=4,G70,(IF(I70=6,H70,0))))))))) ->  | K70: =IF(ISBLANK(C70),"",IF(OR(I70=0),"",J70*C70)) ->  | T70: =+K70 -> 
C71: FALSE | D71: FDC & Main Drain & Check valve | E71: =585+210+100+99 -> 994 | J71: =IF(C71=TRUE,IF(F71>0,F71,E71),"") ->  | K71: =+J71 ->  | T71: =+K71 -> 
C72: =IF(C71=TRUE,2,0) -> 0 | D72: FDC Knox Locking Caps | E72: 195 | G72: =IF(C72>0,C72*38,0) -> 0 | J72: =IF(C72>0,IF(F72>0,C72*F72,C72*E72),"") ->  | K72: =+J72 -> 
C73: =IF(RiserWetSw>0,1,0) -> 0 | D73: Riser Room Door Signage | E73: 37 | J73: =IF(C73>0,IF(F73>0,C73*F73,C73*E73),"") ->  | K73: =+J73 -> 
D74: Knox Box $1,200 | J74: =IF(C74>0,IF(F74>0,C74*F74,C74*E74),"") ->  | K74: =+J74 -> 
J75: =IF(C75>0,E75*C75,"") ->  | K75: =+J75 -> 
D76: Branch line Drain-Collector Manifolds
D77: also Drum Drips | E77: 250 | J77: =IF(C77>0,IF(F77>0,F77*C77,E77*C77),"") ->  | K77: =+J77 ->  | T77: =+K77 -> 
D78: -DRY | E78: 3" | F78: 4" | G78: 6" | H78: Select Diameter
D79: Dry Valve, its controls & gauges | E79: 3100 | F79: 3185 | G79: 3685 | J79: =IF(ISBLANK(H79),"",IF(OR(H79=0),"",IF(H79=3,E79,(IF(H79=4,F79,(IF(H79=6,G79,0))))))) ->  | K79: =IF(ISBLANK(H79),"",IF(OR(H79=0),"",(J79*C79)+((J79*C79)*UTsalesTax))) ->  | T79: =+K79 -> 
D80: Riser Trim Device | E80: =390+20 -> 410 | J80: =IF(C80>0,E80,"") ->  | K80: =+IF(C80=0,"",J80+(J80*UTsalesTax)) ->  | T80: =+K80 -> 
D81: Riser Dry-valve accelerator | E81: =868+42 -> 910 | J81: =IF(C81>0,E81,"") ->  | K81: =+IF(C81=0,"",J81+(J81*UTsalesTax)) ->  | T81: =+K81 -> 
J82: =IF(ISBLANK(C82),"",IF(OR(C82=0),"",E82)) ->  | K82: =IF(ISBLANK(J82),"",IF(OR(J82=0),"",IF(OR(J82=""),"",C82*J82))) ->  | L82: =SUM(K64:K83) -> 0 | T82: =+K82 -> 
D84: Dry Riser Compressor & Components | K84: with tax
E85: =IF(C85>0,VLOOKUP(D85,[1]!tblDryRiser,3),"") ->  | J85: =IF(OR(C85<1,ISBLANK(D85)),"",IF(F85>0,F85*C85,E85*C85)) ->  | K85: =+IF(J85="","",J85+(J85*UTsalesTax)) ->  | T85: =+K85 -> 
D86: General Air KVP4x4 Vibration Isolation Pads. Price per Pkt of 4 | E86: =IF(C86>0,VLOOKUP(D86,[1]!tblDryRiser,3),"") ->  | J86: =IF(OR(C86<1,ISBLANK(D86)),"",IF(F86>0,F86*C86,E86*C86)) ->  | K86: =+IF(J86="","",J86+(J86*UTsalesTax)) -> 
D87: General Air AD3400 Manual Desiccant-Filled Air Dryer $310 +$85 for Dessicant | E87: =IF(C87>0,VLOOKUP(D87,[1]!tblDryRiser,3),"") ->  | J87: =IF(OR(C87<1,ISBLANK(D87)),"",IF(F87>0,F87*C87,E87*C87)) ->  | K87: =+IF(J87="","",J87+(J87*UTsalesTax)) -> 
D88: $min. Cost to Pipe the compressor to the main valve | E88: 150 | J88: =IF(C88="","",IF(F88>0,F88*C88,E88*C88)) ->  | K88: =+J88 -> 
J89: =IF(C89>0,IF(F89>0,F89*C89,E89*C89),"") -> 
D90: AntiFreeze fluid
E91: =IF(OR(C91<0,D91=""),"",INDEX([1]!AFChemEtAl,MATCH(D91,[1]!AFChemDesc,0),3)) ->  | J91: =IF(OR(C91<1,ISBLANK(D91)),"",IF(F91>0,F91*C91,IF(E91>0,E91*C91,0))) ->  | K91: =+J91 ->  | T91: =+K91 -> 
K92: =+IF(J92>0,J92*C92,"") ->  | T92: =+K92 -> 
D93: StandPipe
D94: -with FDC's BFP/NRV, & floor/isolation valves per floor | E94: =IF(C94>0,( +N("FDC") +150+N("Indicating Floor Ctrl valve") +75+N("with supervisory sw") +85+N("Check Valve") +125+N("Vane Flow Switch") +35+N("Press Gauge") +18+N("3-way valve+plug+nipples") +200+N("Drain test valve+restriction orifice") +25+N("Express Drain") +84+N("1.5inch Hose valve with") +90 +N("1.5inch reducer and cap typical of all standpipes") +7+N("Globe StandPipe Floor Clamp")), "") ->  | G94: =IF(C94>0,"per Floor","") ->  | J94: =IF(C94>0,IF(F94>0,C94*F94,C94*E94),"") ->  | K94: =+J94 ->  | L94: =SUM(K83:K95) -> 0 | T94: =+K94 -> 
D96: Floors or Convenient Sectioning of Work
D97: =+D13 -> '<-in this form, Enter Data in Blue Fields ONLY->' | J97: =IF(C97>0,C97*E97,"") ->  | K97: =+J97 ->  | T97: =+K97 -> 
D98: '<-in this form, Enter Data in Blue Fields ONLY->'
D99: '<-in this form, Enter Data in Blue Fields ONLY->'
D100: '<-in this form, Enter Data in Blue Fields ONLY->'
D101: '<-in this form, Enter Data in Blue Fields ONLY->'
D102: '<-in this form, Enter Data in Blue Fields ONLY->'
D103: '<-in this form, Enter Data in Blue Fields ONLY->' | J103: =IF(C103>0,C103*E103,"") ->  | K103: =+J103 ->  | L103: =SUM(K96:K103) -> 0
F104: You MUST PAY SUPPLIER the TAX.
C105: =+E23-E21 -> 0 | D105: ="Heads, plus the "&E21 &" spares" -> Heads, plus the 0 spares | G105: YOU MUST NOT add a lineItem for tax TO the CLIENT on their invoice.
D106: =+IF('A Heads'!D34>0,'A Heads'!D34&" "&'A Heads'!E34,"none") -> none | J106: =+'A Heads'!O34 -> 0 | K106: =+J106 -> 0 | T106: =+K106 -> 0
D107: This was the 'Spare Head' slot. It will move to [ATTIC} | T107: =+K107 -> 0
C109: Two | D109: Pipe | G109: # of 21 ft Sticks
D110: =IF('C Pipe'!D36>0,'C Pipe'!D36&" "&'C Pipe'!E36,"none") -> none | G110: =IF(J110>0,+'C Pipe'!I36 &" "&'C Pipe'!J36&" at","") ->  | H110: =+'C Pipe'!Q36 -> 0 | J110: =+'C Pipe'!O36 -> 0 | K110: =+J110 -> 0 | T110: =+K110 -> 0
C111: Groceries:
C113: Three | D113: Bushings, Caps, Elbows (45-90) & Tees | T113: =+K113 -> 0
C114: FALSE | D114: =IF('B ELs'!D35>0,'B ELs'!D35&" "&'B ELs'!E35,"none") -> none | E114: =IF(+'B ELs'!O35>0,'B ELs'!O35,"") ->  | J114: =IF(C114=TRUE,IF(F114>0,F114,E114),"") ->  | K114: =IF(C114=TRUE,J114,"") -> 
C115: Four | D115: Mechanical Tees
C116: FALSE | D116: =+IF('D Mech-T'!D31>0,'D Mech-T'!D31&" "&'D Mech-T'!E31,"none") -> none | E116: =IF(+'D Mech-T'!O31>0,'D Mech-T'!O31,"") ->  | J116: =IF(C116=TRUE,IF(F116>0,F116,E116),"") ->  | K116: =IF(C116=TRUE,J116,"") ->  | T116: =+K116 -> 
C117: Five | D117: Couplings, RC's, Weldlets & Fab parts
C118: FALSE | D118: =+IF('E Weldlets'!D31>0,'E Weldlets'!D31&" " &'E Weldlets'!E31,"none") -> none | E118: =+IF('E Weldlets'!O31>0,'E Weldlets'!O31,"") ->  | J118: =IF(C118=TRUE,IF(F118>0,F118,E118),"") ->  | K118: =IF(C118=TRUE,J118,"") ->  | T118: =+K118 -> 
C119: Six | D119: Valves/BFP's (non-riser)
C120: FALSE | D120: =+IF('G Valves'!D40>0,'G Valves'!D40&" "&'G Valves'!E40,"none") -> none | E120: =+IF('G Valves'!O7>0,'G Valves'!O7,"") ->  | J120: =IF(C120=TRUE,IF(F120>0,F120,E120),"") ->  | K120: =IF(C120=TRUE,J120,"") -> 
C121: Seven | D121: Hangars & Clamps
C122: FALSE | D122: =+IF('F Hangars'!D41>0,'F Hangars'!D41&" "&'F Hangars'!E41,"none") -> 1 Hangers & Clamps etc | E122: =+IF('F Hangars'!D41>0,'F Hangars'!D41,"") -> 1 | J122: =IF(C122=TRUE,IF(F122>0,F122,E122),"") ->  | K122: =IF(C122=TRUE,J122,"") -> 
C123: Nine | D123: Miscellaneous
C124: FALSE | D124: =+IF('y Misc'!D63>0,'y Misc'!D63&" "&'y Misc'!E63,"none") -> 42 Misc Parts etc | E124: =IF(+'y Misc'!O7>0,+'y Misc'!O7,"") -> 514.03716 | J124: =IF(C124=TRUE,IF(F124>0,F124,E124),"") ->  | K124: =IF(C124=TRUE,J124,"") -> 
D125: Dump charge by Dumpster folk: $35 per ton | J125: =IF(C125>0,C125*E125,"") ->  | K125: =+J125 -> 
L127: =SUM(K104:K128) -> 0
D129: Attic Stock | F129: Multiplier
D130: Vic V27-2 (semi-R) | E130: =IF(C130>0,VLOOKUP(D130,[1]!sprinkWrenchAll,3),"") ->  | F130: 1.25 | J130: =IF(C130>0,+E130*F130,"") ->  | K130: =IF(C130>0,+J130*C130,0) -> 0 | T130: =+K130 -> 0
D131: Wrench Victaulic V2xx socket (Pendant) | E131: =IF(C131>0,VLOOKUP(D131,[1]!sprinkWrenchAll,3),"") ->  | F131: 1.25 | J131: =IF(C131>0,+E131*F131,"") ->  | K131: =IF(C131>0,+J131*C131,0) -> 0 | T131: 0
E132: =IF(C132>0,VLOOKUP(D132,[1]!sprinkWrenchAll,3),"") ->  | F132: 1.25 | J132: =IF(C132>0,+E132*F132,"") ->  | K132: =IF(C132>0,+J132*C132,0) -> 0 | T132: 0
E133: =IF(C133>0,VLOOKUP(D133,[1]!sprinkWrenchAll,3),"") ->  | F133: 1.25 | J133: =IF(C133>0,+E133*F133,"") ->  | K133: =IF(C133>0,+J133*C133,0) -> 0 | T133: 0
C134: =IF((SUM(E12:E20)>0),IF(SUM(E12:E20)>12,2,1),0) -> 0 | D134: Head Box | E134: =20+3+3 -> 26 | F134: 1.25 | J134: =IF(C134>0,+(E134*F134)*C134,"") ->  | K134: =IF(E21>2,+J134*C134,0) -> 0 | T134: 0
C135: =+E21 -> 0 | D135: Spare Heads | T135: 0
C136: Insert rows ABOVE here where needed | L136: =SUM(K129:K137) -> 0 | T136: 0
C138: Labour | E138: Rate | F138: Hour/s | H138: Day/s | I138: huMAN Hours
D139: <- How many LEAD Techs @ regular rate of: | E139: =+IF(C139>0,LaborRateLeadWet,"") ->  | G139: hours over | I139: =IF(ISBLANK(H139),C139*F139,C139*F139*H139) -> 0 | J139: =IF(C139>0,E139*I139,0) -> 0 | K139: =+IF(C139>0,J139,"") ->  | V139: =+K139 ->  | W139: =+I139 -> 0
D140: <- How many LEAD Techs @ OT labour rate of: | E140: =+IF(C140>0,LaborRateLeadWet+(LaborRateLeadWet/2),"") ->  | G140: hours over | I140: 0 | J140: =IF(C140>0,E140*I140,0) -> 0 | K140: =+IF(C140>0,J140,"") ->  | V140: =+K140 ->  | W140: =+I140 -> 0
D141: <- How many Techs @ regular labour rate of: | E141: =+IF(C141>0,LaborRateTechWet,"") ->  | G141: hours over | I141: 0 | J141: 0 | K141: =+IF(C141>0,J141,"") ->  | W141: 0
D142: <- How many Techs @ OT labour rate of: | E142: =IF(C142>0,+LaborRateTechWet+(LaborRateTechWet/2),"") ->  | G142: hours over | I142: 0 | J142: 0 | K142: =+IF(C142>0,J142,"") ->  | W142: 0
C143: FALSE | D143: Le President | E143: =+IF(C143=TRUE,LaborRateCorpWet,"") ->  | G143: hours over | I143: =IF(ISBLANK(H143),F143,F143*H143) -> 0 | J143: =IF(C143=TRUE,E143*I143,0) -> 0 | K143: =+IF(C143=TRUE,J143,"") ->  | W143: 0
D144: Presidents Men | E144: =+IF(C144>0,LaborRateTechWet-10,"") ->  | G144: hours over | I144: 0 | J144: 0 | K144: =+IF(C144>0,J144,"") ->  | W144: 0
D145: Employee BkG & Substance | E145: =IF(C145>0,+LaborRateTechWet+10,"") ->  | F145: 4 | G145: hours per person | I145: =IF(H145<1,C145*F145,C145*F145*H145) -> 0 | J145: 0 | K145: =+J145 -> 0 | L145: =SUM(K138:K146) -> 0 | V145: 0 | W145: 0
C147: Finals | E147: Rate | F147: Hour/s | H147: Day/s | I147: Total Hours
C148: FALSE | D148: Testing, Inspections & Trip Test | E148: =+LaborRateInspectWet -> 78.75 | G148: hours over | I148: =IF(C148=TRUE,(IF(ISBLANK(H148),F148,F148*H148)),"") ->  | J148: =IF(AND(C148=TRUE,F148>0),(E148*I148),"") ->  | K148: =+J148 ->  | Q148: =+K148 ->  | W148: =+I148 -> 
C150: =IF(C48=TRUE,1,0) -> 0 | D150: De-Mobilisation | E150: =IF(C150>0,IF(F48>0,F48,E48),0) -> 0 | G150: =IF(C150>0,IF(OR(C51=TRUE),G51,0),IF(OR(C51=TRUE),G51,0)) -> 0 | J150: =IF(C150>0,(E150+G150),G150) -> 0 | K150: =+J150 -> 0 | O150: =+K150 -> 0
C152: FALSE | D152: Printing Drawings, As-Builts, Manuals, & Tags | E152: 150 | J152: =IF(C152=TRUE,C152*E152,"") ->  | K152: =+J152 ->  | R152: =IF(C152=TRUE,K152,"") -> 
C154: FALSE | D154: Training | E154: =+LaborRateInspectWet -> 78.75 | G154: hours over | I154: =IF(ISBLANK(H154),F154,F154*H154) -> 0 | J154: =IF(C154=TRUE,E154*I154,"") ->  | K154: =+IF(C154=TRUE,J154,"") ->  | L154: =SUM(K147:K154) -> 0 | Q154: =+K154 ->  | W154: =+I154 -> 0
C156: External Subs | E156: Rate is either | F156: or | G156: How Many? | I156: Total Hours
C157: FALSE | D157: NICET site visits: Field Checks, Flow Tests etc | E157: =+LaborRatePEWet -> 165 | I157: =+IF(C157=TRUE,G157,"") ->  | J157: =IF(C157=TRUE,IF(ISTEXT(E157),IF(F157>0,F157,""),(IF(F157>0,F157,E157))),"") ->  | K157: =IF(ISTEXT(J157),"",G157*J157) -> 
C158: FALSE | E158: =IF(OR(C158<0,D158=""),"",VLOOKUP(D158,[1]!subsEtAl,3)) ->  | N158: =+K158 -> 
C159: FALSE | E159: =IF(OR(C159<0,D159=""),"",VLOOKUP(D159,[1]!subsEtAl,3)) ->  | N159: =+K159 -> 
C160: FALSE | E160: =IF(OR(C160<0,D160=""),"",VLOOKUP(D160,[1]!subsEtAl,3)) ->  | N160: =+K160 -> 
C161: FALSE | D161: 09 b Compliance Reporting Fee American Fork | E161: =IF(OR(C161<0,D161=""),"",VLOOKUP(D161,[1]!subsEtAl,3)) -> 55 | N161: =+K161 -> 
C162: FALSE | L162: =SUM(K156:K162) -> 0
D164: NOT PART OF YELLOW DOLLAR AMOUNT
D165: =IF(C165=1,"Fire Watch Price not added to Total","Fire Watch - QUOTE ONLY") -> Fire Watch - QUOTE ONLY | I165: =IF(ISBLANK(H165),C165*(F165),C165*F165*H165) -> 0 | J165: =IF(C165>0,(E165*I165),0) -> 0 | K165: =+J165 -> 0 | N165: =+K165 -> 0
D166: WeekEnds from 16:30 Frid to 08:00 Mon | E166: =+LaborRateTechWet -> 57.75 | G166: 63.5 | H166: Hours | J166: =IF(C166>0,C166*E166*G166,0) -> 0 | K166: =IF(C165>0,+J166,"") ->  | W166: =IF(FireWatchChargeSw=1,G166,"") -> 
C167: =+H139 -> 0 | D167: WeekDays from 17:00 to 07:30 | E167: 16:30:00 | F167: 08:00:00 | G167: 15.5 | H167: Hours | J167: =IF(C167>0,C167*G167*PayRateTechWet,0) -> 0 | K167: =IF(C165>0,+J167,"") ->  | W167: =IF(FireWatchChargeSw=1,G167,"") -> 
D168: Monitoring Contract
D169: A DSC24 Wireless per panel Annual | E169: =IF(OR(C169<0,D169=""),"",VLOOKUP(D169,[1]!AlmMonitorEtAl,3)) -> 720 | J169: =IF(C169>0,C169*E169,0) -> 0 | K169: =+J169 -> 0
L170: =SUM(K165:K170) -> 0
C172: Totals
C173: =IF(C174=TRUE,CHAR(252),CHAR(242)) -> ò | D173: =IF(C174=TRUE,"MarkUp is: ","No markup set yet! ") -> No markup set yet! | E173: =IF(C174=FALSE,"","either") ->  | F173: =IF(C174=FALSE,"","or") ->  | H173: Total of Parts etc w/out labour: | I173: =SUM(K37:K137)+SUM(K150:K153)+SUM(K158:K163) -> 0
C174: FALSE | E174: 0.3 | I174: =IF(totalsMarkUpWetSw=TRUE,IF(F174>0,F174*I173,+E174*I173),0) -> 0
C175: =IF(C176=TRUE,CHAR(252),CHAR(242)) -> ò | H175: Labour only | I175: =SUM(K137:K148)+SUM(K153:K157) -> 0
C176: FALSE | D176: =IF(C176=FALSE,"No Project Management set yet!","Project Management Charge is: ") -> No Project Management set yet! | E176: 0.04 | H176: =IF(C176=TRUE,"of Totaled Project amount of:","") ->  | I176: =SUM(I173:I175) -> 0 | J176: =IF(C176=TRUE,IF(F176>0,F176*I176,+E176*I176),0) -> 0
I177: =+J176 -> 0
H178: Total: | I178: =+I176+I177 -> 0
H180: Bid Price: | I180: =+ROUNDUP((I176+I177),-2) -> 0
C183: Bond | E183: Rate | F183: Extension
C184: =IF(C32=TRUE,1,0) -> 0 | D184: Bond | F184: =IF(C184=1,+I178*SUM(E185:E187),"") ->  | I184: =IF(C184>0,ROUNDUP(+F184,-2),0) -> 0 | M184: =+I184 -> 0
D185: =IF(C184>0,+D33,"") ->  | E185: =IF($C$184>0,+E33,"") ->  | F185: =IF(C184<1,"",I178*E185) -> 
D186: =IF(C184>0,+D34,"") ->  | E186: =IF($C$184>0,+E34,"") ->  | F186: =IF(C184<1,"",I178*E186) -> 
D187: =IF(C184>0,+D35,"") ->  | E187: =IF($C$184>0,+E35,"") ->  | F187: =IF(C184<1,"",I178*E187) -> 
H190: Total: | I190: =+SUM(I180:I182) -> 0 | J190: =IF(E23>1,ROUND(I190/E23,0),0) -> 0 | K190: =SUM(K171:K189) -> 0 | M190: =SUM(M24:M189) -> 0 | N190: 0 | O190: 0 | P190: 0 | Q190: 0 | R190: 0 | S190: 0 | T190: 0 | U190: 0 | V190: 0 | W190: 0 | Y190: =SUM(M190:V190) -> 0
J191: Per Head | L191: =+IF((ISBLANK(L25)),"",L25) -> info | M191: Insurance & | N191: External | O191: Mob/DeMob | W191: =+IF((ISBLANK(W27)),"",W27) -> Man | Y191: No markup
L192: =+IF((ISBLANK(L26)),"",L26) -> only | M192: Bonding | N192: Subs | O192: Travel | Q192: Inspect | T192: =+IF((ISBLANK(T23)),"",T23) -> Material | U192: =+IF((ISBLANK(U26)),"",U26) ->  | V192: =+IF((ISBLANK(V26)),"",V26) ->  | W192: =+IF((ISBLANK(W29)),"",W29) -> Hours | Y192: No PM
L193: =+IF((ISBLANK(L27)),"",L27) -> Section | M193: =+IF((ISBLANK(M27)),"",M27) ->  | N193: =+IF((ISBLANK(N27)),"",N27) ->  | O193: Transport | P193: AWP | Q193: =+IF((ISBLANK(Q27)),"",Q27) -> Tests | T193: =+IF((ISBLANK(T27)),"",T27) -> & | U193: spare | V193: =+IF((ISBLANK(V27)),"",V27) -> 
C194: Rev: 2018-11-30 20:30 | E194: =MID(CELL("filename",A2),FIND("[",CELL("filename",A2))+1,FIND("]",CELL("filename",A2))-FIND("[",CELL("filename",A2))-1) -> 00 Job Cost WKS Ver 15.08.xlsm | K194: =SUM(K37:K193) -> 0 | L194: =+IF((ISBLANK(L29)),"",L29) -> SubTotals | M194: =+IF((ISBLANK(M29)),"",M29) ->  | O194: & Freight | Q194: =+IF((ISBLANK(Q29)),"",Q29) -> Training | R194: Printing | S194: PreLims | T194: =+IF((ISBLANK(T29)),"",T29) -> Parts
R195: Total Burden: | S195: =SUM(M190:S190) -> 0 | T195: Total Material: | U195: =SUM(T190:U190) -> 0 | V195: Labor Cost | W195: =+V190 -> 0
AA199: For: | AB199: Division 21 Wet Fire Suppression Systems
AA200: Bid Number: | AB200: 1
AA201: Date: | AB201: =+NOW() -> 2018-12-09T17:45:04.200
AA202: Expires: | AB202: =+AB201+AC202 -> 2019-01-23T17:45:04.200 | AC202: 45 | AD202: days
AA204: Project: | AB204: custname, | AC204: =+C23 -> 0 | AD204: sq ft | AE204: building address
AA205: Total Bid Price: | AB205: =I180 -> 0 | AC205: (estimated)
AA206: =IF(C184>0,"Add: ","") ->  | AB206: =IF(C184>0,I184,"") ->  | AC206: =IF(C184>0,"for Performance & Payment Bond. ","") -> 
AA207: Bidder: | AB207: Kent Johnstone | AC207: (801) 277-6464 | AE207: for Fire Suppression Services Incorporated

Sheet 3 FEC
C1: To Table of Contents | G1: EXTINGUISHERS & CABINETS
B3: Not yet implemented
D5: =+"Div-10/21 "&RIGHT(CELL("filename"),LEN(CELL("filename"))-FIND("]",CELL("filename"),1)) &" Cabinets" -> Div-10/21 2 Wet Cabinets
D7: Zero
E9: For PORTABLE fire extinguishers,
F10: You would NOT pay supplier any Sales Tax. (send 'em an Exempt form)
F11: You would ADD a LineItem to the Client Invoice for UT Sales Tax
F12: You would then send this client-paid tax to the State every Qtr
E14: For Cabinets, you pay supplier the Sales Tax, it is your COST. You do NOT ADD a LINEITEM to Clients Invoice that says TAX
F15: Vendor | H15: Vendor | I15: Vendor | J15: FSS | K15: FSS | L15: FSS | M15: Tax to add | N15: FSS sells
F16: Taxes | H16: Price | I16: Tax | J16: Cost Price | K16: MarkUp | L16: SellPrice | M16: by FSS | N16: SP
G17: 10# Badger FE | H17: 115 | I17: =IF(F17="T",H17*7%,0) -> 0 | J17: =+H17+I17 -> 115 | K17: =+J17*25% -> 28.75 | L17: =+J17+K17 -> 143.75 | M17: =IF(F17="T",0,+L17*7%) -> 10.0625 | N17: =+J17+K17 & " Plus " &M17 &" tax" -> 143.75 Plus 10.0625 tax
F19: T | G19: Cabinet for FE | H19: 145 | I19: =IF(F19="T",H19*7%,0) -> 10.15 | J19: =+H19+I19 -> 155.15 | K19: =+J19*25% -> 38.7875 | L19: =+J19+K19 -> 193.9375 | M19: =IF(F19="T",0,+L19*7%) -> 0 | N19: =+J19+K19 & " Plus " &M19 &" tax" -> 193.9375 Plus 0 tax
G21: You only pay Sales Tax once in USA Utah
G23: If you put Tax on your invoice you have to remit it to State
G25: Only time you can claim Sales Tax back is if you pay it twice OR if you are a Tax Exempt Organisation (Charity or Govt)
G27: If you take IT for personal use, YOU MUST pay Sales Tax
D42: Rev: 2016-03-27 01:50

Sheet A Heads
D1: To Table of Contents
D3: Rev: 2017-01-07 13:25
D4: # | E4: Description Drop-down Pick-List | F4: Either | G4: Or | H4: Unit | J4: Extension | K4: Totals | Q4: Final
E5: =MID(CELL("filename",A1),FIND("]",CELL("filename",A1))+1,255) -> A Heads
E6: Click in a cell below to change a line item | N6: 1 | O6: =+UTsalesTax -> 0.071
E7: from the list | O7: =+O34 -> 0
E8: =CHAR(242) -> ò | F8: Remember the SPARE heads for the Head Box/es. AND add extras again to cover cost of next 12 months Warranty period
D9: =+'2 Wet'!C105 -> 0 | E9: Head Drop-down Pick-List | F9: Either | G9: Or | H9: Unit | J9: Extension | K9: Totals | O9: Final
B10: 1 | E10: 00 Paint Cap Cover Plastic prevent painted head each | F10: =IF(OR(D10<0,E10=""),"",INDEX([1]!sprinkHeadsAll,MATCH(E10,[1]!sprinkHeadsList,0),3)) -> 1.25 | J10: =IF(OR(D10="",E10=""),"",IF(G10>0,D10*G10,D10*F10)) ->  | K10: =+J10 ->  | O10: =+K10 -> 
B11: =+B10+1 -> 2 | F11: =IF(OR(D11<0,E11=""),"",INDEX([1]!sprinkHeadsAll,MATCH(E11,[1]!sprinkHeadsList,0),3)) ->  | K11: =+J11 ->  | O11: =+K11 -> 
B12: 3 | F12: =IF(OR(D12<0,E12=""),"",INDEX([1]!sprinkHeadsAll,MATCH(E12,[1]!sprinkHeadsList,0),3)) ->  | K12: =+J12 ->  | O12: =+K12 -> 
B13: 4 | F13: =IF(OR(D13<0,E13=""),"",INDEX([1]!sprinkHeadsAll,MATCH(E13,[1]!sprinkHeadsList,0),3)) ->  | K13: =+J13 ->  | O13: =+K13 -> 
B14: 5 | F14: =IF(OR(D14<0,E14=""),"",INDEX([1]!sprinkHeadsAll,MATCH(E14,[1]!sprinkHeadsList,0),3)) -> 
B15: 6 | F15: =IF(OR(D15<0,E15=""),"",INDEX([1]!sprinkHeadsAll,MATCH(E15,[1]!sprinkHeadsList,0),3)) -> 
B16: 7 | F16: =IF(OR(D16<0,E16=""),"",INDEX([1]!sprinkHeadsAll,MATCH(E16,[1]!sprinkHeadsList,0),3)) ->  | K16: =+J16 ->  | O16: =+K16 -> 
B17: 8 | F17: =IF(OR(D17<0,E17=""),"",INDEX([1]!sprinkHeadsAll,MATCH(E17,[1]!sprinkHeadsList,0),3)) -> 
B18: 9 | F18: =IF(OR(D18<0,E18=""),"",INDEX([1]!sprinkHeadsAll,MATCH(E18,[1]!sprinkHeadsList,0),3)) -> 
B19: 10 | F19: =IF(OR(D19<0,E19=""),"",INDEX([1]!sprinkHeadsAll,MATCH(E19,[1]!sprinkHeadsList,0),3)) -> 
B20: 11 | F20: =IF(OR(D20<0,E20=""),"",INDEX([1]!sprinkHeadsAll,MATCH(E20,[1]!sprinkHeadsList,0),3)) -> 
B21: 12 | F21: =IF(OR(D21<0,E21=""),"",INDEX([1]!sprinkHeadsAll,MATCH(E21,[1]!sprinkHeadsList,0),3)) -> 
B22: 13 | F22: =IF(OR(D22<0,E22=""),"",INDEX([1]!sprinkHeadsAll,MATCH(E22,[1]!sprinkHeadsList,0),3)) -> 
B23: 14 | F23: =IF(OR(D23<0,E23=""),"",INDEX([1]!sprinkHeadsAll,MATCH(E23,[1]!sprinkHeadsList,0),3)) -> 
B24: 15 | F24: =IF(OR(D24<0,E24=""),"",INDEX([1]!sprinkHeadsAll,MATCH(E24,[1]!sprinkHeadsList,0),3)) -> 
B25: 16 | F25: =IF(OR(D25<0,E25=""),"",INDEX([1]!sprinkHeadsAll,MATCH(E25,[1]!sprinkHeadsList,0),3)) -> 
B26: 17 | F26: =IF(OR(D26<0,E26=""),"",INDEX([1]!sprinkHeadsAll,MATCH(E26,[1]!sprinkHeadsList,0),3)) -> 
B27: 18 | F27: =IF(OR(D27<0,E27=""),"",INDEX([1]!sprinkHeadsAll,MATCH(E27,[1]!sprinkHeadsList,0),3)) -> 
B28: 19 | F28: =IF(OR(D28<0,E28=""),"",INDEX([1]!sprinkHeadsAll,MATCH(E28,[1]!sprinkHeadsList,0),3)) -> 
B29: 20 | J29: =IF(OR(D29="",E29=""),"",IF(G29>0,D29*G29,D29*F29)) ->  | K29: =+J29 ->  | O29: =+K29 -> 
B30: 21 | J30: =IF(OR(D30="",E30=""),"",IF(G30>0,D30*G30,D30*F30)) ->  | K30: =+J30 ->  | O30: =+K30 -> 
B31: 22
B32: 23
D34: =SUM(D11:D33) -> 0 | E34: Head/s, Covers and Paint Caps | O34: =IF(N6>0,SUM(O9:O32)+(SUM(O9:O32))*O6,SUM(O9:O32)) -> 0
C40: 2
D76: Glycerine 48% per gal | E76: =IF(OR(C76<0,D76=""),"",INDEX([1]!AFChemEtAl,MATCH(D76,[1]!AFChemList,0),3)) -> 
D77: Glycerine 48% per gal | E77: =VLOOKUP(D77,[1]!AFChemEtAl,3) -> 8.56

Sheet B ELs
D1: To Table of Contents
D3: Rev: 2016-10-30 13:25
D4: Mods: 2017-05-17 22:46 | G4: Bushings, Caps, Elz, & Teez
E5: =MID(CELL("filename",A1),FIND("]",CELL("filename",A1))+1,255) -> B ELs | I5: integrated S10, 40, Galv, PVC, & Brass
E6: Click in a cell below to change a line item | I6: InComplete | N6: 1 | O6: =+UTsalesTax -> 0.071
E7: from the list | O7: =+O35 -> 0
D8: Seven | E8: =CHAR(242) -> ò
D9: # | E9: Description Drop-down Pick-List | F9: Type | G9: Unit Price | H9: Unit | J9: Extension | K9: Totals | O9: Final
B10: 1 | E10: Bushing 1.00" x 0.50" | F10: Black-S40 | G10: =IF(OR(ISBLANK(D10),ISBLANK(E10),ISBLANK(F10)),"",IF(F10="Black-S10",VLOOKUP(E10,[1]!wetTeazEtAl,2),IF(F10="Black-S40",VLOOKUP(E10,[1]!wetTeazEtAl,3),IF(F10="CPVC",VLOOKUP(E10,[1]!wetTeazEtAl,4),IF(F10="DynaFlow-S10",VLOOKUP(E10,[1]!wetTeazEtAl,5),IF(F10="Galvanised",VLOOKUP(E10,[1]!wetTeazEtAl,6),IF(F10="Brass",VLOOKUP(E10,[1]!wetTeazEtAl,7)))))))) ->  | H10: each | J10: =IF(OR(ISBLANK(D10),ISBLANK(E10),ISBLANK(F10)),"",D10*G10) ->  | K10: =+J10 ->  | O10: =+K10 -> 
B11: =+B10+1 -> 2 | G11: =IF(OR(ISBLANK(D11),ISBLANK(E11),ISBLANK(F11)),"",IF(F11="Black-S10",VLOOKUP(E11,[1]!wetTeazEtAl,2),IF(F11="Black-S40",VLOOKUP(E11,[1]!wetTeazEtAl,3),IF(F11="CPVC",VLOOKUP(E11,[1]!wetTeazEtAl,4),IF(F11="DynaFlow-S10",VLOOKUP(E11,[1]!wetTeazEtAl,5),IF(F11="Galvanised",VLOOKUP(E11,[1]!wetTeazEtAl,6),IF(F11="Brass",VLOOKUP(E11,[1]!wetTeazEtAl,7)))))))) ->  | H11: each | J11: =IF(OR(ISBLANK(D11),ISBLANK(E11),ISBLANK(F11)),"",D11*G11) -> 
B12: 3 | G12: =IF(OR(ISBLANK(D12),ISBLANK(E12),ISBLANK(F12)),"",IF(F12="Black-S10",VLOOKUP(E12,[1]!wetTeazEtAl,2),IF(F12="Black-S40",VLOOKUP(E12,[1]!wetTeazEtAl,3),IF(F12="CPVC",VLOOKUP(E12,[1]!wetTeazEtAl,4),IF(F12="DynaFlow-S10",VLOOKUP(E12,[1]!wetTeazEtAl,5),IF(F12="Galvanised",VLOOKUP(E12,[1]!wetTeazEtAl,6),IF(F12="Brass",VLOOKUP(E12,[1]!wetTeazEtAl,7)))))))) ->  | H12: each
B13: 4 | G13: =IF(OR(ISBLANK(D13),ISBLANK(E13),ISBLANK(F13)),"",IF(F13="Black-S10",VLOOKUP(E13,[1]!wetTeazEtAl,2),IF(F13="Black-S40",VLOOKUP(E13,[1]!wetTeazEtAl,3),IF(F13="CPVC",VLOOKUP(E13,[1]!wetTeazEtAl,4),IF(F13="DynaFlow-S10",VLOOKUP(E13,[1]!wetTeazEtAl,5),IF(F13="Galvanised",VLOOKUP(E13,[1]!wetTeazEtAl,6),IF(F13="Brass",VLOOKUP(E13,[1]!wetTeazEtAl,7)))))))) ->  | H13: each
B14: 5 | G14: =IF(OR(ISBLANK(D14),ISBLANK(E14),ISBLANK(F14)),"",IF(F14="Black-S10",VLOOKUP(E14,[1]!wetTeazEtAl,2),IF(F14="Black-S40",VLOOKUP(E14,[1]!wetTeazEtAl,3),IF(F14="CPVC",VLOOKUP(E14,[1]!wetTeazEtAl,4),IF(F14="DynaFlow-S10",VLOOKUP(E14,[1]!wetTeazEtAl,5),IF(F14="Galvanised",VLOOKUP(E14,[1]!wetTeazEtAl,6),IF(F14="Brass",VLOOKUP(E14,[1]!wetTeazEtAl,7)))))))) ->  | H14: each
B15: 6 | G15: =IF(OR(ISBLANK(D15),ISBLANK(E15),ISBLANK(F15)),"",IF(F15="Black-S10",VLOOKUP(E15,[1]!wetTeazEtAl,2),IF(F15="Black-S40",VLOOKUP(E15,[1]!wetTeazEtAl,3),IF(F15="CPVC",VLOOKUP(E15,[1]!wetTeazEtAl,4),IF(F15="DynaFlow-S10",VLOOKUP(E15,[1]!wetTeazEtAl,5),IF(F15="Galvanised",VLOOKUP(E15,[1]!wetTeazEtAl,6),IF(F15="Brass",VLOOKUP(E15,[1]!wetTeazEtAl,7)))))))) ->  | H15: each
B16: 7 | G16: =IF(OR(ISBLANK(D16),ISBLANK(E16),ISBLANK(F16)),"",IF(F16="Black-S10",VLOOKUP(E16,[1]!wetTeazEtAl,2),IF(F16="Black-S40",VLOOKUP(E16,[1]!wetTeazEtAl,3),IF(F16="CPVC",VLOOKUP(E16,[1]!wetTeazEtAl,4),IF(F16="DynaFlow-S10",VLOOKUP(E16,[1]!wetTeazEtAl,5),IF(F16="Galvanised",VLOOKUP(E16,[1]!wetTeazEtAl,6),IF(F16="Brass",VLOOKUP(E16,[1]!wetTeazEtAl,7)))))))) ->  | H16: each
B17: 8 | G17: =IF(OR(ISBLANK(D17),ISBLANK(E17),ISBLANK(F17)),"",IF(F17="Black-S10",VLOOKUP(E17,[1]!wetTeazEtAl,2),IF(F17="Black-S40",VLOOKUP(E17,[1]!wetTeazEtAl,3),IF(F17="CPVC",VLOOKUP(E17,[1]!wetTeazEtAl,4),IF(F17="DynaFlow-S10",VLOOKUP(E17,[1]!wetTeazEtAl,5),IF(F17="Galvanised",VLOOKUP(E17,[1]!wetTeazEtAl,6),IF(F17="Brass",VLOOKUP(E17,[1]!wetTeazEtAl,7)))))))) ->  | H17: each
B18: 9 | G18: =IF(OR(ISBLANK(D18),ISBLANK(E18),ISBLANK(F18)),"",IF(F18="Black-S10",VLOOKUP(E18,[1]!wetTeazEtAl,2),IF(F18="Black-S40",VLOOKUP(E18,[1]!wetTeazEtAl,3),IF(F18="CPVC",VLOOKUP(E18,[1]!wetTeazEtAl,4),IF(F18="DynaFlow-S10",VLOOKUP(E18,[1]!wetTeazEtAl,5),IF(F18="Galvanised",VLOOKUP(E18,[1]!wetTeazEtAl,6),IF(F18="Brass",VLOOKUP(E18,[1]!wetTeazEtAl,7)))))))) ->  | H18: each
B19: 10 | G19: =IF(OR(ISBLANK(D19),ISBLANK(E19),ISBLANK(F19)),"",IF(F19="Black-S10",VLOOKUP(E19,[1]!wetTeazEtAl,2),IF(F19="Black-S40",VLOOKUP(E19,[1]!wetTeazEtAl,3),IF(F19="CPVC",VLOOKUP(E19,[1]!wetTeazEtAl,4),IF(F19="DynaFlow-S10",VLOOKUP(E19,[1]!wetTeazEtAl,5),IF(F19="Galvanised",VLOOKUP(E19,[1]!wetTeazEtAl,6),IF(F19="Brass",VLOOKUP(E19,[1]!wetTeazEtAl,7)))))))) ->  | H19: each
B20: 11 | G20: =IF(OR(ISBLANK(D20),ISBLANK(E20),ISBLANK(F20)),"",IF(F20="Black-S10",VLOOKUP(E20,[1]!wetTeazEtAl,2),IF(F20="Black-S40",VLOOKUP(E20,[1]!wetTeazEtAl,3),IF(F20="CPVC",VLOOKUP(E20,[1]!wetTeazEtAl,4),IF(F20="DynaFlow-S10",VLOOKUP(E20,[1]!wetTeazEtAl,5),IF(F20="Galvanised",VLOOKUP(E20,[1]!wetTeazEtAl,6),IF(F20="Brass",VLOOKUP(E20,[1]!wetTeazEtAl,7)))))))) ->  | H20: each
B21: 12 | G21: =IF(OR(ISBLANK(D21),ISBLANK(E21),ISBLANK(F21)),"",IF(F21="Black-S10",VLOOKUP(E21,[1]!wetTeazEtAl,2),IF(F21="Black-S40",VLOOKUP(E21,[1]!wetTeazEtAl,3),IF(F21="CPVC",VLOOKUP(E21,[1]!wetTeazEtAl,4),IF(F21="DynaFlow-S10",VLOOKUP(E21,[1]!wetTeazEtAl,5),IF(F21="Galvanised",VLOOKUP(E21,[1]!wetTeazEtAl,6),IF(F21="Brass",VLOOKUP(E21,[1]!wetTeazEtAl,7)))))))) ->  | H21: each
B22: 13 | G22: =IF(OR(ISBLANK(D22),ISBLANK(E22),ISBLANK(F22)),"",IF(F22="Black-S10",VLOOKUP(E22,[1]!wetTeazEtAl,2),IF(F22="Black-S40",VLOOKUP(E22,[1]!wetTeazEtAl,3),IF(F22="CPVC",VLOOKUP(E22,[1]!wetTeazEtAl,4),IF(F22="DynaFlow-S10",VLOOKUP(E22,[1]!wetTeazEtAl,5),IF(F22="Galvanised",VLOOKUP(E22,[1]!wetTeazEtAl,6),IF(F22="Brass",VLOOKUP(E22,[1]!wetTeazEtAl,7)))))))) ->  | H22: each
B23: 14 | G23: =IF(OR(ISBLANK(D23),ISBLANK(E23),ISBLANK(F23)),"",IF(F23="Black-S10",VLOOKUP(E23,[1]!wetTeazEtAl,2),IF(F23="Black-S40",VLOOKUP(E23,[1]!wetTeazEtAl,3),IF(F23="CPVC",VLOOKUP(E23,[1]!wetTeazEtAl,4),IF(F23="DynaFlow-S10",VLOOKUP(E23,[1]!wetTeazEtAl,5),IF(F23="Galvanised",VLOOKUP(E23,[1]!wetTeazEtAl,6),IF(F23="Brass",VLOOKUP(E23,[1]!wetTeazEtAl,7)))))))) ->  | H23: each
B24: 15 | G24: =IF(OR(ISBLANK(D24),ISBLANK(E24),ISBLANK(F24)),"",IF(F24="Black-S10",VLOOKUP(E24,[1]!wetTeazEtAl,2),IF(F24="Black-S40",VLOOKUP(E24,[1]!wetTeazEtAl,3),IF(F24="CPVC",VLOOKUP(E24,[1]!wetTeazEtAl,4),IF(F24="DynaFlow-S10",VLOOKUP(E24,[1]!wetTeazEtAl,5),IF(F24="Galvanised",VLOOKUP(E24,[1]!wetTeazEtAl,6),IF(F24="Brass",VLOOKUP(E24,[1]!wetTeazEtAl,7)))))))) ->  | H24: each
B25: 16 | G25: =IF(OR(ISBLANK(D25),ISBLANK(E25),ISBLANK(F25)),"",IF(F25="Black-S10",VLOOKUP(E25,[1]!wetTeazEtAl,2),IF(F25="Black-S40",VLOOKUP(E25,[1]!wetTeazEtAl,3),IF(F25="CPVC",VLOOKUP(E25,[1]!wetTeazEtAl,4),IF(F25="DynaFlow-S10",VLOOKUP(E25,[1]!wetTeazEtAl,5),IF(F25="Galvanised",VLOOKUP(E25,[1]!wetTeazEtAl,6),IF(F25="Brass",VLOOKUP(E25,[1]!wetTeazEtAl,7)))))))) ->  | H25: each
B26: 17 | G26: =IF(OR(ISBLANK(D26),ISBLANK(E26),ISBLANK(F26)),"",IF(F26="Black-S10",VLOOKUP(E26,[1]!wetTeazEtAl,2),IF(F26="Black-S40",VLOOKUP(E26,[1]!wetTeazEtAl,3),IF(F26="CPVC",VLOOKUP(E26,[1]!wetTeazEtAl,4),IF(F26="DynaFlow-S10",VLOOKUP(E26,[1]!wetTeazEtAl,5),IF(F26="Galvanised",VLOOKUP(E26,[1]!wetTeazEtAl,6),IF(F26="Brass",VLOOKUP(E26,[1]!wetTeazEtAl,7)))))))) ->  | H26: each
B27: 18 | G27: =IF(OR(ISBLANK(D27),ISBLANK(E27),ISBLANK(F27)),"",IF(F27="Black-S10",VLOOKUP(E27,[1]!wetTeazEtAl,2),IF(F27="Black-S40",VLOOKUP(E27,[1]!wetTeazEtAl,3),IF(F27="CPVC",VLOOKUP(E27,[1]!wetTeazEtAl,4),IF(F27="DynaFlow-S10",VLOOKUP(E27,[1]!wetTeazEtAl,5),IF(F27="Galvanised",VLOOKUP(E27,[1]!wetTeazEtAl,6),IF(F27="Brass",VLOOKUP(E27,[1]!wetTeazEtAl,7)))))))) ->  | H27: each
B28: 19 | G28: =IF(OR(ISBLANK(D28),ISBLANK(E28),ISBLANK(F28)),"",IF(F28="Black-S10",VLOOKUP(E28,[1]!wetTeazEtAl,2),IF(F28="Black-S40",VLOOKUP(E28,[1]!wetTeazEtAl,3),IF(F28="CPVC",VLOOKUP(E28,[1]!wetTeazEtAl,4),IF(F28="DynaFlow-S10",VLOOKUP(E28,[1]!wetTeazEtAl,5),IF(F28="Galvanised",VLOOKUP(E28,[1]!wetTeazEtAl,6),IF(F28="Brass",VLOOKUP(E28,[1]!wetTeazEtAl,7)))))))) ->  | H28: each
B29: 20 | G29: =IF(OR(ISBLANK(D29),ISBLANK(E29),ISBLANK(F29)),"",IF(F29="Black-S10",VLOOKUP(E29,[1]!wetTeazEtAl,2),IF(F29="Black-S40",VLOOKUP(E29,[1]!wetTeazEtAl,3),IF(F29="CPVC",VLOOKUP(E29,[1]!wetTeazEtAl,4),IF(F29="DynaFlow-S10",VLOOKUP(E29,[1]!wetTeazEtAl,5),IF(F29="Galvanised",VLOOKUP(E29,[1]!wetTeazEtAl,6),IF(F29="Brass",VLOOKUP(E29,[1]!wetTeazEtAl,7)))))))) ->  | H29: each
B30: 21 | G30: =IF(OR(ISBLANK(D30),ISBLANK(E30),ISBLANK(F30)),"",IF(F30="Black-S10",VLOOKUP(E30,[1]!wetTeazEtAl,2),IF(F30="Black-S40",VLOOKUP(E30,[1]!wetTeazEtAl,3),IF(F30="CPVC",VLOOKUP(E30,[1]!wetTeazEtAl,4),IF(F30="DynaFlow-S10",VLOOKUP(E30,[1]!wetTeazEtAl,5),IF(F30="Galvanised",VLOOKUP(E30,[1]!wetTeazEtAl,6),IF(F30="Brass",VLOOKUP(E30,[1]!wetTeazEtAl,7)))))))) ->  | H30: each
B31: 22 | G31: =IF(OR(ISBLANK(D31),ISBLANK(E31),ISBLANK(F31)),"",IF(F31="Black-S10",VLOOKUP(E31,[1]!wetTeazEtAl,2),IF(F31="Black-S40",VLOOKUP(E31,[1]!wetTeazEtAl,3),IF(F31="CPVC",VLOOKUP(E31,[1]!wetTeazEtAl,4),IF(F31="DynaFlow-S10",VLOOKUP(E31,[1]!wetTeazEtAl,5),IF(F31="Galvanised",VLOOKUP(E31,[1]!wetTeazEtAl,6),IF(F31="Brass",VLOOKUP(E31,[1]!wetTeazEtAl,7)))))))) ->  | H31: each
B32: 23 | G32: =IF(OR(ISBLANK(D32),ISBLANK(E32),ISBLANK(F32)),"",IF(F32="Black-S10",VLOOKUP(E32,[1]!wetTeazEtAl,2),IF(F32="Black-S40",VLOOKUP(E32,[1]!wetTeazEtAl,3),IF(F32="CPVC",VLOOKUP(E32,[1]!wetTeazEtAl,4),IF(F32="DynaFlow-S10",VLOOKUP(E32,[1]!wetTeazEtAl,5),IF(F32="Galvanised",VLOOKUP(E32,[1]!wetTeazEtAl,6),IF(F32="Brass",VLOOKUP(E32,[1]!wetTeazEtAl,7)))))))) ->  | H32: each | K32: =+J32 ->  | O32: =+K32 -> 
B33: 24 | G33: =IF(OR(ISBLANK(D33),ISBLANK(E33),ISBLANK(F33)),"",IF(F33="Black-S10",VLOOKUP(E33,[1]!wetTeazEtAl,2),IF(F33="Black-S40",VLOOKUP(E33,[1]!wetTeazEtAl,3),IF(F33="CPVC",VLOOKUP(E33,[1]!wetTeazEtAl,4),IF(F33="DynaFlow-S10",VLOOKUP(E33,[1]!wetTeazEtAl,5),IF(F33="Galvanised",VLOOKUP(E33,[1]!wetTeazEtAl,6),IF(F33="Brass",VLOOKUP(E33,[1]!wetTeazEtAl,7)))))))) ->  | H33: each
D35: =+SUM(D9:D34) -> 0 | E35: EL's/90's & Tees | O35: =IF(N6>0,SUM(O9:O34)+(SUM(O9:O34))*O6,SUM(O9:O34)) -> 0

Sheet C Pipe
D1: To Table of Contents
D3: Rev: 2016-10-30 13:25 | Q3: I have averaged the weight and erred on the HIGH side
E5: =MID(CELL("filename",A1),FIND("]",CELL("filename",A1))+1,255) -> C Pipe | O5: Sales Tax
E6: Click in a cell below to change a line item | N6: 1 | O6: =+UTsalesTax -> 0.071
E7: from the list | O7: =+O36 -> 0
E8: =CHAR(242) -> ò
D9: Hover | E9: Description Drop-down Pick-List | F9: Diam | G9: Unit Price | H9: Unit | I9: Sticks | J9: Extension | K9: Totals | O9: Final | Q9: Weight | S9: this pipe | T9: weighs | V9: Cell
B10: 1 | E10: Black-S40 | F10: 1 | G10: =IF(OR(ISBLANK(D10),ISBLANK(E10)),"", IF(E10="Black-S10",VLOOKUP(F10,[1]!pipeEtAl,2),IF(E10="Black-S40",VLOOKUP(F10,[1]!pipeEtAl,3),IF(E10="CPVC",VLOOKUP(F10,[1]!pipeEtAl,4),IF(E10="DynaFlow-S10",VLOOKUP(F10,[1]!pipeEtAl,5),IF(E10="DynaThread",VLOOKUP(F10,[1]!pipeEtAl,6),IF(E10="Galvanised",VLOOKUP(F10,[1]!pipeEtAl,7) ))))))) ->  | H10: per foot | I10: =IF(D10>0,D10/21,0) -> 0 | J10: =IF(D10>0,D10*G10,0) -> 0 | K10: =+J10 -> 0 | O10: =+K10 -> 0 | Q10: =IF(E10="Black-S40",D10*$T$10,IF(E10="DynaFlow-S10",$T$15*D10,IF(E10="CPVC",$T$12*D10,IF(E10="Galvanised",D10*$T$13,IF(E10="DynaThread",D10*$T$14,IF(E10="Black-S10",D10*$T$11,"")))))) -> 0 | S10: Sched-40 4" weighs | T10: 10 | U10: lb/ft | V10: T10
B11: =+B10+1 -> 2 | E11: Black-S40 | G11: =IF(OR(ISBLANK(D11),ISBLANK(E11)),"", IF(E11="Black-S10",VLOOKUP(F11,[1]!pipeEtAl,2),IF(E11="Black-S40",VLOOKUP(F11,[1]!pipeEtAl,3),IF(E11="CPVC",VLOOKUP(F11,[1]!pipeEtAl,4),IF(E11="DynaFlow-S10",VLOOKUP(F11,[1]!pipeEtAl,5),IF(E11="DynaThread",VLOOKUP(F11,[1]!pipeEtAl,6),IF(E11="Galvanised",VLOOKUP(F11,[1]!pipeEtAl,7) ))))))) ->  | H11: per foot | I11: 0 | J11: 0 | K11: 0 | O11: 0 | Q11: 0 | S11: Sched-10 4" weighs | T11: 5.6 | U11: lb/ft | V11: T11
B12: =+B11+1 -> 3 | E12: CPVC | G12: =IF(OR(ISBLANK(D12),ISBLANK(E12)),"", IF(E12="Black-S10",VLOOKUP(F12,[1]!pipeEtAl,2),IF(E12="Black-S40",VLOOKUP(F12,[1]!pipeEtAl,3),IF(E12="CPVC",VLOOKUP(F12,[1]!pipeEtAl,4),IF(E12="DynaFlow-S10",VLOOKUP(F12,[1]!pipeEtAl,5),IF(E12="DynaThread",VLOOKUP(F12,[1]!pipeEtAl,6),IF(E12="Galvanised",VLOOKUP(F12,[1]!pipeEtAl,7) ))))))) ->  | H12: per foot | I12: 0 | J12: 0 | K12: 0 | O12: 0 | Q12: 0 | S12: Sched-80 4" CPVC | T12: 2.75 | U12: lb/ft | V12: T12
B13: 4 | E13: DynaFlow-S10 | G13: =IF(OR(ISBLANK(D13),ISBLANK(E13)),"", IF(E13="Black-S10",VLOOKUP(F13,[1]!pipeEtAl,2),IF(E13="Black-S40",VLOOKUP(F13,[1]!pipeEtAl,3),IF(E13="CPVC",VLOOKUP(F13,[1]!pipeEtAl,4),IF(E13="DynaFlow-S10",VLOOKUP(F13,[1]!pipeEtAl,5),IF(E13="DynaThread",VLOOKUP(F13,[1]!pipeEtAl,6),IF(E13="Galvanised",VLOOKUP(F13,[1]!pipeEtAl,7) ))))))) ->  | H13: per foot | I13: 0 | J13: 0 | K13: 0 | O13: 0 | Q13: 0 | S13: Sched-40 4" Galvanised | T13: 5.8 | U13: lb/ft | V13: T13
B14: 5 | E14: DynaThread | G14: =IF(OR(ISBLANK(D14),ISBLANK(E14)),"", IF(E14="Black-S10",VLOOKUP(F14,[1]!pipeEtAl,2),IF(E14="Black-S40",VLOOKUP(F14,[1]!pipeEtAl,3),IF(E14="CPVC",VLOOKUP(F14,[1]!pipeEtAl,4),IF(E14="DynaFlow-S10",VLOOKUP(F14,[1]!pipeEtAl,5),IF(E14="DynaThread",VLOOKUP(F14,[1]!pipeEtAl,6),IF(E14="Galvanised",VLOOKUP(F14,[1]!pipeEtAl,7) ))))))) ->  | H14: per foot | I14: 0 | J14: 0 | K14: 0 | O14: 0 | Q14: 0 | S14: Dyna-Thread/M-Coat 2" | T14: 3.5 | U14: lb/ft | V14: T14
B15: 6 | E15: Galvanised | G15: =IF(OR(ISBLANK(D15),ISBLANK(E15)),"", IF(E15="Black-S10",VLOOKUP(F15,[1]!pipeEtAl,2),IF(E15="Black-S40",VLOOKUP(F15,[1]!pipeEtAl,3),IF(E15="CPVC",VLOOKUP(F15,[1]!pipeEtAl,4),IF(E15="DynaFlow-S10",VLOOKUP(F15,[1]!pipeEtAl,5),IF(E15="DynaThread",VLOOKUP(F15,[1]!pipeEtAl,6),IF(E15="Galvanised",VLOOKUP(F15,[1]!pipeEtAl,7) ))))))) ->  | H15: per foot | I15: 0 | J15: 0 | K15: 0 | O15: 0 | Q15: =IF(E15="Black-S40",D15*$T$10,IF(E15="DynaFlow-S10",$T$15*D15,IF(E15="CPVC",$T$12*D15,IF(E15="Galvanised",D15*$T$13,IF(E15="DynaThread",D15*$T$14,IF(E15="Black-S10",D15*$T$11,"")))))) -> 0 | S15: Dyna-Flow/M-Coat 4" | T15: 4.5 | U15: lb/ft | V15: T15
B16: 7 | E16: Galvanised | G16: =IF(OR(ISBLANK(D16),ISBLANK(E16)),"", IF(E16="Black-S10",VLOOKUP(F16,[1]!pipeEtAl,2),IF(E16="Black-S40",VLOOKUP(F16,[1]!pipeEtAl,3),IF(E16="CPVC",VLOOKUP(F16,[1]!pipeEtAl,4),IF(E16="DynaFlow-S10",VLOOKUP(F16,[1]!pipeEtAl,5),IF(E16="DynaThread",VLOOKUP(F16,[1]!pipeEtAl,6),IF(E16="Galvanised",VLOOKUP(F16,[1]!pipeEtAl,7) ))))))) ->  | H16: per foot | I16: 0 | J16: 0 | K16: 0 | O16: 0 | Q16: =IF(E16="Black-S40",D16*$T$10,IF(E16="DynaFlow-S10",$T$15*D16,IF(E16="CPVC",$T$12*D16,IF(E16="Galvanised",D16*$T$13,IF(E16="DynaThread",D16*$T$14,IF(E16="Black-S10",D16*$T$11,"")))))) -> 0
B17: 8 | G17: =IF(OR(ISBLANK(D17),ISBLANK(E17)),"", IF(E17="Black-S10",VLOOKUP(F17,[1]!pipeEtAl,2),IF(E17="Black-S40",VLOOKUP(F17,[1]!pipeEtAl,3),IF(E17="CPVC",VLOOKUP(F17,[1]!pipeEtAl,4),IF(E17="DynaFlow-S10",VLOOKUP(F17,[1]!pipeEtAl,5),IF(E17="DynaThread",VLOOKUP(F17,[1]!pipeEtAl,6),IF(E17="Galvanised",VLOOKUP(F17,[1]!pipeEtAl,7) ))))))) ->  | H17: per foot | I17: 0 | J17: 0 | K17: 0 | O17: 0
B18: 9 | G18: =IF(OR(ISBLANK(D18),ISBLANK(E18)),"", IF(E18="Black-S10",VLOOKUP(F18,[1]!pipeEtAl,2),IF(E18="Black-S40",VLOOKUP(F18,[1]!pipeEtAl,3),IF(E18="CPVC",VLOOKUP(F18,[1]!pipeEtAl,4),IF(E18="DynaFlow-S10",VLOOKUP(F18,[1]!pipeEtAl,5),IF(E18="DynaThread",VLOOKUP(F18,[1]!pipeEtAl,6),IF(E18="Galvanised",VLOOKUP(F18,[1]!pipeEtAl,7) ))))))) ->  | H18: per foot | I18: 0 | J18: 0 | K18: 0 | O18: 0
B19: 10 | G19: =IF(OR(ISBLANK(D19),ISBLANK(E19)),"", IF(E19="Black-S10",VLOOKUP(F19,[1]!pipeEtAl,2),IF(E19="Black-S40",VLOOKUP(F19,[1]!pipeEtAl,3),IF(E19="CPVC",VLOOKUP(F19,[1]!pipeEtAl,4),IF(E19="DynaFlow-S10",VLOOKUP(F19,[1]!pipeEtAl,5),IF(E19="DynaThread",VLOOKUP(F19,[1]!pipeEtAl,6),IF(E19="Galvanised",VLOOKUP(F19,[1]!pipeEtAl,7) ))))))) ->  | H19: per foot | I19: 0 | J19: 0 | K19: 0 | O19: 0
B20: 11 | G20: =IF(OR(ISBLANK(D20),ISBLANK(E20)),"", IF(E20="Black-S10",VLOOKUP(F20,[1]!pipeEtAl,2),IF(E20="Black-S40",VLOOKUP(F20,[1]!pipeEtAl,3),IF(E20="CPVC",VLOOKUP(F20,[1]!pipeEtAl,4),IF(E20="DynaFlow-S10",VLOOKUP(F20,[1]!pipeEtAl,5),IF(E20="DynaThread",VLOOKUP(F20,[1]!pipeEtAl,6),IF(E20="Galvanised",VLOOKUP(F20,[1]!pipeEtAl,7) ))))))) ->  | H20: per foot | I20: 0 | J20: 0 | K20: 0 | O20: 0
B21: 12 | G21: =IF(OR(ISBLANK(D21),ISBLANK(E21)),"", IF(E21="Black-S10",VLOOKUP(F21,[1]!pipeEtAl,2),IF(E21="Black-S40",VLOOKUP(F21,[1]!pipeEtAl,3),IF(E21="CPVC",VLOOKUP(F21,[1]!pipeEtAl,4),IF(E21="DynaFlow-S10",VLOOKUP(F21,[1]!pipeEtAl,5),IF(E21="DynaThread",VLOOKUP(F21,[1]!pipeEtAl,6),IF(E21="Galvanised",VLOOKUP(F21,[1]!pipeEtAl,7) ))))))) ->  | H21: per foot | I21: 0 | J21: 0 | K21: 0 | O21: 0
B22: 13 | G22: =IF(OR(ISBLANK(D22),ISBLANK(E22)),"", IF(E22="Black-S10",VLOOKUP(F22,[1]!pipeEtAl,2),IF(E22="Black-S40",VLOOKUP(F22,[1]!pipeEtAl,3),IF(E22="CPVC",VLOOKUP(F22,[1]!pipeEtAl,4),IF(E22="DynaFlow-S10",VLOOKUP(F22,[1]!pipeEtAl,5),IF(E22="DynaThread",VLOOKUP(F22,[1]!pipeEtAl,6),IF(E22="Galvanised",VLOOKUP(F22,[1]!pipeEtAl,7) ))))))) ->  | H22: per foot | I22: 0 | J22: 0 | K22: 0 | O22: 0
B23: 14 | G23: =IF(OR(ISBLANK(D23),ISBLANK(E23)),"", IF(E23="Black-S10",VLOOKUP(F23,[1]!pipeEtAl,2),IF(E23="Black-S40",VLOOKUP(F23,[1]!pipeEtAl,3),IF(E23="CPVC",VLOOKUP(F23,[1]!pipeEtAl,4),IF(E23="DynaFlow-S10",VLOOKUP(F23,[1]!pipeEtAl,5),IF(E23="DynaThread",VLOOKUP(F23,[1]!pipeEtAl,6),IF(E23="Galvanised",VLOOKUP(F23,[1]!pipeEtAl,7) ))))))) ->  | H23: per foot | I23: 0 | J23: 0 | K23: 0 | O23: 0
B24: 15 | G24: =IF(OR(ISBLANK(D24),ISBLANK(E24)),"", IF(E24="Black-S10",VLOOKUP(F24,[1]!pipeEtAl,2),IF(E24="Black-S40",VLOOKUP(F24,[1]!pipeEtAl,3),IF(E24="CPVC",VLOOKUP(F24,[1]!pipeEtAl,4),IF(E24="DynaFlow-S10",VLOOKUP(F24,[1]!pipeEtAl,5),IF(E24="DynaThread",VLOOKUP(F24,[1]!pipeEtAl,6),IF(E24="Galvanised",VLOOKUP(F24,[1]!pipeEtAl,7) ))))))) ->  | H24: per foot | I24: 0 | J24: 0 | K24: 0 | O24: 0
B25: 16 | G25: =IF(OR(ISBLANK(D25),ISBLANK(E25)),"", IF(E25="Black-S10",VLOOKUP(F25,[1]!pipeEtAl,2),IF(E25="Black-S40",VLOOKUP(F25,[1]!pipeEtAl,3),IF(E25="CPVC",VLOOKUP(F25,[1]!pipeEtAl,4),IF(E25="DynaFlow-S10",VLOOKUP(F25,[1]!pipeEtAl,5),IF(E25="DynaThread",VLOOKUP(F25,[1]!pipeEtAl,6),IF(E25="Galvanised",VLOOKUP(F25,[1]!pipeEtAl,7) ))))))) ->  | H25: per foot | I25: 0 | J25: 0 | K25: 0 | O25: 0
B26: 17 | G26: =IF(OR(ISBLANK(D26),ISBLANK(E26)),"", IF(E26="Black-S10",VLOOKUP(F26,[1]!pipeEtAl,2),IF(E26="Black-S40",VLOOKUP(F26,[1]!pipeEtAl,3),IF(E26="CPVC",VLOOKUP(F26,[1]!pipeEtAl,4),IF(E26="DynaFlow-S10",VLOOKUP(F26,[1]!pipeEtAl,5),IF(E26="DynaThread",VLOOKUP(F26,[1]!pipeEtAl,6),IF(E26="Galvanised",VLOOKUP(F26,[1]!pipeEtAl,7) ))))))) ->  | H26: per foot | I26: 0 | J26: 0 | K26: 0 | O26: 0
B27: 18 | G27: =IF(OR(ISBLANK(D27),ISBLANK(E27)),"", IF(E27="Black-S10",VLOOKUP(F27,[1]!pipeEtAl,2),IF(E27="Black-S40",VLOOKUP(F27,[1]!pipeEtAl,3),IF(E27="CPVC",VLOOKUP(F27,[1]!pipeEtAl,4),IF(E27="DynaFlow-S10",VLOOKUP(F27,[1]!pipeEtAl,5),IF(E27="DynaThread",VLOOKUP(F27,[1]!pipeEtAl,6),IF(E27="Galvanised",VLOOKUP(F27,[1]!pipeEtAl,7) ))))))) ->  | H27: per foot | I27: 0 | J27: 0 | K27: 0 | O27: 0
B28: 19 | G28: =IF(OR(ISBLANK(D28),ISBLANK(E28)),"", IF(E28="Black-S10",VLOOKUP(F28,[1]!pipeEtAl,2),IF(E28="Black-S40",VLOOKUP(F28,[1]!pipeEtAl,3),IF(E28="CPVC",VLOOKUP(F28,[1]!pipeEtAl,4),IF(E28="DynaFlow-S10",VLOOKUP(F28,[1]!pipeEtAl,5),IF(E28="DynaThread",VLOOKUP(F28,[1]!pipeEtAl,6),IF(E28="Galvanised",VLOOKUP(F28,[1]!pipeEtAl,7) ))))))) ->  | H28: per foot | I28: 0 | J28: 0 | K28: 0 | O28: 0
B29: 20 | G29: =IF(OR(ISBLANK(D29),ISBLANK(E29)),"", IF(E29="Black-S10",VLOOKUP(F29,[1]!pipeEtAl,2),IF(E29="Black-S40",VLOOKUP(F29,[1]!pipeEtAl,3),IF(E29="CPVC",VLOOKUP(F29,[1]!pipeEtAl,4),IF(E29="DynaFlow-S10",VLOOKUP(F29,[1]!pipeEtAl,5),IF(E29="DynaThread",VLOOKUP(F29,[1]!pipeEtAl,6),IF(E29="Galvanised",VLOOKUP(F29,[1]!pipeEtAl,7) ))))))) ->  | H29: per foot | I29: 0 | J29: 0 | K29: 0 | O29: 0
B30: 21 | G30: =IF(OR(ISBLANK(D30),ISBLANK(E30)),"", IF(E30="Black-S10",VLOOKUP(F30,[1]!pipeEtAl,2),IF(E30="Black-S40",VLOOKUP(F30,[1]!pipeEtAl,3),IF(E30="CPVC",VLOOKUP(F30,[1]!pipeEtAl,4),IF(E30="DynaFlow-S10",VLOOKUP(F30,[1]!pipeEtAl,5),IF(E30="DynaThread",VLOOKUP(F30,[1]!pipeEtAl,6),IF(E30="Galvanised",VLOOKUP(F30,[1]!pipeEtAl,7) ))))))) ->  | H30: per foot | I30: 0 | J30: 0 | K30: 0 | O30: 0
B31: 22 | G31: =IF(OR(ISBLANK(D31),ISBLANK(E31)),"", IF(E31="Black-S10",VLOOKUP(F31,[1]!pipeEtAl,2),IF(E31="Black-S40",VLOOKUP(F31,[1]!pipeEtAl,3),IF(E31="CPVC",VLOOKUP(F31,[1]!pipeEtAl,4),IF(E31="DynaFlow-S10",VLOOKUP(F31,[1]!pipeEtAl,5),IF(E31="DynaThread",VLOOKUP(F31,[1]!pipeEtAl,6),IF(E31="Galvanised",VLOOKUP(F31,[1]!pipeEtAl,7) ))))))) ->  | H31: per foot | I31: 0 | J31: 0 | K31: 0 | O31: 0
B32: 23 | G32: =IF(OR(ISBLANK(D32),ISBLANK(E32)),"", IF(E32="Black-S10",VLOOKUP(F32,[1]!pipeEtAl,2),IF(E32="Black-S40",VLOOKUP(F32,[1]!pipeEtAl,3),IF(E32="CPVC",VLOOKUP(F32,[1]!pipeEtAl,4),IF(E32="DynaFlow-S10",VLOOKUP(F32,[1]!pipeEtAl,5),IF(E32="DynaThread",VLOOKUP(F32,[1]!pipeEtAl,6),IF(E32="Galvanised",VLOOKUP(F32,[1]!pipeEtAl,7) ))))))) ->  | H32: per foot | I32: 0 | J32: 0 | K32: 0 | O32: 0
B33: 24 | G33: =IF(OR(ISBLANK(D33),ISBLANK(E33)),"", IF(E33="Black-S10",VLOOKUP(F33,[1]!pipeEtAl,2),IF(E33="Black-S40",VLOOKUP(F33,[1]!pipeEtAl,3),IF(E33="CPVC",VLOOKUP(F33,[1]!pipeEtAl,4),IF(E33="DynaFlow-S10",VLOOKUP(F33,[1]!pipeEtAl,5),IF(E33="DynaThread",VLOOKUP(F33,[1]!pipeEtAl,6),IF(E33="Galvanised",VLOOKUP(F33,[1]!pipeEtAl,7) ))))))) ->  | H33: per foot | I33: 0 | J33: 0 | K33: 0 | O33: 0
B34: 25 | G34: =IF(OR(ISBLANK(D34),ISBLANK(E34)),"", IF(E34="Black-S10",VLOOKUP(F34,[1]!pipeEtAl,2),IF(E34="Black-S40",VLOOKUP(F34,[1]!pipeEtAl,3),IF(E34="CPVC",VLOOKUP(F34,[1]!pipeEtAl,4),IF(E34="DynaFlow-S10",VLOOKUP(F34,[1]!pipeEtAl,5),IF(E34="DynaThread",VLOOKUP(F34,[1]!pipeEtAl,6),IF(E34="Galvanised",VLOOKUP(F34,[1]!pipeEtAl,7) ))))))) ->  | H34: per foot | I34: 0 | J34: 0 | K34: 0 | O34: 0
D36: =+SUM(D9:D35) -> 0 | E36: Linear Feet of Pipe | I36: =SUM(I9:I35) -> 0 | J36: Sticks of pipe | O36: =IF(N6>0,SUM(O9:O35)+(SUM(O9:O35))*O6,SUM(O9:O35)) -> 0 | Q36: =SUM(Q9:Q35) -> 0
D38: =IF(D36>0,D36&" "&E36,"") -> 
D39: Ref:
E40: http://www.pipeflowcalculations.com/tables/schedule-40.php
D42: =CEILING(2,21) -> 21

Sheet D Mech-T
D1: To Table of Contents
D3: Rev: 2016-01-07 14:00
E5: =MID(CELL("filename",A1),FIND("]",CELL("filename",A1))+1,255) -> D Mech-T
E6: Click in a cell below to change a line item | N6: 1 | O6: =+UTsalesTax -> 0.071
E7: from the list | O7: =+O31 -> 0
D8: Eight | E8: =CHAR(242) -> ò
D9: # | E9: Description Drop-down Pick-List | F9: Either | G9: Or | H9: Unit | J9: Extension | K9: Totals | O9: Final
B10: 1 | E10: Mech Tee PTD 6 x 1.5 | F10: =IF(OR(ISBLANK(D10),ISBLANK(E10)),"",INDEX([1]!mechTeezEtAl,MATCH(E10,[1]!wetMechTeezDesc,0),3)) ->  | J10: =IF(D10>0,IF(G10>0,D10*G10,D10*F10),"") ->  | K10: =+J10 ->  | O10: =+K10 -> 
B11: =+B10+1 -> 2 | F11: =IF(OR(ISBLANK(D11),ISBLANK(E11)),"",INDEX([1]!mechTeezEtAl,MATCH(E11,[1]!wetMechTeezDesc,0),3)) ->  | K11: =+J11 -> 
B12: 3 | F12: =IF(OR(ISBLANK(D12),ISBLANK(E12)),"",INDEX([1]!mechTeezEtAl,MATCH(E12,[1]!wetMechTeezDesc,0),3)) -> 
B13: 4 | F13: =IF(OR(ISBLANK(D13),ISBLANK(E13)),"",INDEX([1]!mechTeezEtAl,MATCH(E13,[1]!wetMechTeezDesc,0),3)) -> 
B14: 5 | F14: =IF(OR(ISBLANK(D14),ISBLANK(E14)),"",INDEX([1]!mechTeezEtAl,MATCH(E14,[1]!wetMechTeezDesc,0),3)) -> 
B15: 6 | F15: =IF(OR(ISBLANK(D15),ISBLANK(E15)),"",INDEX([1]!mechTeezEtAl,MATCH(E15,[1]!wetMechTeezDesc,0),3)) -> 
B16: 7 | F16: =IF(OR(ISBLANK(D16),ISBLANK(E16)),"",INDEX([1]!mechTeezEtAl,MATCH(E16,[1]!wetMechTeezDesc,0),3)) -> 
B17: 8 | F17: =IF(OR(ISBLANK(D17),ISBLANK(E17)),"",INDEX([1]!mechTeezEtAl,MATCH(E17,[1]!wetMechTeezDesc,0),3)) -> 
B18: 9 | F18: =IF(OR(ISBLANK(D18),ISBLANK(E18)),"",INDEX([1]!mechTeezEtAl,MATCH(E18,[1]!wetMechTeezDesc,0),3)) -> 
B19: 10 | F19: =IF(OR(ISBLANK(D19),ISBLANK(E19)),"",INDEX([1]!mechTeezEtAl,MATCH(E19,[1]!wetMechTeezDesc,0),3)) -> 
B20: 11 | F20: =IF(OR(ISBLANK(D20),ISBLANK(E20)),"",INDEX([1]!mechTeezEtAl,MATCH(E20,[1]!wetMechTeezDesc,0),3)) -> 
B21: 12 | F21: =IF(OR(ISBLANK(D21),ISBLANK(E21)),"",INDEX([1]!mechTeezEtAl,MATCH(E21,[1]!wetMechTeezDesc,0),3)) -> 
B22: 13 | F22: =IF(OR(ISBLANK(D22),ISBLANK(E22)),"",INDEX([1]!mechTeezEtAl,MATCH(E22,[1]!wetMechTeezDesc,0),3)) -> 
B23: 14 | F23: =IF(OR(ISBLANK(D23),ISBLANK(E23)),"",INDEX([1]!mechTeezEtAl,MATCH(E23,[1]!wetMechTeezDesc,0),3)) -> 
B24: 15 | F24: =IF(OR(ISBLANK(D24),ISBLANK(E24)),"",INDEX([1]!mechTeezEtAl,MATCH(E24,[1]!wetMechTeezDesc,0),3)) -> 
B25: 16 | F25: =IF(OR(ISBLANK(D25),ISBLANK(E25)),"",INDEX([1]!mechTeezEtAl,MATCH(E25,[1]!wetMechTeezDesc,0),3)) -> 
B26: 17 | F26: =IF(OR(ISBLANK(D26),ISBLANK(E26)),"",INDEX([1]!mechTeezEtAl,MATCH(E26,[1]!wetMechTeezDesc,0),3)) -> 
B27: 18 | F27: =IF(OR(ISBLANK(D27),ISBLANK(E27)),"",INDEX([1]!mechTeezEtAl,MATCH(E27,[1]!wetMechTeezDesc,0),3)) -> 
B28: 19 | F28: =IF(OR(ISBLANK(D28),ISBLANK(E28)),"",INDEX([1]!mechTeezEtAl,MATCH(E28,[1]!wetMechTeezDesc,0),3)) -> 
B29: 20 | F29: =IF(OR(ISBLANK(D29),ISBLANK(E29)),"",INDEX([1]!mechTeezEtAl,MATCH(E29,[1]!wetMechTeezDesc,0),3)) -> 
D31: =+SUM(D9:D30) -> 0 | O31: =IF(N6>0,SUM(O9:O30)+(SUM(O9:O30))*O6,SUM(O9:O30)) -> 0

Sheet E Weldlets
D1: To Table of Contents
D3: Rev: 2017-04-13 13:30
E5: =MID(CELL("filename",A1),FIND("]",CELL("filename",A1))+1,255) -> E Weldlets | F5: Couplings & RC's
E6: Click in a cell below to change a line item | N6: 1 | O6: =+UTsalesTax -> 0.071
E7: from the list | O7: =+O31 -> 0
D8: Nine | E8: =CHAR(242) -> ò
D9: # | E9: Description Drop-down Pick-List | F9: Either | G9: Or | J9: Extension | K9: Totals | O9: Final
B10: 1 | E10: Anvil Reducing Coupling RC-2 1x1/2" | F10: =IF(OR(ISBLANK(D10),ISBLANK(E10)),"",INDEX([1]!weldCoupleEtAl,MATCH(E10,[1]!weldCoupleDesc,0),3)) ->  | J10: =IF(D10>0,IF(G10>0,D10*G10,D10*F10),"") ->  | K10: =+J10 ->  | O10: =+K10 -> 
B11: =+B10+1 -> 2 | F11: =IF(OR(ISBLANK(D11),ISBLANK(E11)),"",INDEX([1]!weldCoupleEtAl,MATCH(E11,[1]!weldCoupleDesc,0),3)) -> 
B12: 3 | F12: =IF(OR(ISBLANK(D12),ISBLANK(E12)),"",INDEX([1]!weldCoupleEtAl,MATCH(E12,[1]!weldCoupleDesc,0),3)) -> 
B13: 4 | F13: =IF(OR(ISBLANK(D13),ISBLANK(E13)),"",INDEX([1]!weldCoupleEtAl,MATCH(E13,[1]!weldCoupleDesc,0),3)) -> 
B14: 5 | F14: =IF(OR(ISBLANK(D14),ISBLANK(E14)),"",INDEX([1]!weldCoupleEtAl,MATCH(E14,[1]!weldCoupleDesc,0),3)) -> 
B15: 6 | F15: =IF(OR(ISBLANK(D15),ISBLANK(E15)),"",INDEX([1]!weldCoupleEtAl,MATCH(E15,[1]!weldCoupleDesc,0),3)) -> 
B16: 7 | F16: =IF(OR(ISBLANK(D16),ISBLANK(E16)),"",INDEX([1]!weldCoupleEtAl,MATCH(E16,[1]!weldCoupleDesc,0),3)) -> 
B17: 8 | F17: =IF(OR(ISBLANK(D17),ISBLANK(E17)),"",INDEX([1]!weldCoupleEtAl,MATCH(E17,[1]!weldCoupleDesc,0),3)) -> 
B18: 9 | F18: =IF(OR(ISBLANK(D18),ISBLANK(E18)),"",INDEX([1]!weldCoupleEtAl,MATCH(E18,[1]!weldCoupleDesc,0),3)) -> 
B19: 10 | F19: =IF(OR(ISBLANK(D19),ISBLANK(E19)),"",INDEX([1]!weldCoupleEtAl,MATCH(E19,[1]!weldCoupleDesc,0),3)) -> 
B20: 11 | F20: =IF(OR(ISBLANK(D20),ISBLANK(E20)),"",INDEX([1]!weldCoupleEtAl,MATCH(E20,[1]!weldCoupleDesc,0),3)) -> 
B21: 12 | F21: =IF(OR(ISBLANK(D21),ISBLANK(E21)),"",INDEX([1]!weldCoupleEtAl,MATCH(E21,[1]!weldCoupleDesc,0),3)) -> 
B22: 13 | F22: =IF(OR(ISBLANK(D22),ISBLANK(E22)),"",INDEX([1]!weldCoupleEtAl,MATCH(E22,[1]!weldCoupleDesc,0),3)) -> 
B23: 14 | F23: =IF(OR(ISBLANK(D23),ISBLANK(E23)),"",INDEX([1]!weldCoupleEtAl,MATCH(E23,[1]!weldCoupleDesc,0),3)) ->  | K23: =+J23 ->  | O23: =+K23 -> 
B24: 15 | F24: =IF(OR(ISBLANK(D24),ISBLANK(E24)),"",INDEX([1]!weldCoupleEtAl,MATCH(E24,[1]!weldCoupleDesc,0),3)) -> 
B25: 16 | F25: =IF(OR(ISBLANK(D25),ISBLANK(E25)),"",INDEX([1]!weldCoupleEtAl,MATCH(E25,[1]!weldCoupleDesc,0),3)) -> 
B26: 17 | F26: =IF(OR(ISBLANK(D26),ISBLANK(E26)),"",INDEX([1]!weldCoupleEtAl,MATCH(E26,[1]!weldCoupleDesc,0),3)) -> 
B27: 18 | F27: =IF(OR(ISBLANK(D27),ISBLANK(E27)),"",INDEX([1]!weldCoupleEtAl,MATCH(E27,[1]!weldCoupleDesc,0),3)) -> 
B28: 19 | F28: =IF(OR(ISBLANK(D28),ISBLANK(E28)),"",INDEX([1]!weldCoupleEtAl,MATCH(E28,[1]!weldCoupleDesc,0),3)) -> 
B29: 20
D31: =SUM(D9:D30) -> 0 | E31: Weldlets & Fab Parts etc | O31: =IF(N6>0,SUM(O9:O30)+(SUM(O9:O30))*O6,SUM(O9:O30)) -> 0

Sheet F Hangars
D1: To Table of Contents
D3: Rev: 2016-10-30 13:25
E5: =MID(CELL("filename",A1),FIND("]",CELL("filename",A1))+1,255) -> F Hangars
E6: Click in a cell below to change a line item | N6: 1 | O6: =+UTsalesTax -> 0.071
E7: from the list | O7: =+O41 -> 0
E8: =CHAR(242) -> ò
D9: # | E9: Description Drop-down Pick-List | F9: Either | G9: Or | H9: Unit | J9: Extension | K9: Totals | O9: Final
B10: 1 | D10: 1 | E10: Hanger 1.00" | J10: =IF(D10>0,IF(G10>0,D10*G10,D10*F10),"") -> 0 | K10: =+J10 -> 0 | O10: =+K10 -> 0
B11: =+B10+1 -> 2 | E11: Beam Clamps 1/2" | F11: =IF(D11>0,VLOOKUP(E11,[1]!HangersEtAl,4),"") -> 
B12: 3 | E12: Hanger 1.00" | F12: =IF(D12>0,VLOOKUP(E12,[1]!HangersEtAl,4),"") -> 
B13: 4 | E13: Hanger 1.25" | F13: =IF(D13>0,VLOOKUP(E13,[1]!HangersEtAl,4),"") -> 
B14: 5 | E14: Hanger 1.50" | F14: =IF(D14>0,VLOOKUP(E14,[1]!HangersEtAl,4),"") -> 
B15: 6 | E15: Hanger 2.00" | F15: =IF(D15>0,VLOOKUP(E15,[1]!HangersEtAl,4),"") -> 
B16: 7 | E16: Hanger 2.50" | F16: =IF(D16>0,VLOOKUP(E16,[1]!HangersEtAl,4),"") -> 
B17: 8 | E17: Hanger 3" | F17: =IF(D17>0,VLOOKUP(E17,[1]!HangersEtAl,4),"") -> 
B18: 9 | E18: Hanger 4" | F18: =IF(D18>0,VLOOKUP(E18,[1]!HangersEtAl,4),"") -> 
B19: 10 | E19: Hanger Ring 1.5 x 6 IPS each | F19: =IF(D19>0,VLOOKUP(E19,[1]!HangersEtAl,4),"") -> 
B20: 11 | E20: Hanger Side STL Beam 1.5" each | F20: =IF(D20>0,VLOOKUP(E20,[1]!HangersEtAl,4),"") -> 
B21: 12 | E21: Sammy Wood Horiz 25 per box | F21: =IF(D21>0,VLOOKUP(E21,[1]!HangersEtAl,4),"") -> 
B22: 13 | E22: Sammy Wood Pendant 25 per box | F22: =IF(D22>0,VLOOKUP(E22,[1]!HangersEtAl,4),"") -> 
B23: 14 | E23: SDWNDR Wood 3/8 horiz SWG20 per case of 100 | F23: =IF(D23>0,VLOOKUP(E23,[1]!HangersEtAl,4),"") -> 
B24: 15 | E24: Strut 1-5/8 x1-5/8 x 10 12 GREE H/SL each | F24: =IF(D24>0,VLOOKUP(E24,[1]!HangersEtAl,4),"") -> 
B25: 16 | E25: Strut Clamp 1.5" IPS Plated | F25: =IF(D25>0,VLOOKUP(E25,[1]!HangersEtAl,4),"") -> 
B26: 17 | E26: Sway Bracing 1.50x1 | F26: =IF(D26>0,VLOOKUP(E26,[1]!HangersEtAl,4),"") -> 
B27: 18 | E27: Sway Bracing EQ 4" | F27: =IF(D27>0,VLOOKUP(E27,[1]!HangersEtAl,4),"") -> 
B28: 19 | E28: Sway Bracing lag bolts each | F28: =IF(D28>0,VLOOKUP(E28,[1]!HangersEtAl,4),"") -> 
B29: 20 | E29: Sway Bracing lag bolts each | F29: =IF(D29>0,VLOOKUP(E29,[1]!HangersEtAl,4),"") -> 
B30: 21 | E30: Sway Bracing Lck End attach | F30: =IF(D30>0,VLOOKUP(E30,[1]!HangersEtAl,4),"") -> 
B31: 22 | E31: Wdg Anchr 3/8x2-3/4 CS TRUBLT | F31: =IF(D31>0,VLOOKUP(E31,[1]!HangersEtAl,4),"") -> 
B32: 23 | E32: Sway Bracing EQ 4" | F32: =IF(D32>0,VLOOKUP(E32,[1]!HangersEtAl,4),"") -> 
B33: 24 | E33: Sway Bracing lag bolts each | F33: =IF(D33>0,VLOOKUP(E33,[1]!HangersEtAl,4),"") -> 
B34: 25 | E34: Sway Bracing Lock-In attachment (Quick-End) Afcon A077G | F34: =IF(D34>0,VLOOKUP(E34,[1]!HangersEtAl,4),"") -> 
B35: 26 | E35: TolCo 136010 Dble Faster Side Mount strap-type for CPVC per 100 | F35: =IF(D35>0,VLOOKUP(E35,[1]!HangersEtAl,4),"") -> 
B36: 27 | E36: Trubolt (RedHead) Wedge Anchr 3/8x2-3/4 CS WA38234 $106 per 100 | F36: =IF(D36>0,VLOOKUP(E36,[1]!HangersEtAl,4),"") -> 
B37: 28 | E37: Unistrut $2.5 per foot per 10 feet: | F37: =IF(D37>0,VLOOKUP(E37,[1]!HangersEtAl,4),"") -> 
B38: 29 | F38: =IF(D38>0,VLOOKUP(E38,[1]!HangersEtAl,4),"") -> 
B39: 30 | F39: =IF(D39>0,VLOOKUP(E39,[1]!HangersEtAl,4),"") -> 
D41: =+SUM(D9:D40) -> 1 | E41: Hangers & Clamps etc | O41: =IF(N6>0,SUM(O9:O40)+(SUM(O9:O40))*O6,SUM(O9:O40)) -> 0

Sheet G Valves
D1: To Table of Contents
D3: Rev: 2017-01-07 14:15 | H3: NXT 768 Installation and Maintenance Manual
E5: =MID(CELL("filename",A1),FIND("]",CELL("filename",A1))+1,255) &", and see BFP's at bottom of this Page" -> G Valves, and see BFP's at bottom of this Page
E6: Click in a cell below to change a line item | H6: Double-Click to see the WHOLE manual | N6: 1 | O6: =+UTsalesTax -> 0.071
E7: from the list | O7: =+O40 -> 0
E8: =CHAR(242) -> ò
D9: # | E9: Description Drop-down Pick-List | F9: Either | G9: Or | H9: Unit | J9: Extension | K9: Totals | O9: Final
B10: 1 | E10: Adapter addition 4X2-1/2X2-1/2 STRT SGL CLPR | F10: =IF(D10>0,VLOOKUP(E10,[1]!valvesEtAl,3),"") ->  | J10: =IF(D10>0,IF(G10>0,D10*G10,D10*F10),"") ->  | K10: =+J10 ->  | O10: =+K10 -> 
B11: =+B10+1 -> 2 | E11: Adapter Swivel 2-1/2 FNST X 3 FNPT RB | F11: =IF(D11>0,VLOOKUP(E11,[1]!valvesEtAl,3),"") -> 
B12: 3 | E12: Butterfly or Gate Valve 6" Flange x Flange w/HandWheel | F12: =IF(D12>0,VLOOKUP(E12,[1]!valvesEtAl,3),"") -> 
B13: 4 | E13: Butterfly Valve Grooved 2" 728 | F13: =IF(D13>0,VLOOKUP(E13,[1]!valvesEtAl,3),"") -> 
B14: 5 | E14: Butterfly Valve Grooved 3" | F14: =IF(D14>0,VLOOKUP(E14,[1]!valvesEtAl,3),"") -> 
B15: 6 | E15: Butterfly Valve Grooved 4" | F15: =IF(D15>0,VLOOKUP(E15,[1]!valvesEtAl,3),"") -> 
B16: 7 | E16: Drain 2" | F16: =IF(D16>0,VLOOKUP(E16,[1]!valvesEtAl,3),"") -> 
B17: 8 | E17: Drum drip 1" | F17: =IF(D17>0,VLOOKUP(E17,[1]!valvesEtAl,3),"") -> 
B18: 9 | E18: FDC Croker 2-Way Clapper Inlet Grooved 6010 COMPLETE | F18: =IF(D18>0,VLOOKUP(E18,[1]!valvesEtAl,3),"") -> 
B19: 10 | E19: FDC Croker 2-Way Plate 6900 PB-A PLATE ONLY 4514575995 HD | F19: =IF(D19>0,VLOOKUP(E19,[1]!valvesEtAl,3),"") -> 
B20: 11 | E20: FDC Croker 2-Way Plate 6900 PB-A PLATE ONLY Ferguson | F20: =IF(D20>0,VLOOKUP(E20,[1]!valvesEtAl,3),"") -> 
B21: 12 | E21: FDC Siamese Brass 3" & chk v/v | F21: =IF(D21>0,VLOOKUP(E21,[1]!valvesEtAl,3),"") -> 
B22: 13 | E22: FDC Siamese Brass 4" & chk v/v | F22: =IF(D22>0,VLOOKUP(E22,[1]!valvesEtAl,3),"") -> 
B23: 14 | E23: Gauges for Riser room NEED two, price each is | F23: =IF(D23>0,VLOOKUP(E23,[1]!valvesEtAl,3),"") -> 
B24: 15 | E24: Inspector Test Drain | F24: =IF(D24>0,VLOOKUP(E24,[1]!valvesEtAl,3),"") -> 
B25: 16 | E25: Low-Air Manual Press. Maint. device | F25: =IF(D25>0,VLOOKUP(E25,[1]!valvesEtAl,3),"") -> 
B26: 17 | E26: NXT-746-LPA Accelerator | F26: =IF(D26>0,VLOOKUP(E26,[1]!valvesEtAl,3),"") -> 
B27: 18 | E27: NXT-768N 3" Dry VS-030-N69-403 | F27: =IF(D27>0,VLOOKUP(E27,[1]!valvesEtAl,3),"") -> 
B28: 19 | E28: NXT-768N 4" Dry VS-040-N69-403 | F28: =IF(D28>0,VLOOKUP(E28,[1]!valvesEtAl,3),"") -> 
B29: 20 | E29: NXT-768N 6" Dry VS-060-N69-403 w/776 768 | F29: =IF(D29>0,VLOOKUP(E29,[1]!valvesEtAl,3),"") -> 
B30: 21 | E30: Potter Electric FlowSw PVSRM 3" | F30: =IF(D30>0,VLOOKUP(E30,[1]!valvesEtAl,3),"") -> 
B31: 22 | E31: Potter Electric FlowSw PVSRM 4" | F31: =IF(D31>0,VLOOKUP(E31,[1]!valvesEtAl,3),"") -> 
B32: 23 | E32: NXT-746-LPA Accelerator | F32: =IF(D32>0,VLOOKUP(E32,[1]!valvesEtAl,3),"") ->  | J32: =IF(D32>0,IF(G32>0,D32*G32,D32*F32),"") ->  | K32: =+J32 ->  | O32: =+K32 -> 
E33: Back Flow Preventers
E34: BFP Ames C200 2.5" | F34: =IF(D34>0,VLOOKUP(E34,[1]!wetBFPetAl,2),"") ->  | J34: =IF(D34>0,IF(G34>0,D34*G34,D34*F34),"") ->  | K34: =+J34 ->  | O34: =+K34 -> 
E35: BFP Ames C200 4.0" grv w/tamp | F35: =IF(D35>0,VLOOKUP(E35,[1]!wetBFPetAl,2),"") ->  | J35: =IF(D35>0,IF(G35>0,D35*G35,D35*F35),"") ->  | K35: =+J35 ->  | O35: =+K35 -> 
E36: Deringer D200DC VAL F | F36: =IF(D36>0,VLOOKUP(E36,[1]!wetBFPetAl,2),"") -> 
D40: =+SUM(D9:D39) -> 0 | E40: Valves etc | O40: =IF(N6>0,SUM(O9:O39)+(SUM(O9:O39))*O6,SUM(O9:O39)) -> 0

Sheet H Alms FACP
D1: To Table of Contents | F1: to Alarm Price Sheet
N2: FALSE
D3: Rev: 2018-11-06 17:20
E5: =MID(CELL("filename",A1),FIND("]",CELL("filename",A1))+1,255)&" and see MISCELLANEOUS TOOLS at bottom of page" -> H Alms FACP and see MISCELLANEOUS TOOLS at bottom of page | O5: Sales Tax
E6: Click in a cell below to change a line item | N6: TRUE | O6: =+UTsalesTax -> 0.071
E7: from the list | O7: =IF(N6=TRUE,SUM(O309:O329)*O6+SUM(O309:O329),SUM(O309:O329)) -> 236.62674 | Q7: Miscellany
O8: =IF(N6=TRUE,SUM(O12:O286)+(SUM(O12:O286))*O6,SUM(O12:O286)) -> 0 | Q8: Panels etc
O9: =IF(N6=TRUE,SUM(O291:O306)*O6+SUM(O291:O306),SUM(O291:O306)) -> 412.8705 | Q9: Parts & Accessories
F10: =CHAR(242) -> ò | G10: ò | H10: ò | I10: ò | J10: ò | K10: ò
E11: ò | F11: Remember the SPARE devices for the after-install service & warranty period. You must ADD in the cost of additional units
E12: Alarm Parts | F12: Either | G12: Or | H12: Unit | J12: Extension | K12: Totals | O12: Final
E13: Panels & Annunciators
B14: 0 | E14: Edwards Signals EST (GE)
B15: =+B14+1 -> 1 | E15: Edwards FireShield 5-zone BARE (Deprecated) | F15: =IF(OR(D15<0,D15=""),"",INDEX([1]!AlmPanelESTetAl,MATCH(E15,[1]!AlmPanelESTdesc,0),3)) ->  | J15: =IF(OR(D15="",E15=""),"",IF(G15>0,D15*G15,D15*F15)) ->  | K15: =+J15 ->  | O15: =+K15 -> 
B16: 2 | E16: Edwards Fire Shield 5-zone w/ Dialer +2x Batteries | F16: =IF(OR(D16<0,D16=""),"",INDEX([1]!AlmPanelESTetAl,MATCH(E16,[1]!AlmPanelESTdesc,0),3)) -> 
B17: 3 | E17: EST 36 ANN/B Annunciator 3-LCD Display, 3/6ANN 3-6AN/B Back Box | F17: =IF(OR(D17<0,D17=""),"",INDEX([1]!AlmPanelESTetAl,MATCH(E17,[1]!AlmPanelESTdesc,0),3)) -> 
B18: 4 | E18: EST FA Control Monitor Module 6254A Relay discontinued | F18: =IF(OR(D18<0,D18=""),"",INDEX([1]!AlmPanelESTetAl,MATCH(E18,[1]!AlmPanelESTdesc,0),3)) -> 
B19: 5 | E19: EST 36 ANN/B Annunciator 3-LCD Display, 3/6ANN 3-6AN/B Back Box | F19: =IF(OR(D19<0,D19=""),"",INDEX([1]!AlmPanelESTetAl,MATCH(E19,[1]!AlmPanelESTdesc,0),3)) ->  | K19: =+J19 ->  | O19: =+K19 -> 
B20: 6 | E20: EST FA Control Monitor Module 6254A Relay discontinued | F20: =IF(OR(D20<0,D20=""),"",INDEX([1]!AlmPanelESTetAl,MATCH(E20,[1]!AlmPanelESTdesc,0),3)) -> 
B21: 7 | E21: EST FA Control Monitor Module MR201/C | F21: =IF(OR(D21<0,D21=""),"",INDEX([1]!AlmPanelESTetAl,MATCH(E21,[1]!AlmPanelESTdesc,0),3)) ->  | K21: =+J21 ->  | O21: =+K21 -> 
B22: 8 | E22: EST FA Control Monitor Module PAM-1 | F22: =IF(OR(D22<0,D22=""),"",INDEX([1]!AlmPanelESTetAl,MATCH(E22,[1]!AlmPanelESTdesc,0),3)) -> 
B23: 9 | E23: EST FA Control Monitor Module PAM-1 | F23: =IF(OR(D23<0,D23=""),"",INDEX([1]!AlmPanelESTetAl,MATCH(E23,[1]!AlmPanelESTdesc,0),3)) ->  | K23: =+J23 ->  | O23: =+K23 -> 
B24: 10 | E24: ED GSA-CT-1 Single Input Alarm Contacts for Riser Stack == SK Monitor | F24: =IF(OR(D24<0,D24=""),"",INDEX([1]!AlmPanelESTetAl,MATCH(E24,[1]!AlmPanelESTdesc,0),3)) ->  | J24: =IF(OR(D24="",E24=""),"",IF(G24>0,D24*G24,D24*F24)) ->  | K24: =+J24 ->  | O24: =+K24 -> 
B25: 11 | E25: ED GSA-CT-2 Dual Input Alarm Contacts for Riser Stack === SK Monitor 2 | F25: =IF(OR(D25<0,D25=""),"",INDEX([1]!AlmPanelESTetAl,MATCH(E25,[1]!AlmPanelESTdesc,0),3)) ->  | J25: =IF(OR(D25="",E25=""),"",IF(G25>0,D25*G25,D25*F25)) ->  | K25: =+J25 ->  | O25: =+K25 -> 
B26: 12 | E26: ED GSA-CRR Control Relay for Door Mags or Elevator Reverse Polarity | F26: =IF(OR(D26<0,D26=""),"",INDEX([1]!AlmPanelESTetAl,MATCH(E26,[1]!AlmPanelESTdesc,0),3)) -> 
B27: 13 | J27: =IF(OR(D27="",E27=""),"",IF(G27>0,D27*G27,D27*F27)) ->  | K27: =+J27 ->  | O27: =+K27 -> 
E28: Panels & Annunciators
B29: 0 | E29: Silent Knight SK
B30: 1 | E30: SK-2 Two-Zone Panel Conventional | F30: =IF(OR(D30<0,D30=""),"",INDEX([1]!AlmPanelSKetAl,MATCH(E30,[1]!AlmPanelSKdesc,0),3)) ->  | J30: =IF(OR(D30="",E30=""),"",IF(G30>0,D30*G30,D30*F30)) -> 
B31: 2 | E31: FACP SK-5600 IntelliKnight 25 point Addressable | F31: =IF(OR(D31<0,D31=""),"",INDEX([1]!AlmPanelSKetAl,MATCH(E31,[1]!AlmPanelSKdesc,0),3)) -> 
B32: 3 | E32: FACP SK-5808 IntelliKnight 127 to 198 point Addressable | F32: =IF(OR(D32<0,D32=""),"",INDEX([1]!AlmPanelSKetAl,MATCH(E32,[1]!AlmPanelSKdesc,0),3)) -> 
B33: 4 | E33: FACP SK-5820XL IntelliKnight 127 or 792 point w/SystemSensor w/EVS | F33: =IF(OR(D33<0,D33=""),"",INDEX([1]!AlmPanelSKetAl,MATCH(E33,[1]!AlmPanelSKdesc,0),3)) -> 
B34: 5 | E34: FACP SK-5820XL IntelliKnight 127 to 792 point w/SystemSensor | F34: =IF(OR(D34<0,D34=""),"",INDEX([1]!AlmPanelSKetAl,MATCH(E34,[1]!AlmPanelSKdesc,0),3)) -> 
B35: 6 | E35: SK-5235 LCD Remote Annunciator F/5208 R Conventional | F35: =IF(OR(D35<0,D35=""),"",INDEX([1]!AlmPanelSKetAl,MATCH(E35,[1]!AlmPanelSKdesc,0),3)) ->  | K35: =+J35 ->  | O35: =+K35 -> 
B36: 7 | E36: SK-5635 LCD Remote Annunciator F/5600 R/W | F36: =IF(OR(D36<0,D36=""),"",INDEX([1]!AlmPanelSKetAl,MATCH(E36,[1]!AlmPanelSKdesc,0),3)) -> 
B37: 8 | E37: SK-5860 LCD Remote Annunciator F/5700/5820/5808 R/G Addressable | F37: =IF(OR(D37<0,D37=""),"",INDEX([1]!AlmPanelSKetAl,MATCH(E37,[1]!AlmPanelSKdesc,0),3)) ->  | K37: =+J37 ->  | O37: =+K37 -> 
B38: 9 | E38: zSpare 2 | F38: =IF(OR(D38<0,D38=""),"",INDEX([1]!AlmPanelSKetAl,MATCH(E38,[1]!AlmPanelSKdesc,0),3)) -> 
B39: 10 | E39: zSpare 3 | F39: =IF(OR(D39<0,D39=""),"",INDEX([1]!AlmPanelSKetAl,MATCH(E39,[1]!AlmPanelSKdesc,0),3)) -> 
B40: 11
E41: Panels & Annunciators
B42: 0 | E42: HoneyWell NOTI (Notifier)
B43: 1 | E43: Notifier Addressable Control Mod. NOT-FCM-1-RC | F43: =IF(OR(D43<0,D43=""),"",INDEX([1]!AlmPanellHWellEtAl,MATCH(E43,[1]!AlmPanellHWdesc,0),3)) ->  | J43: =IF(OR(D43="",E43=""),"",IF(G43>0,D43*G43,D43*F43)) ->  | K43: =+J43 ->  | O43: =+K43 -> 
B44: 2 | E44: Firelite ANN-80 80char LCD serial Annunciator | F44: =IF(OR(D44<0,D44=""),"",INDEX([1]!AlmPanellHWellEtAl,MATCH(E44,[1]!AlmPanellHWdesc,0),3)) ->  | J44: =IF(OR(D44="",E44=""),"",IF(G44>0,D44*G44,D44*F44)) ->  | K44: =+J44 ->  | O44: =+K44 -> 
B45: 3 | E45: Notifier Addressable Control Mod. NOT-FCM-1-RC | F45: =IF(OR(D45<0,D45=""),"",INDEX([1]!AlmPanellHWellEtAl,MATCH(E45,[1]!AlmPanellHWdesc,0),3)) -> 
B46: 4 | E46: Firelite ANN-80 80char LCD serial Annunciator | F46: =IF(OR(D46<0,D46=""),"",INDEX([1]!AlmPanellHWellEtAl,MATCH(E46,[1]!AlmPanellHWdesc,0),3)) -> 
B47: 5 | E47: Notifier Addressable Control Mod. NOT-FCM-1-RC | F47: =IF(OR(D47<0,D47=""),"",INDEX([1]!AlmPanellHWellEtAl,MATCH(E47,[1]!AlmPanellHWdesc,0),3)) -> 
B48: 6 | E48: Firelite ANN-80 80char LCD serial Annunciator | F48: =IF(OR(D48<0,D48=""),"",INDEX([1]!AlmPanellHWellEtAl,MATCH(E48,[1]!AlmPanellHWdesc,0),3)) -> 
B49: 7 | E49: Notifier Addressable Control Mod. NOT-FCM-1-RC | F49: =IF(OR(D49<0,D49=""),"",INDEX([1]!AlmPanellHWellEtAl,MATCH(E49,[1]!AlmPanellHWdesc,0),3)) -> 
B50: 8 | E50: Firelite ANN-80 80char LCD serial Annunciator | F50: =IF(OR(D50<0,D50=""),"",INDEX([1]!AlmPanellHWellEtAl,MATCH(E50,[1]!AlmPanellHWdesc,0),3)) -> 
B51: 9 | E51: Notifier Addressable Control Mod. NOT-FCM-1-RC | F51: =IF(OR(D51<0,D51=""),"",INDEX([1]!AlmPanellHWellEtAl,MATCH(E51,[1]!AlmPanellHWdesc,0),3)) -> 
B52: 10 | E52: Firelite ANN-80 80char LCD serial Annunciator | F52: =IF(OR(D52<0,D52=""),"",INDEX([1]!AlmPanellHWellEtAl,MATCH(E52,[1]!AlmPanellHWdesc,0),3)) -> 
B53: 11 | E53: Notifier Addressable Control Mod. NOT-FCM-1-RC | F53: =IF(OR(D53<0,D53=""),"",INDEX([1]!AlmPanellHWellEtAl,MATCH(E53,[1]!AlmPanellHWdesc,0),3)) -> 
B54: 12 | E54: Firelite ANN-80 80char LCD serial Annunciator | F54: =IF(OR(D54<0,D54=""),"",INDEX([1]!AlmPanellHWellEtAl,MATCH(E54,[1]!AlmPanellHWdesc,0),3)) -> 
B55: 13 | J55: =IF(OR(D55="",E55=""),"",IF(G55>0,D55*G55,D55*F55)) ->  | K55: =+J55 ->  | O55: =+K55 -> 
E56: Panels & Annunciators
B57: 0 | E57: Vigilant VS Note: prefix FSS means a BUILD from BARE. A complete package
B58: 1 | E58: Annunciator Remote RLCD/RLED or Equivalent | F58: =IF(OR(D58<0,D58=""),"",INDEX([1]!AlmPanelVigEtAl,MATCH(E58,[1]!AlmPanelVigDesc,0),3)) ->  | J58: =IF(OR(D58="",E58=""),"",IF(G58>0,D58*G58,D58*F58)) ->  | K58: =+J58 ->  | O58: =+K58 -> 
B59: 2 | E59: SA-ETH-VS-1/2 Ethernet adapter | F59: =IF(OR(D59<0,D59=""),"",INDEX([1]!AlmPanelVigEtAl,MATCH(E59,[1]!AlmPanelVigDesc,0),3)) -> 
B60: 3 | E60: Vigilant Annunciator Basic Internal | F60: =IF(OR(D60<0,D60=""),"",INDEX([1]!AlmPanelVigEtAl,MATCH(E60,[1]!AlmPanelVigDesc,0),3)) -> 
B61: 4 | E61: VS-1 FSS Basic Gray 1 Loop System (xx-zone) w-Adap & Eth NO dialer | F61: =IF(OR(D61<0,D61=""),"",INDEX([1]!AlmPanelVigEtAl,MATCH(E61,[1]!AlmPanelVigDesc,0),3)) -> 
B62: 5 | E62: VS-1 FSS Full Gray 1 Loop System (xx-zone) w-Adap & Eth & Dialer | F62: =IF(OR(D62<0,D62=""),"",INDEX([1]!AlmPanelVigEtAl,MATCH(E62,[1]!AlmPanelVigDesc,0),3)) -> 
B63: 6 | E63: VS-2 FSS Full Gray or Red 10-zone w-Adap & Eth & Dialer | F63: =IF(OR(D63<0,D63=""),"",INDEX([1]!AlmPanelVigEtAl,MATCH(E63,[1]!AlmPanelVigDesc,0),3)) -> 
B64: 7 | E64: VS-2 OEM Basic Gray or Red 10-zone NO dialer | F64: =IF(OR(D64<0,D64=""),"",INDEX([1]!AlmPanelVigEtAl,MATCH(E64,[1]!AlmPanelVigDesc,0),3)) ->  | J64: =IF(OR(D64="",E64=""),"",IF(G64>0,D64*G64,D64*F64)) ->  | K64: =+J64 ->  | O64: =+K64 -> 
B65: 8 | E65: VS-1 OEM Red 1 Loop System (xx-zone) | F65: =IF(OR(D65<0,D65=""),"",INDEX([1]!AlmPanelVigEtAl,MATCH(E65,[1]!AlmPanelVigDesc,0),3)) -> 
B66: 9 | E66: VS-2 FSS Basic Gray or Red 10-zone w-Adap & Eth NO dialer | F66: =IF(OR(D66<0,D66=""),"",INDEX([1]!AlmPanelVigEtAl,MATCH(E66,[1]!AlmPanelVigDesc,0),3)) -> 
B67: 10 | E67: VS-2 FSS Full Gray or Red 10-zone w-Adap & Eth & Dialer | F67: =IF(OR(D67<0,D67=""),"",INDEX([1]!AlmPanelVigEtAl,MATCH(E67,[1]!AlmPanelVigDesc,0),3)) -> 
B68: 11 | E68: VS-2 OEM Basic Gray or Red 10-zone NO dialer | F68: =IF(OR(D68<0,D68=""),"",INDEX([1]!AlmPanelVigEtAl,MATCH(E68,[1]!AlmPanelVigDesc,0),3)) ->  | J68: =IF(OR(D68="",E68=""),"",IF(G68>0,D68*G68,D68*F68)) ->  | K68: =+J68 ->  | O68: =+K68 -> 
B69: 12 | E69: VS-2 OEM Full Gray or Red 10-zone w-Dialer | F69: =IF(OR(D69<0,D69=""),"",INDEX([1]!AlmPanelVigEtAl,MATCH(E69,[1]!AlmPanelVigDesc,0),3)) -> 
B70: 13
B73: 0 | E73: BOWS-LOC (Building Occupant Warning System) Voice Evac
B74: 1 | E74: Remote BOWS | F74: =IF(OR(D74<0,D74=""),"",INDEX([1]!AlmBowEtAl,MATCH(E74,[1]!AlmBowDesc,0),3)) ->  | J74: =IF(OR(D74="",E74=""),"",IF(G74>0,D74*G74,D74*F74)) -> 
B75: 2 | E75: SK-SKE-450 Voice Evac | F75: =IF(OR(D75<0,D75=""),"",INDEX([1]!AlmBowEtAl,MATCH(E75,[1]!AlmBowDesc,0),3)) -> 
B76: 3 | E76: TelSet GENERIC | F76: =IF(OR(D76<0,D76=""),"",INDEX([1]!AlmBowEtAl,MATCH(E76,[1]!AlmBowDesc,0),3)) -> 
B77: 4 | E77: Vigilant InPanel TelSet-BOWS Optional extra | F77: =IF(OR(D77<0,D77=""),"",INDEX([1]!AlmBowEtAl,MATCH(E77,[1]!AlmBowDesc,0),3)) -> 
B78: 5 | E78: Vigilant VM-LOC | F78: =IF(OR(D78<0,D78=""),"",INDEX([1]!AlmBowEtAl,MATCH(E78,[1]!AlmBowDesc,0),3)) -> 
B79: 6 | E79: zSpare 1 | F79: =IF(OR(D79<0,D79=""),"",INDEX([1]!AlmBowEtAl,MATCH(E79,[1]!AlmBowDesc,0),3)) -> 
B80: 7 | E80: zSpare 2 | F80: =IF(OR(D80<0,D80=""),"",INDEX([1]!AlmBowEtAl,MATCH(E80,[1]!AlmBowDesc,0),3)) -> 
B81: 8 | E81: zSpare 3 | F81: =IF(OR(D81<0,D81=""),"",INDEX([1]!AlmBowEtAl,MATCH(E81,[1]!AlmBowDesc,0),3)) -> 
B82: 9 | E82: zSpare 3 | F82: =IF(OR(D82<0,D82=""),"",INDEX([1]!AlmBowEtAl,MATCH(E82,[1]!AlmBowDesc,0),3)) -> 
B83: 10
E86: Devices
E87: Detect&Smokes
E88: Horns
E89: Horn-Strobes
E90: Power Supplies & Batt
E91: Pull Stations
E92: Strobes only
E93: zMisc
E94: zOther
E96: Devices
E97: SystemSensor SS
B99: 0 | E99: Detectors & Smokes
B100: 1 | E100: Honeywell System Sensor BK5601 P 135 White | F100: =IF(OR(D100<0,D100=""),"",INDEX([1]!AlmDDetectSSetAl,MATCH(E100,[1]!AlmDDetectSSDesc,0),3)) ->  | J100: =IF(OR(D100="",E100=""),"",IF(G100>0,D100*G100,D100*F100)) ->  | K100: =+J100 ->  | O100: =+K100 -> 
B101: 2 | E101: Honeywell System Sensor BK5602 Fixed-Rate-of-Rise 190 Temp | F101: =IF(OR(D101<0,D101=""),"",INDEX([1]!AlmDDetectSSetAl,MATCH(E101,[1]!AlmDDetectSSDesc,0),3)) ->  | J101: =IF(OR(D101="",E101=""),"",IF(G101>0,D101*G101,D101*F101)) ->  | K101: =+J101 ->  | O101: =+K101 -> 
B102: 3 | E102: Honeywell System Sensor BK5604 Fixed-Temp 194 Temp | F102: =IF(OR(D102<0,D102=""),"",INDEX([1]!AlmDDetectSSetAl,MATCH(E102,[1]!AlmDDetectSSDesc,0),3)) -> 
B103: 4 | E103: Honeywell System Sensor Photo Electric smoke 2W-B Conventional | F103: =IF(OR(D103<0,D103=""),"",INDEX([1]!AlmDDetectSSetAl,MATCH(E103,[1]!AlmDDetectSSDesc,0),3)) -> 
B104: 5 | E104: Spare 1 | F104: =IF(OR(D104<0,D104=""),"",INDEX([1]!AlmDDetectSSetAl,MATCH(E104,[1]!AlmDDetectSSDesc,0),3)) -> 
B105: 6
B108: 0 | E108: Horns
B109: 1 | E109: SystemSensor SWHK Horn, Red, Outdoor (includes plastic weatherproof back box) | F109: =IF(OR(D109<0,D109=""),"",INDEX([1]!AlmDHornsSSetAl,MATCH(E109,[1]!AlmDHornsSSDesc,0),3)) ->  | J109: =IF(OR(D109="",E109=""),"",IF(G109>0,D109*G109,D109*F109)) ->  | K109: =+J109 ->  | O109: =+K109 -> 
B110: 2 | E110: Spare 1 | F110: =IF(OR(D110<0,D110=""),"",INDEX([1]!AlmDHornsSSetAl,MATCH(E110,[1]!AlmDHornsSSDesc,0),3)) ->  | J110: =IF(OR(D110="",E110=""),"",IF(G110>0,D110*G110,D110*F110)) ->  | K110: =+J110 ->  | O110: =+K110 -> 
B111: 3 | E111: SystemSensor SWHK Horn, Red, Outdoor (includes plastic weatherproof back box) | F111: =IF(OR(D111<0,D111=""),"",INDEX([1]!AlmDHornsSSetAl,MATCH(E111,[1]!AlmDHornsSSDesc,0),3)) -> 
B112: 4 | E112: Spare 1 | F112: =IF(OR(D112<0,D112=""),"",INDEX([1]!AlmDHornsSSetAl,MATCH(E112,[1]!AlmDHornsSSDesc,0),3)) -> 
B113: 5 | E113: SystemSensor SWHK Horn, Red, Outdoor (includes plastic weatherproof back box) | F113: =IF(OR(D113<0,D113=""),"",INDEX([1]!AlmDHornsSSetAl,MATCH(E113,[1]!AlmDHornsSSDesc,0),3)) -> 
B114: 6 | E114: Spare 1 | F114: =IF(OR(D114<0,D114=""),"",INDEX([1]!AlmDHornsSSetAl,MATCH(E114,[1]!AlmDHornsSSDesc,0),3)) -> 
B115: 7 | J115: =IF(OR(D115="",E115=""),"",IF(G115>0,D115*G115,D115*F115)) ->  | K115: =+J115 ->  | O115: =+K115 -> 
B120: 0 | E120: Horn-Strobes
B121: 1 | E121: SystemSensor P2R Red 2-wire Horn/Strobe Std. Candela | F121: =IF(OR(D121<0,D121=""),"",INDEX([1]!AlmDHornStrobeSSetAl,MATCH(E121,[1]!AlmDHornStrobeSSDesc,0),3)) ->  | J121: =IF(OR(D121="",E121=""),"",IF(G121>0,D121*G121,D121*F121)) ->  | K121: =+J121 ->  | O121: =+K121 -> 
B122: 2 | E122: SystemSensor P2RC Red 2-wire Horn/Strobe Ceiling Std. Candela | F122: =IF(OR(D122<0,D122=""),"",INDEX([1]!AlmDHornStrobeSSetAl,MATCH(E122,[1]!AlmDHornStrobeSSDesc,0),3)) ->  | J122: =IF(OR(D122="",E122=""),"",IF(G122>0,D122*G122,D122*F122)) ->  | K122: =+J122 ->  | O122: =+K122 -> 
B123: 3 | E123: SystemSensor P2RH Red or W White 2-wire Horn/Strobe Hi-Candela | F123: =IF(OR(D123<0,D123=""),"",INDEX([1]!AlmDHornStrobeSSetAl,MATCH(E123,[1]!AlmDHornStrobeSSDesc,0),3)) -> 
B124: 4 | E124: SystemSensor P2RK 2-wire Horn/Strobe Outdoor w/plastic weather proof backbox (FDC) | F124: =IF(OR(D124<0,D124=""),"",INDEX([1]!AlmDHornStrobeSSetAl,MATCH(E124,[1]!AlmDHornStrobeSSDesc,0),3)) ->  | J124: =IF(OR(D124="",E124=""),"",IF(G124>0,D124*G124,D124*F124)) ->  | K124: =+J124 ->  | O124: =+K124 -> 
B125: 5 | E125: SystemSensor P2W Horn/Strobe White | F125: =IF(OR(D125<0,D125=""),"",INDEX([1]!AlmDHornStrobeSSetAl,MATCH(E125,[1]!AlmDHornStrobeSSDesc,0),3)) -> 
B126: 6 | E126: SystemSensor P2W White 2-wire Horn/Strobe Std. Candela | F126: =IF(OR(D126<0,D126=""),"",INDEX([1]!AlmDHornStrobeSSetAl,MATCH(E126,[1]!AlmDHornStrobeSSDesc,0),3)) -> 
B127: 7 | E127: SystemSensor P2WC White 2-wire Horn/Strobe Ceiling Std. Candela | F127: =IF(OR(D127<0,D127=""),"",INDEX([1]!AlmDHornStrobeSSetAl,MATCH(E127,[1]!AlmDHornStrobeSSDesc,0),3)) -> 
B128: 8 | E128: SystemSensor P2WH LF Horn Strobe | F128: =IF(OR(D128<0,D128=""),"",INDEX([1]!AlmDHornStrobeSSetAl,MATCH(E128,[1]!AlmDHornStrobeSSDesc,0),3)) -> 
B129: 9 | E129: SystemSensor P2WH LF Horn Strobe | F129: =IF(OR(D129<0,D129=""),"",INDEX([1]!AlmDHornStrobeSSetAl,MATCH(E129,[1]!AlmDHornStrobeSSDesc,0),3)) -> 
B130: 10 | E130: SystemSensor P2WK 2-Wire Horn/Strobe, Std. Candela, White, Outdoor (w/plastic weatherproof backbox) | F130: =IF(OR(D130<0,D130=""),"",INDEX([1]!AlmDHornStrobeSSetAl,MATCH(E130,[1]!AlmDHornStrobeSSDesc,0),3)) -> 
B131: 11 | E131: SystemSensor SPSCW Speaker Strobe Ceiling mount | F131: =IF(OR(D131<0,D131=""),"",INDEX([1]!AlmDHornStrobeSSetAl,MATCH(E131,[1]!AlmDHornStrobeSSDesc,0),3)) -> 
B132: 12 | E132: Spare 1 | F132: =IF(OR(D132<0,D132=""),"",INDEX([1]!AlmDHornStrobeSSetAl,MATCH(E132,[1]!AlmDHornStrobeSSDesc,0),3)) -> 
B133: 13 | J133: =IF(OR(D133="",E133=""),"",IF(G133>0,D133*G133,D133*F133)) ->  | K133: =+J133 ->  | O133: =+K133 -> 
E136: Power Supplies
E141: Pull Stations
B147: 0 | E147: Strobes only
B148: 1 | E148: SystemSensor P2W Strobe only White or P2R Red | F148: =IF(OR(D148<0,D148=""),"",INDEX([1]!AlmDStrobeSSetAl,MATCH(E148,[1]!AlmDStrobeSSDesc,0),3)) ->  | J148: =IF(OR(D148="",E148=""),"",IF(G148>0,D148*G148,D148*F148)) ->  | K148: =+J148 ->  | O148: =+K148 -> 
B149: 2 | E149: SystemSensor SCR 2-wire Ceiling Strobe STD Red | F149: =IF(OR(D149<0,D149=""),"",INDEX([1]!AlmDStrobeSSetAl,MATCH(E149,[1]!AlmDStrobeSSDesc,0),3)) ->  | J149: =IF(OR(D149="",E149=""),"",IF(G149>0,D149*G149,D149*F149)) ->  | K149: =+J149 ->  | O149: =+K149 -> 
B150: 3 | E150: SystemSensor SR Strobe STD Candela Red | F150: =IF(OR(D150<0,D150=""),"",INDEX([1]!AlmDStrobeSSetAl,MATCH(E150,[1]!AlmDStrobeSSDesc,0),3)) -> 
B151: 4 | E151: SystemSensor SRHK Strobe, High cd, Red, Outdoor (includes plastic weatherproof back box) | F151: =IF(OR(D151<0,D151=""),"",INDEX([1]!AlmDStrobeSSetAl,MATCH(E151,[1]!AlmDStrobeSSDesc,0),3)) -> 
B152: 5 | E152: SystemSensor SRK Strobe, Standard cd, Red, Outdoor (includes plastic weatherproof back box) | F152: =IF(OR(D152<0,D152=""),"",INDEX([1]!AlmDStrobeSSetAl,MATCH(E152,[1]!AlmDStrobeSSDesc,0),3)) -> 
B153: 6 | E153: SystemSensor SW Strobe, High cd, White, Outdoor (includes plastic weatherproof back box) | F153: =IF(OR(D153<0,D153=""),"",INDEX([1]!AlmDStrobeSSetAl,MATCH(E153,[1]!AlmDStrobeSSDesc,0),3)) -> 
B154: 7 | E154: SystemSensor SWK Strobe, Standard cd, White, Outdoor (includes plastic weatherproof back box) | F154: =IF(OR(D154<0,D154=""),"",INDEX([1]!AlmDStrobeSSetAl,MATCH(E154,[1]!AlmDStrobeSSDesc,0),3)) -> 
B155: 8 | E155: SystemSensor P2W Strobe only White or P2R Red | F155: =IF(OR(D155<0,D155=""),"",INDEX([1]!AlmDStrobeSSetAl,MATCH(E155,[1]!AlmDStrobeSSDesc,0),3)) -> 
B156: 9 | E156: SystemSensor P2W Strobe only White or P2R Red | F156: =IF(OR(D156<0,D156=""),"",INDEX([1]!AlmDStrobeSSetAl,MATCH(E156,[1]!AlmDStrobeSSDesc,0),3)) -> 
B157: 10 | E157: SystemSensor P2W Strobe only White or P2R Red | F157: =IF(OR(D157<0,D157=""),"",INDEX([1]!AlmDStrobeSSetAl,MATCH(E157,[1]!AlmDStrobeSSDesc,0),3)) -> 
B158: 11
E163: zMisc
B164: 1 | E164: SystemSensor BK-DSTS Sampling Tube 5' with hole | F164: =IF(OR(D164<0,D164=""),"",INDEX([1]!AlmDzMiscSSetAl,MATCH(E164,[1]!AlmDzMiscSSDesc,0),3)) ->  | J164: =IF(OR(D164="",E164=""),"",IF(G164>0,D164*G164,D164*F164)) ->  | K164: =+J164 ->  | O164: =+K164 -> 
B165: 2 | E165: SystemSensor BK-RTS151KEY Remote Test Station w/key | F165: =IF(OR(D165<0,D165=""),"",INDEX([1]!AlmDzMiscSSetAl,MATCH(E165,[1]!AlmDzMiscSSDesc,0),3)) ->  | J165: =IF(OR(D165="",E165=""),"",IF(G165>0,D165*G165,D165*F165)) ->  | K165: =+J165 ->  | O165: =+K165 -> 
B166: 3 | E166: SystemSensor SA-WBBW or R Metal Weatherproof Backbox | F166: =IF(OR(D166<0,D166=""),"",INDEX([1]!AlmDzMiscSSetAl,MATCH(E166,[1]!AlmDzMiscSSDesc,0),3)) -> 
B167: 4 | E167: zSpare 1 | F167: =IF(OR(D167<0,D167=""),"",INDEX([1]!AlmDzMiscSSetAl,MATCH(E167,[1]!AlmDzMiscSSDesc,0),3)) -> 
B168: 5
E173: zOther
E179: Devices
E180: Vigilant VS Note: prefix FSS means a BUILD from BARE. A complete package
B181: 0 | E181: Detectors & Smokes
B182: 1 | E182: VS GSA-PS Photoelectric Smoke Detector Intelligent | F182: =IF(OR(D182=0,E182=""),"",VLOOKUP(E182,[1]!AlmDDetectVSetAl,3)) ->  | J182: =IF(OR(D182="",E182=""),"",IF(G182>0,D182*G182,D182*F182)) ->  | K182: =+J182 ->  | O182: =+K182 -> 
B183: 2 | E183: VS GSA-SD Duct Detector Intelligent | F183: =IF(OR(D183=0,E183=""),"",VLOOKUP(E183,[1]!AlmDDetectVSetAl,3)) ->  | J183: =IF(OR(D183="",E183=""),"",IF(G183>0,D183*G183,D183*F183)) ->  | K183: =+J183 ->  | O183: =+K183 -> 
B184: 3 | E184: VS-PS Photo Detector Analog Addressable Vernal | F184: =IF(OR(D184=0,E184=""),"",VLOOKUP(E184,[1]!AlmDDetectVSetAl,3)) -> 
B185: 4 | E185: zSpare 1 | F185: =IF(OR(D185=0,E185=""),"",VLOOKUP(E185,[1]!AlmDDetectVSetAl,3)) -> 
B186: 5 | E186: zSpare 1 | F186: =IF(OR(D186=0,E186=""),"",VLOOKUP(E186,[1]!AlmDDetectVSetAl,3)) -> 
B187: 6 | E187: zSpare 1 | F187: =IF(OR(D187=0,E187=""),"",VLOOKUP(E187,[1]!AlmDDetectVSetAl,3)) -> 
B188: 7 | F188: =IF(OR(D188=0,E188=""),"",VLOOKUP(E188,[1]!AlmDDetectVSetAl,3)) ->  | J188: =IF(OR(D188="",E188=""),"",IF(G188>0,D188*G188,D188*F188)) ->  | K188: =+J188 ->  | O188: =+K188 -> 
B189: 8 | F189: =IF(OR(D189=0,E189=""),"",VLOOKUP(E189,[1]!AlmDDetectVSetAl,3)) -> 
B190: 9 | F190: =IF(OR(D190=0,E190=""),"",VLOOKUP(E190,[1]!AlmDDetectVSetAl,3)) -> 
B191: 10 | F191: =IF(OR(D191=0,E191=""),"",VLOOKUP(E191,[1]!AlmDDetectVSetAl,3)) -> 
B192: 11
B195: 0 | E195: Horns
B196: =+B195+1 -> 1 | E196: Add Horn data | F196: =IF(OR(D196<0,D196=""),"",INDEX([1]!AlmDHornsVSetAl,MATCH(E196,[1]!AlmDHornsVSDesc,0),3)) ->  | J196: =IF(OR(D196="",E196=""),"",IF(G196>0,D196*G196,D196*F196)) ->  | K196: =+J196 ->  | O196: =+K196 -> 
B197: =+B196+1 -> 2 | E197: Make a Horn table here | F197: =IF(OR(D197<0,D197=""),"",INDEX([1]!AlmDHornsVSetAl,MATCH(E197,[1]!AlmDHornsVSDesc,0),3)) ->  | J197: =IF(OR(D197="",E197=""),"",IF(G197>0,D197*G197,D197*F197)) ->  | K197: =+J197 ->  | O197: =+K197 -> 
B198: =+B197+1 -> 3 | E198: Add Horn data | F198: =IF(OR(D198<0,D198=""),"",INDEX([1]!AlmDHornsVSetAl,MATCH(E198,[1]!AlmDHornsVSDesc,0),3)) -> 
B199: =+B198+1 -> 4 | E199: Make a Horn table here | F199: =IF(OR(D199<0,D199=""),"",INDEX([1]!AlmDHornsVSetAl,MATCH(E199,[1]!AlmDHornsVSDesc,0),3)) -> 
B200: =+B199+1 -> 5 | E200: Add Horn data | F200: =IF(OR(D200<0,D200=""),"",INDEX([1]!AlmDHornsVSetAl,MATCH(E200,[1]!AlmDHornsVSDesc,0),3)) -> 
B201: 6
E206: Horn-Strobes
B210: 0 | E210: Power Supplies
B211: 1 | E211: VS 2 Booster Power Supplies for VS-2 | F211: =IF(OR(D211<0,D211=""),"",INDEX([1]!AlmDPowerVSetAl,MATCH(E211,[1]!AlmDPowerVSDesc,0),3)) ->  | J211: =IF(OR(D211="",E211=""),"",IF(G211>0,D211*G211,D211*F211)) ->  | K211: =+J211 ->  | O211: =+K211 -> 
B212: 2 | E212: VS E-BPS-10 Amp Hr | F212: =IF(OR(D212<0,D212=""),"",INDEX([1]!AlmDPowerVSetAl,MATCH(E212,[1]!AlmDPowerVSDesc,0),3)) ->  | J212: =IF(OR(D212="",E212=""),"",IF(G212>0,D212*G212,D212*F212)) ->  | K212: =+J212 ->  | O212: =+K212 -> 
B213: 3 | E213: VS E-BPS-6 Amp Hr | F213: =IF(OR(D213<0,D213=""),"",INDEX([1]!AlmDPowerVSetAl,MATCH(E213,[1]!AlmDPowerVSDesc,0),3)) -> 
B214: 4 | E214: zSpare 1 | F214: =IF(OR(D214<0,D214=""),"",INDEX([1]!AlmDPowerVSetAl,MATCH(E214,[1]!AlmDPowerVSDesc,0),3)) -> 
B215: 5 | J215: =IF(OR(D215="",E215=""),"",IF(G215>0,D215*G215,D215*F215)) ->  | K215: =+J215 ->  | O215: =+K215 -> 
E219: Pull Stations
E222: Strobes only
E225: zMisc
J229: =IF(D229>0,IF(G229>0,D229*G229,D229*F229),"") ->  | K229: =+J229 ->  | O229: =+K229 -> 
B230: 0 | E230: zOther
B231: 1 | E231: Add zOther data | F231: =IF(OR(D231<0,D231=""),"",INDEX([1]!AlmDOtherVSetAl,MATCH(E231,[1]!AlmDOtherVSDesc,0),3)) ->  | J231: =IF(OR(D231="",E231=""),"",IF(G231>0,D231*G231,D231*F231)) ->  | K231: =+J231 ->  | O231: =+K231 -> 
B232: 2 | E232: Made a zOther table here | F232: =IF(OR(D232<0,D232=""),"",INDEX([1]!AlmDOtherVSetAl,MATCH(E232,[1]!AlmDOtherVSDesc,0),3)) ->  | J232: =IF(OR(D232="",E232=""),"",IF(G232>0,D232*G232,D232*F232)) ->  | K232: =+J232 ->  | O232: =+K232 -> 
B233: 3 | E233: zSpare 1 | F233: =IF(OR(D233<0,D233=""),"",INDEX([1]!AlmDOtherVSetAl,MATCH(E233,[1]!AlmDOtherVSDesc,0),3)) -> 
B234: 4 | E234: zSpare 2 | F234: =IF(OR(D234<0,D234=""),"",INDEX([1]!AlmDOtherVSetAl,MATCH(E234,[1]!AlmDOtherVSDesc,0),3)) -> 
B235: 5 | F235: =IF(OR(D235<0,D235=""),"",INDEX([1]!AlmDOtherVSetAl,MATCH(E235,[1]!AlmDOtherVSDesc,0),3)) -> 
B236: 6 | F236: =IF(OR(D236<0,D236=""),"",INDEX([1]!AlmDOtherVSetAl,MATCH(E236,[1]!AlmDOtherVSDesc,0),3)) -> 
B237: 7 | F237: =IF(OR(D237<0,D237=""),"",INDEX([1]!AlmDOtherVSetAl,MATCH(E237,[1]!AlmDOtherVSDesc,0),3)) -> 
B238: 8 | F238: =IF(OR(D238<0,D238=""),"",INDEX([1]!AlmDOtherVSetAl,MATCH(E238,[1]!AlmDOtherVSDesc,0),3)) -> 
B239: 9 | F239: =IF(OR(D239<0,D239=""),"",INDEX([1]!AlmDOtherVSetAl,MATCH(E239,[1]!AlmDOtherVSDesc,0),3)) -> 
B240: 10 | F240: =IF(OR(D240<0,D240=""),"",INDEX([1]!AlmDOtherVSetAl,MATCH(E240,[1]!AlmDOtherVSDesc,0),3)) -> 
B241: 11 | F241: =IF(OR(D241<0,D241=""),"",INDEX([1]!AlmDOtherVSetAl,MATCH(E241,[1]!AlmDOtherVSDesc,0),3)) -> 
B242: 12 | F242: =IF(OR(D242<0,D242=""),"",INDEX([1]!AlmDOtherVSetAl,MATCH(E242,[1]!AlmDOtherVSDesc,0),3)) -> 
B243: 13 | J243: =IF(OR(D243="",E243=""),"",IF(G243>0,D243*G243,D243*F243)) ->  | K243: =+J243 ->  | O243: =+K243 -> 
J244: =IF(D244>0,IF(G244>0,D244*G244,D244*F244),"") -> 
E245: Devices
E246: Dialer Units
B247: 1 | E247: DSC-3G-4010CF UPG Board | F247: =IF(OR(D247=0,E247=""),"",VLOOKUP(E247,[1]!AlmDialerEtAl,3)) ->  | J247: =IF(OR(D247="",E247=""),"",IF(G247>0,D247*G247,D247*F247)) ->  | K247: =+J247 ->  | O247: =+K247 -> 
B248: 2 | E248: DSC-GS-15 ANT | F248: =IF(OR(D248=0,E248=""),"",VLOOKUP(E248,[1]!AlmDialerEtAl,3)) -> 
B249: 3 | E249: DSC-GS-25 ANT | F249: =IF(OR(D249=0,E249=""),"",VLOOKUP(E249,[1]!AlmDialerEtAl,3)) -> 
B250: 4 | E250: EST 3 Dialer MODCOM | F250: =IF(OR(D250=0,E250=""),"",VLOOKUP(E250,[1]!AlmDialerEtAl,3)) -> 
B251: 5 | E251: SK-5128 Remote Dialer | F251: =IF(OR(D251=0,E251=""),"",VLOOKUP(E251,[1]!AlmDialerEtAl,3)) -> 
B252: 6 | E252: zDSC-3G 3070-CF DISCONTINUED | F252: =IF(OR(D252=0,E252=""),"",VLOOKUP(E252,[1]!AlmDialerEtAl,3)) -> 
B253: 7 | E253: zSpare 1 | F253: =IF(OR(D253=0,E253=""),"",VLOOKUP(E253,[1]!AlmDialerEtAl,3)) ->  | K253: =+J253 ->  | O253: =+K253 -> 
B254: 8
J255: =IF(D255>0,IF(G255>0,D255*G255,D255*F255),"") ->  | K255: =+J255 ->  | O255: =+K255 -> 
E259: Devices | J259: =IF(D259>0,IF(G259>0,D259*G259,D259*F259),"") -> 
... 68 more rows

Sheet I Alms EST
D1: To Table of Contents
N2: FALSE
D3: Rev: 2016-10-30 13:25
E5: =MID(CELL("filename",A1),FIND("]",CELL("filename",A1))+1,255) -> I Alms EST | O5: Sales Tax
E6: Click in a cell below to change a line item | N6: TRUE | O6: =+UTsalesTax -> 0.071
E7: from the list | F7: =CHAR(242) -> ò | G7: ò | H7: ò | I7: ò | J7: ò | K7: ò | O7: =IF(N6=TRUE,SUM(O9:O80)+(SUM(O9:O80))*O6,SUM(O9:O80)) -> 0
E8: ò | F8: Remember the SPARE devices for the after-install service & warranty period. You must ADD in the cost of additional units
E9: Alarm Parts | F9: Either | G9: Or | H9: Unit | J9: Extension | K9: Totals | O9: Final
E10: Devices
E11: Edwards Signals EST (GE)
B12: 0 | E12: Detectors & Smokes
B13: =+B12+1 -> 1 | E13: Edwards EST PCOS Photoelectric Smoke-Carbon Monoxide Combo with ED-SB4ULF Sounder Base | F13: =IF(OR(D13<0,D13=""),"",INDEX([1]!AlmDDetectESTetAl,MATCH(E13,[1]!AlmDDetectESTDesc,0),3)) ->  | J13: =IF(OR(D13="",E13=""),"",IF(G13>0,D13*G13,D13*F13)) ->  | K13: =+J13 ->  | O13: =+K13 -> 
B14: 2 | E14: Edwards EST SIGA2-PCOS Photoelectric Carbon & Smoke detector w/CO detector Intelligent | F14: =IF(OR(D14<0,D14=""),"",INDEX([1]!AlmDDetectESTetAl,MATCH(E14,[1]!AlmDDetectESTDesc,0),3)) -> 
B15: 3 | E15: Edwards EST SIGA-PS1 Photoelectric Smoke detector Intelligent DEPRECATED | F15: =IF(OR(D15<0,D15=""),"",INDEX([1]!AlmDDetectESTetAl,MATCH(E15,[1]!AlmDDetectESTDesc,0),3)) -> 
B16: 4 | E16: Edwards EST SIGA-PS2 Photoelectric Smoke detector Intelligent NEW | F16: =IF(OR(D16<0,D16=""),"",INDEX([1]!AlmDDetectESTetAl,MATCH(E16,[1]!AlmDDetectESTDesc,0),3)) -> 
B17: 5 | E17: Edwards EST SIGA-SB Smoke detector Base | F17: =IF(OR(D17<0,D17=""),"",INDEX([1]!AlmDDetectESTetAl,MATCH(E17,[1]!AlmDDetectESTDesc,0),3)) -> 
B18: 6 | E18: Edwards EST SIGA-SB4 Smoke detector Base standard 4" | F18: =IF(OR(D18<0,D18=""),"",INDEX([1]!AlmDDetectESTetAl,MATCH(E18,[1]!AlmDDetectESTDesc,0),3)) -> 
B19: 7 | E19: Edwards EST SIGA-SB Smoke detector Base | F19: =IF(OR(D19<0,D19=""),"",INDEX([1]!AlmDDetectESTetAl,MATCH(E19,[1]!AlmDDetectESTDesc,0),3)) -> 
B20: 8 | E20: Edwards EST SIGA-PS2 Photoelectric Smoke detector Intelligent NEW | F20: =IF(OR(D20<0,D20=""),"",INDEX([1]!AlmDDetectESTetAl,MATCH(E20,[1]!AlmDDetectESTDesc,0),3)) -> 
B21: 9 | E21: Edwards EST SIGA-PS1 Photoelectric Smoke detector Intelligent DEPRECATED | F21: =IF(OR(D21<0,D21=""),"",INDEX([1]!AlmDDetectESTetAl,MATCH(E21,[1]!AlmDDetectESTDesc,0),3)) -> 
B22: 10 | E22: Edwards EST SIGA-PS2 Photoelectric Smoke detector Intelligent NEW | F22: =IF(OR(D22<0,D22=""),"",INDEX([1]!AlmDDetectESTetAl,MATCH(E22,[1]!AlmDDetectESTDesc,0),3)) -> 
B23: 11 | E23: Edwards EST SIGA-SB Smoke detector Base | F23: =IF(OR(D23<0,D23=""),"",INDEX([1]!AlmDDetectESTetAl,MATCH(E23,[1]!AlmDDetectESTDesc,0),3)) -> 
B24: 12 | E24: Edwards EST SIGA-SB4 Smoke detector Base standard 4" | F24: =IF(OR(D24<0,D24=""),"",INDEX([1]!AlmDDetectESTetAl,MATCH(E24,[1]!AlmDDetectESTDesc,0),3)) -> 
B25: 13
E27: Horns
B28: =+B27+1 -> 1 | E28: Add EST zOther data | F28: =IF(OR(D28<0,D28=""),"",INDEX([1]!AlmDHornsESTetAl,MATCH(E28,[1]!AlmDHornsESTDesc,0),3)) -> 
B29: 2 | E29: Made a EST zOther table here | F29: =IF(OR(D29<0,D29=""),"",INDEX([1]!AlmDHornsESTetAl,MATCH(E29,[1]!AlmDHornsESTDesc,0),3)) -> 
B30: 3 | E30: zSpare 1 | F30: =IF(OR(D30<0,D30=""),"",INDEX([1]!AlmDHornsESTetAl,MATCH(E30,[1]!AlmDHornsESTDesc,0),3)) -> 
B31: 4 | E31: Made a EST zOther table here | F31: =IF(OR(D31<0,D31=""),"",INDEX([1]!AlmDHornsESTetAl,MATCH(E31,[1]!AlmDHornsESTDesc,0),3)) -> 
B32: 5 | E32: Add EST zOther data | F32: =IF(OR(D32<0,D32=""),"",INDEX([1]!AlmDHornsESTetAl,MATCH(E32,[1]!AlmDHornsESTDesc,0),3)) -> 
B33: 6 | E33: zSpare 1 | F33: =IF(OR(D33<0,D33=""),"",INDEX([1]!AlmDHornsESTetAl,MATCH(E33,[1]!AlmDHornsESTDesc,0),3)) -> 
B34: 7 | J34: =IF(OR(D34="",E34=""),"",IF(G34>0,D34*G34,D34*F34)) ->  | K34: =+J34 ->  | O34: =+K34 -> 
E37: Horn-Strobes
B38: 1 | E38: ED CF-HDVM Horn Strobes Ceiling mounted | F38: =IF(OR(D38<0,D38=""),"",INDEX([1]!AlmHStrobeESTetAl,MATCH(E38,[1]!AlmHStrobeESTDesc,0),3)) ->  | J38: =IF(OR(D38="",E38=""),"",IF(G38>0,D38*G38,D38*F38)) ->  | K38: =+J38 ->  | O38: =+K38 -> 
B39: 2 | E39: ED G4LF WF-HVM Horn Strobe Low Freq White Fire Mark | F39: =IF(OR(D39<0,D39=""),"",INDEX([1]!AlmHStrobeESTetAl,MATCH(E39,[1]!AlmHStrobeESTDesc,0),3)) ->  | J39: =IF(OR(D39="",E39=""),"",IF(G39>0,D39*G39,D39*F39)) ->  | K39: =+J39 ->  | O39: =+K39 -> 
B40: 3 | E40: ED MG1F-HDVM Horn Strobe Red w/Fire label | F40: =IF(OR(D40<0,D40=""),"",INDEX([1]!AlmHStrobeESTetAl,MATCH(E40,[1]!AlmHStrobeESTDesc,0),3)) ->  | J40: =IF(OR(D40="",E40=""),"",IF(G40>0,D40*G40,D40*F40)) ->  | K40: =+J40 ->  | O40: =+K40 -> 
B41: 4 | E41: ED MG1F-HDVM Horn Strobe White w/Fire label | F41: =IF(OR(D41<0,D41=""),"",INDEX([1]!AlmHStrobeESTetAl,MATCH(E41,[1]!AlmHStrobeESTDesc,0),3)) -> 
B42: 5 | E42: EGC-HDVM Horn Strobe Ceiling Mounted (Edwards Genesis Ceiling) | F42: =IF(OR(D42<0,D42=""),"",INDEX([1]!AlmHStrobeESTetAl,MATCH(E42,[1]!AlmHStrobeESTDesc,0),3)) -> 
B43: 6 | E43: zSpare 1 | F43: =IF(OR(D43<0,D43=""),"",INDEX([1]!AlmHStrobeESTetAl,MATCH(E43,[1]!AlmHStrobeESTDesc,0),3)) -> 
B44: 7 | E44: zSpare 2 | F44: =IF(OR(D44<0,D44=""),"",INDEX([1]!AlmHStrobeESTetAl,MATCH(E44,[1]!AlmHStrobeESTDesc,0),3)) -> 
B45: 8 | E45: zSpare 2 | F45: =IF(OR(D45<0,D45=""),"",INDEX([1]!AlmHStrobeESTetAl,MATCH(E45,[1]!AlmHStrobeESTDesc,0),3)) -> 
E47: Power Supplies
E53: Devices
E54: Pull Stations
B55: 1 | E55: Edwards EST GE-270 Pull Station | F55: =IF(OR(D55<0,D55=""),"",INDEX([1]!AlmDPullESTetAl,MATCH(E55,[1]!AlmDPullESTDesc,0),3)) ->  | J55: =IF(OR(D55="",E55=""),"",IF(G55>0,D55*G55,D55*F55)) ->  | K55: =+J55 ->  | O55: =+K55 -> 
B56: 2 | E56: Edwards EST GE-MPSR1-S45W Pull Station | F56: =IF(OR(D56<0,D56=""),"",INDEX([1]!AlmDPullESTetAl,MATCH(E56,[1]!AlmDPullESTDesc,0),3)) -> 
B57: 3 | E57: Edwards ESL interlogic 103-01 Manual Non-Addressable Pull Station | F57: =IF(OR(D57<0,D57=""),"",INDEX([1]!AlmDPullESTetAl,MATCH(E57,[1]!AlmDPullESTDesc,0),3)) -> 
B58: 4 | E58: Edwards EST GE-270 Pull Station | F58: =IF(OR(D58<0,D58=""),"",INDEX([1]!AlmDPullESTetAl,MATCH(E58,[1]!AlmDPullESTDesc,0),3)) -> 
B59: 5 | E59: Edwards EST GE-MPSR1-S45W Pull Station | F59: =IF(OR(D59<0,D59=""),"",INDEX([1]!AlmDPullESTetAl,MATCH(E59,[1]!AlmDPullESTDesc,0),3)) -> 
B60: 6 | E60: zSpare-01 | F60: =IF(OR(D60<0,D60=""),"",INDEX([1]!AlmDPullESTetAl,MATCH(E60,[1]!AlmDPullESTDesc,0),3)) -> 
B61: 7
E63: Strobes only
B64: =+B63+1 -> 1 | E64: ED MG1F-VM Strobe Multi CD White w/Fire label | F64: =IF(OR(D64<0,D64=""),"",INDEX([1]!AlmDStrobeESTetAl,MATCH(E64,[1]!AlmDStrobeESTDesc,0),3)) ->  | J64: =IF(OR(D64="",E64=""),"",IF(G64>0,D64*G64,D64*F64)) ->  | K64: =+J64 ->  | O64: =+K64 -> 
B65: 2 | E65: zSpare-01 | F65: =IF(OR(D65<0,D65=""),"",INDEX([1]!AlmDStrobeESTetAl,MATCH(E65,[1]!AlmDStrobeESTDesc,0),3)) ->  | J65: =IF(OR(D65="",E65=""),"",IF(G65>0,D65*G65,D65*F65)) ->  | K65: =+J65 ->  | O65: =+K65 -> 
B66: 3 | E66: ED MG1F-VM Strobe Multi CD White w/Fire label | F66: =IF(OR(D66<0,D66=""),"",INDEX([1]!AlmDStrobeESTetAl,MATCH(E66,[1]!AlmDStrobeESTDesc,0),3)) -> 
B67: 4 | E67: zSpare-01 | F67: =IF(OR(D67<0,D67=""),"",INDEX([1]!AlmDStrobeESTetAl,MATCH(E67,[1]!AlmDStrobeESTDesc,0),3)) -> 
B68: 5 | E68: ED MG1F-VM Strobe Multi CD White w/Fire label | F68: =IF(OR(D68<0,D68=""),"",INDEX([1]!AlmDStrobeESTetAl,MATCH(E68,[1]!AlmDStrobeESTDesc,0),3)) -> 
B69: 6 | E69: zSpare-01 | F69: =IF(OR(D69<0,D69=""),"",INDEX([1]!AlmDStrobeESTetAl,MATCH(E69,[1]!AlmDStrobeESTDesc,0),3)) -> 
B70: 7
E73: zMisc
E75: zOther
B79: =+B78+1 -> 1 | J79: =IF(OR(D79="",E79=""),"",IF(G79>0,D79*G79,D79*F79)) ->  | K79: =+J79 ->  | O79: =+K79 -> 
E81: Alarm EST Devices etc | O81: =SUM(O9:O80) -> 0

Sheet J Alms HK
D1: To Table of Contents
N2: FALSE
D3: Rev: 2016-12-17 17:00
E5: =MID(CELL("filename",A1),FIND("]",CELL("filename",A1))+1,255) -> J Alms HK | O5: Sales Tax
E6: Click in a cell below to change a line item | N6: TRUE | O6: =+UTsalesTax -> 0.071
E7: from the list | F7: =CHAR(242) -> ò | G7: ò | H7: ò | I7: ò | J7: ò | K7: ò | O7: =IF(N6=TRUE,SUM(O9:O118)+(SUM(O9:O118))*O6,SUM(O9:O118)) -> 0
E8: ò | F8: Remember the SPARE devices for the after-install service & warranty period. You must ADD in the cost of additional units
E9: Alarm Parts | F9: Either | G9: Or | H9: Unit | J9: Extension | K9: Totals | O9: Final
E10: Devices
E11: Hochiki SD Compatible with Silent Knight
E12: Detectors & Smokes
B13: =+B12+1 -> 1 | E13: Hochiki SD505-APS Addressable P/E Smoke Head Hochiki | F13: =IF(OR(D13<0,D13=""),"",INDEX([1]!AlmDDetectHKetAl,MATCH(E13,[1]!AlmDDetectHKDesc,0),3)) ->  | J13: =IF(OR(D13="",E13=""),"",IF(G13>0,D13*G13,D13*F13)) ->  | K13: =+J13 ->  | O13: =+K13 -> 
B14: =+B13+1 -> 2 | E14: zSpare 1 | F14: =IF(OR(D14<0,D14=""),"",INDEX([1]!AlmDDetectHKetAl,MATCH(E14,[1]!AlmDDetectHKDesc,0),3)) -> 
B15: 3 | E15: zSpare 2 | F15: =IF(OR(D15<0,D15=""),"",INDEX([1]!AlmDDetectHKetAl,MATCH(E15,[1]!AlmDDetectHKDesc,0),3)) -> 
B16: 4 | E16: zSpare 3 | F16: =IF(OR(D16<0,D16=""),"",INDEX([1]!AlmDDetectHKetAl,MATCH(E16,[1]!AlmDDetectHKDesc,0),3)) ->  | J16: =IF(OR(D16="",E16=""),"",IF(G16>0,D16*G16,D16*F16)) ->  | K16: =+J16 ->  | O16: =+K16 -> 
B17: 5 | E17: Hochiki SD505-APS Addressable P/E Smoke Head Hochiki | F17: =IF(OR(D17<0,D17=""),"",INDEX([1]!AlmDDetectHKetAl,MATCH(E17,[1]!AlmDDetectHKDesc,0),3)) -> 
B18: 6 | E18: zSpare 1 | F18: =IF(OR(D18<0,D18=""),"",INDEX([1]!AlmDDetectHKetAl,MATCH(E18,[1]!AlmDDetectHKDesc,0),3)) -> 
B19: 7 | E19: zSpare 2 | F19: =IF(OR(D19<0,D19=""),"",INDEX([1]!AlmDDetectHKetAl,MATCH(E19,[1]!AlmDDetectHKDesc,0),3)) ->  | J19: =IF(OR(D19="",E19=""),"",IF(G19>0,D19*G19,D19*F19)) ->  | K19: =+J19 ->  | O19: =+K19 -> 
B20: 8 | E20: Hochiki SD505-APS Addressable P/E Smoke Head Hochiki | F20: =IF(OR(D20<0,D20=""),"",INDEX([1]!AlmDDetectHKetAl,MATCH(E20,[1]!AlmDDetectHKDesc,0),3)) ->  | J20: =IF(OR(D20="",E20=""),"",IF(G20>0,D20*G20,D20*F20)) ->  | K20: =+J20 ->  | O20: =+K20 -> 
B21: 9 | E21: zSpare 3 | F21: =IF(OR(D21<0,D21=""),"",INDEX([1]!AlmDDetectHKetAl,MATCH(E21,[1]!AlmDDetectHKDesc,0),3)) ->  | J21: =IF(OR(D21="",E21=""),"",IF(G21>0,D21*G21,D21*F21)) ->  | K21: =+J21 ->  | O21: =+K21 -> 
B22: 10
B25: 0 | E25: Horns
B26: 1 | E26: Add Horns HK Desc only data | F26: =IF(OR(D26<0,D26=""),"",INDEX([1]!AlmDHornsHKetAl,MATCH(E26,[1]!AlmDHornsHKDesc,0),3)) ->  | J26: =IF(OR(D26="",E26=""),"",IF(G26>0,D26*G26,D26*F26)) ->  | K26: =+J26 ->  | O26: =+K26 -> 
B27: 2 | E27: Make an Horns HK etAl table here | F27: =IF(OR(D27<0,D27=""),"",INDEX([1]!AlmDHornsHKetAl,MATCH(E27,[1]!AlmDHornsHKDesc,0),3)) -> 
B28: 3 | E28: zSpare HK Hornz | F28: =IF(OR(D28<0,D28=""),"",INDEX([1]!AlmDHornsHKetAl,MATCH(E28,[1]!AlmDHornsHKDesc,0),3)) -> 
B29: 4 | E29: Add Horns HK Desc only data | F29: =IF(OR(D29<0,D29=""),"",INDEX([1]!AlmDHornsHKetAl,MATCH(E29,[1]!AlmDHornsHKDesc,0),3)) -> 
B30: 5 | E30: Make an Horns HK etAl table here | F30: =IF(OR(D30<0,D30=""),"",INDEX([1]!AlmDHornsHKetAl,MATCH(E30,[1]!AlmDHornsHKDesc,0),3)) -> 
B31: 6 | E31: zSpare HK Hornz | F31: =IF(OR(D31<0,D31=""),"",INDEX([1]!AlmDHornsHKetAl,MATCH(E31,[1]!AlmDHornsHKDesc,0),3)) ->  | J31: =IF(OR(D31="",E31=""),"",IF(G31>0,D31*G31,D31*F31)) ->  | K31: =+J31 ->  | O31: =+K31 -> 
B32: 7 | E32: Add Horns HK Desc only data | F32: =IF(OR(D32<0,D32=""),"",INDEX([1]!AlmDHornsHKetAl,MATCH(E32,[1]!AlmDHornsHKDesc,0),3)) -> 
B33: 8 | E33: Make an Horns HK etAl table here | F33: =IF(OR(D33<0,D33=""),"",INDEX([1]!AlmDHornsHKetAl,MATCH(E33,[1]!AlmDHornsHKDesc,0),3)) -> 
B34: 9 | E34: zSpare HK Hornz | F34: =IF(OR(D34<0,D34=""),"",INDEX([1]!AlmDHornsHKetAl,MATCH(E34,[1]!AlmDHornsHKDesc,0),3)) -> 
B35: 10 | E35: Add Horns HK Desc only data | F35: =IF(OR(D35<0,D35=""),"",INDEX([1]!AlmDHornsHKetAl,MATCH(E35,[1]!AlmDHornsHKDesc,0),3)) ->  | J35: =IF(OR(D35="",E35=""),"",IF(G35>0,D35*G35,D35*F35)) ->  | K35: =+J35 ->  | O35: =+K35 -> 
B36: 11
B40: 0 | E40: Horn-Strobes
B41: 1 | E41: Add HornStrobe HKDesc only data | F41: =IF(OR(D41<0,D41=""),"",INDEX([1]!AlmDHornStrobeHKetAl,MATCH(E41,[1]!AlmDHornStrobeHKDesc,0),3)) ->  | J41: =IF(OR(D41="",E41=""),"",IF(G41>0,D41*G41,D41*F41)) ->  | K41: =+J41 ->  | O41: =+K41 -> 
B42: 2 | E42: Make an HornStrobe HKetAl table here | F42: =IF(OR(D42<0,D42=""),"",INDEX([1]!AlmDHornStrobeHKetAl,MATCH(E42,[1]!AlmDHornStrobeHKDesc,0),3)) -> 
B43: 3 | E43: zSpares Horn Strobes 1 | F43: =IF(OR(D43<0,D43=""),"",INDEX([1]!AlmDHornStrobeHKetAl,MATCH(E43,[1]!AlmDHornStrobeHKDesc,0),3)) -> 
B44: 4 | E44: Add HornStrobe HKDesc only data | F44: =IF(OR(D44<0,D44=""),"",INDEX([1]!AlmDHornStrobeHKetAl,MATCH(E44,[1]!AlmDHornStrobeHKDesc,0),3)) -> 
B45: 5 | E45: zSpares Horn Strobes 1 | F45: =IF(OR(D45<0,D45=""),"",INDEX([1]!AlmDHornStrobeHKetAl,MATCH(E45,[1]!AlmDHornStrobeHKDesc,0),3)) -> 
B46: 6 | E46: Add HornStrobe HKDesc only data | F46: =IF(OR(D46<0,D46=""),"",INDEX([1]!AlmDHornStrobeHKetAl,MATCH(E46,[1]!AlmDHornStrobeHKDesc,0),3)) -> 
B47: 7 | E47: Make an HornStrobe HKetAl table here | F47: =IF(OR(D47<0,D47=""),"",INDEX([1]!AlmDHornStrobeHKetAl,MATCH(E47,[1]!AlmDHornStrobeHKDesc,0),3)) -> 
B48: 8 | E48: Add HornStrobe HKDesc only data | F48: =IF(OR(D48<0,D48=""),"",INDEX([1]!AlmDHornStrobeHKetAl,MATCH(E48,[1]!AlmDHornStrobeHKDesc,0),3)) -> 
B49: 9 | E49: zSpares Horn Strobes 1 | F49: =IF(OR(D49<0,D49=""),"",INDEX([1]!AlmDHornStrobeHKetAl,MATCH(E49,[1]!AlmDHornStrobeHKDesc,0),3)) -> 
B50: =+B49+1 -> 10 | E50: Add HornStrobe HKDesc only data | F50: =IF(OR(D50<0,D50=""),"",INDEX([1]!AlmDHornStrobeHKetAl,MATCH(E50,[1]!AlmDHornStrobeHKDesc,0),3)) -> 
B51: 11 | E51: Add HornStrobe HKDesc only data | F51: =IF(OR(D51<0,D51=""),"",INDEX([1]!AlmDHornStrobeHKetAl,MATCH(E51,[1]!AlmDHornStrobeHKDesc,0),3)) -> 
B52: 12 | E52: Add HornStrobe HKDesc only data | F52: =IF(OR(D52<0,D52=""),"",INDEX([1]!AlmDHornStrobeHKetAl,MATCH(E52,[1]!AlmDHornStrobeHKDesc,0),3)) -> 
B53: 13
B56: 0 | E56: Power Supplies & Batteries
B57: =+B56+1 -> 1 | E57: VS 2 Booster Power Supplies for VS-2 | F57: =IF(OR(D57<0,D57=""),"",INDEX([1]!AlmDPowerVSetAl,MATCH(E57,[1]!AlmDPowerVSDesc,0),3)) ->  | J57: =IF(OR(D57="",E57=""),"",IF(G57>0,D57*G57,D57*F57)) ->  | K57: =+J57 ->  | O57: =+K57 -> 
B58: 2 | E58: VS E-BPS-10 Amp Hr | F58: =IF(OR(D58<0,D58=""),"",INDEX([1]!AlmDPowerVSetAl,MATCH(E58,[1]!AlmDPowerVSDesc,0),3)) -> 
B59: 3 | E59: VS E-BPS-6 Amp Hr | F59: =IF(OR(D59<0,D59=""),"",INDEX([1]!AlmDPowerVSetAl,MATCH(E59,[1]!AlmDPowerVSDesc,0),3)) -> 
B60: 4 | E60: zSpare 1 | F60: =IF(OR(D60<0,D60=""),"",INDEX([1]!AlmDPowerVSetAl,MATCH(E60,[1]!AlmDPowerVSDesc,0),3)) -> 
B61: 5
B64: 0 | E64: Pull Stations
B65: =+B64+1 -> 1 | E65: Conventional | F65: =IF(OR(D65=0,E65=""),"",VLOOKUP(E65,[1]!AlmPullStnEtAl,3)) ->  | J65: =IF(OR(D65="",E65=""),"",IF(G65>0,D65*G65,D65*F65)) ->  | K65: =+J65 ->  | O65: =+K65 -> 
B66: =+B65+1 -> 2 | E66: zSpare 1 | F66: =IF(OR(D66=0,E66=""),"",VLOOKUP(E66,[1]!AlmPullStnEtAl,3)) -> 
B67: 3
B70: 0 | E70: Strobes only
B71: 1 | F71: =IF(OR(D71<0,D71=""),"",INDEX([1]!AlmDStrobeHKetAl,MATCH(E71,[1]!AlmDStrobeHKDesc,0),3)) ->  | J71: =IF(OR(D71="",E71=""),"",IF(G71>0,D71*G71,D71*F71)) ->  | K71: =+J71 ->  | O71: =+K71 -> 
B72: 2 | F72: =IF(OR(D72<0,D72=""),"",INDEX([1]!AlmDStrobeHKetAl,MATCH(E72,[1]!AlmDStrobeHKDesc,0),3)) -> 
B73: 3 | F73: =IF(OR(D73<0,D73=""),"",INDEX([1]!AlmDStrobeHKetAl,MATCH(E73,[1]!AlmDStrobeHKDesc,0),3)) -> 
B74: 4 | F74: =IF(OR(D74<0,D74=""),"",INDEX([1]!AlmDStrobeHKetAl,MATCH(E74,[1]!AlmDStrobeHKDesc,0),3)) -> 
B75: 5 | F75: =IF(OR(D75<0,D75=""),"",INDEX([1]!AlmDStrobeHKetAl,MATCH(E75,[1]!AlmDStrobeHKDesc,0),3)) -> 
B76: 6 | F76: =IF(OR(D76<0,D76=""),"",INDEX([1]!AlmDStrobeHKetAl,MATCH(E76,[1]!AlmDStrobeHKDesc,0),3)) -> 
B77: 7 | F77: =IF(OR(D77<0,D77=""),"",INDEX([1]!AlmDStrobeHKetAl,MATCH(E77,[1]!AlmDStrobeHKDesc,0),3)) -> 
B78: 8 | F78: =IF(OR(D78<0,D78=""),"",INDEX([1]!AlmDStrobeHKetAl,MATCH(E78,[1]!AlmDStrobeHKDesc,0),3)) -> 
B79: 9 | F79: =IF(OR(D79<0,D79=""),"",INDEX([1]!AlmDStrobeHKetAl,MATCH(E79,[1]!AlmDStrobeHKDesc,0),3)) -> 
B80: 10 | F80: =IF(OR(D80<0,D80=""),"",INDEX([1]!AlmDStrobeHKetAl,MATCH(E80,[1]!AlmDStrobeHKDesc,0),3)) -> 
B81: 11
E86: zMisc
B87: 1 | F87: =IF(OR(D87<0,D87=""),"",INDEX([1]!AlmDzMiscHKetAl,MATCH(E87,[1]!AlmDzMiscHKDesc,0),3)) ->  | J87: =IF(OR(D87="",E87=""),"",IF(G87>0,D87*G87,D87*F87)) ->  | K87: =+J87 ->  | O87: =+K87 -> 
B88: 2 | F88: =IF(OR(D88<0,D88=""),"",INDEX([1]!AlmDzMiscHKetAl,MATCH(E88,[1]!AlmDzMiscHKDesc,0),3)) -> 
B89: 3 | F89: =IF(OR(D89<0,D89=""),"",INDEX([1]!AlmDzMiscHKetAl,MATCH(E89,[1]!AlmDzMiscHKDesc,0),3)) -> 
B90: 4 | F90: =IF(OR(D90<0,D90=""),"",INDEX([1]!AlmDzMiscHKetAl,MATCH(E90,[1]!AlmDzMiscHKDesc,0),3)) -> 
B91: 5 | F91: =IF(OR(D91<0,D91=""),"",INDEX([1]!AlmDzMiscHKetAl,MATCH(E91,[1]!AlmDzMiscHKDesc,0),3)) ->  | J91: =IF(OR(D91="",E91=""),"",IF(G91>0,D91*G91,D91*F91)) ->  | K91: =+J91 ->  | O91: =+K91 -> 
B92: 6
J95: =IF(D95>0,IF(G95>0,D95*G95,D95*F95),"") ->  | K95: =+J95 ->  | O95: =+K95 -> 
B96: 0 | E96: zOther
B97: =+B96+1 -> 1 | E97: Add HK OTHER data | F97: =IF(OR(D97<0,D97=""),"",INDEX([1]!AlmDOtherHKetAl,MATCH(E97,[1]!AlmDOtherHKDesc,0),3)) ->  | J97: =IF(OR(D97="",E97=""),"",IF(G97>0,D97*G97,D97*F97)) ->  | K97: =+J97 ->  | O97: =+K97 -> 
B98: 2 | E98: Make an HK OTHER table here | F98: =IF(OR(D98<0,D98=""),"",INDEX([1]!AlmDOtherHKetAl,MATCH(E98,[1]!AlmDOtherHKDesc,0),3)) -> 
B99: 3 | E99: Add HK OTHER data | F99: =IF(OR(D99<0,D99=""),"",INDEX([1]!AlmDOtherHKetAl,MATCH(E99,[1]!AlmDOtherHKDesc,0),3)) -> 
B100: 4 | E100: Make an HK OTHER table here | F100: =IF(OR(D100<0,D100=""),"",INDEX([1]!AlmDOtherHKetAl,MATCH(E100,[1]!AlmDOtherHKDesc,0),3)) -> 
B101: 5 | E101: Add HK OTHER data | F101: =IF(OR(D101<0,D101=""),"",INDEX([1]!AlmDOtherHKetAl,MATCH(E101,[1]!AlmDOtherHKDesc,0),3)) -> 
B102: 6 | E102: Make an HK OTHER table here | F102: =IF(OR(D102<0,D102=""),"",INDEX([1]!AlmDOtherHKetAl,MATCH(E102,[1]!AlmDOtherHKDesc,0),3)) -> 
B103: 7 | E103: Add HK OTHER data | F103: =IF(OR(D103<0,D103=""),"",INDEX([1]!AlmDOtherHKetAl,MATCH(E103,[1]!AlmDOtherHKDesc,0),3)) -> 
B104: 8 | E104: Add HK OTHER data | F104: =IF(OR(D104<0,D104=""),"",INDEX([1]!AlmDOtherHKetAl,MATCH(E104,[1]!AlmDOtherHKDesc,0),3)) -> 
B105: 9 | E105: Add HK OTHER data | F105: =IF(OR(D105<0,D105=""),"",INDEX([1]!AlmDOtherHKetAl,MATCH(E105,[1]!AlmDOtherHKDesc,0),3)) -> 
B106: 10 | E106: Add HK OTHER data | F106: =IF(OR(D106<0,D106=""),"",INDEX([1]!AlmDOtherHKetAl,MATCH(E106,[1]!AlmDOtherHKDesc,0),3)) -> 
B107: 11 | E107: Add HK OTHER data | F107: =IF(OR(D107<0,D107=""),"",INDEX([1]!AlmDOtherHKetAl,MATCH(E107,[1]!AlmDOtherHKDesc,0),3)) -> 
B108: 12 | E108: Add HK OTHER data | F108: =IF(OR(D108<0,D108=""),"",INDEX([1]!AlmDOtherHKetAl,MATCH(E108,[1]!AlmDOtherHKDesc,0),3)) -> 
B109: 13
J110: =IF(D110>0,IF(G110>0,D110*G110,D110*F110),"") -> 
J111: =IF(D111>0,IF(G111>0,D111*G111,D111*F111),"") ->  | K111: =+J111 ->  | O111: =+K111 -> 
J112: =IF(OR(D112="",E112=""),"",IF(G112>0,D112*G112,D112*F112)) ->  | K112: =+J112 ->  | O112: =+K112 -> 
J113: =IF(OR(D113="",E113=""),"",IF(G113>0,D113*G113,D113*F113)) ->  | K113: =+J113 ->  | O113: =+K113 -> 
J114: =IF(OR(D114="",E114=""),"",IF(G114>0,D114*G114,D114*F114)) ->  | K114: =+J114 ->  | O114: =+K114 -> 
J115: =IF(OR(D115="",E115=""),"",IF(G115>0,D115*G115,D115*F115)) ->  | K115: =+J115 ->  | O115: =+K115 -> 
E119: Alarm Devices etc | O119: =SUM(O9:O118) -> 0
E123: 01 Electrician KP Electric Sandy | F123: =IF(OR(D123<0,E123=""),"",VLOOKUP(E123,[1]!subsEtAl,3)) -> 82.5
E124: Digital Alarm Communicator Transmitter (DACT)

Sheet K Alms HW
D1: To Table of Contents
N2: FALSE
D3: Rev: 2016-10-30 13:25
E5: =MID(CELL("filename",A1),FIND("]",CELL("filename",A1))+1,255) -> K Alms HW | O5: Sales Tax
E6: Click in a cell below to change a line item | N6: TRUE | O6: =+UTsalesTax -> 0.071
E7: from the list | F7: =CHAR(242) -> ò | G7: ò | H7: ò | I7: ò | J7: ò | K7: ò | O7: =IF(N6=TRUE,SUM(O9:O108)+(SUM(O9:O108))*O6,SUM(O9:O108)) -> 0
E8: ò | F8: Remember the SPARE devices for the after-install service & warranty period. You must ADD in the cost of additional units
E9: Alarm Parts HW | F9: Either | G9: Or | H9: Unit | J9: Extension | K9: Totals | O9: Final
E10: Devices
E11: Honewell HW
B13: 0 | E13: Addressable HW BADDDD
B14: =+B13+1 -> 1 | F14: =IF(OR(D14<0,D14=""),"",INDEX([1]!AlmDAddressSKetAl,MATCH(E14,[1]!AlmDAddressSKDesc,0),3)) ->  | J14: =IF(OR(D14="",E14=""),"",IF(G14>0,D14*G14,D14*F14)) ->  | K14: =+J14 ->  | O14: =+K14 -> 
B15: 2 | F15: =IF(OR(D15<0,D15=""),"",INDEX([1]!AlmDAddressSKetAl,MATCH(E15,[1]!AlmDAddressSKDesc,0),3)) -> 
B16: 3 | F16: =IF(OR(D16<0,D16=""),"",INDEX([1]!AlmDAddressSKetAl,MATCH(E16,[1]!AlmDAddressSKDesc,0),3)) -> 
B17: 4 | F17: =IF(OR(D17<0,D17=""),"",INDEX([1]!AlmDAddressSKetAl,MATCH(E17,[1]!AlmDAddressSKDesc,0),3)) -> 
B18: 5 | F18: =IF(OR(D18<0,D18=""),"",INDEX([1]!AlmDAddressSKetAl,MATCH(E18,[1]!AlmDAddressSKDesc,0),3)) -> 
B19: 6 | F19: =IF(OR(D19<0,D19=""),"",INDEX([1]!AlmDAddressSKetAl,MATCH(E19,[1]!AlmDAddressSKDesc,0),3)) -> 
B20: 7 | F20: =IF(OR(D20<0,D20=""),"",INDEX([1]!AlmDAddressSKetAl,MATCH(E20,[1]!AlmDAddressSKDesc,0),3)) -> 
B21: 8 | F21: =IF(OR(D21<0,D21=""),"",INDEX([1]!AlmDAddressSKetAl,MATCH(E21,[1]!AlmDAddressSKDesc,0),3)) -> 
B22: 9 | F22: =IF(OR(D22<0,D22=""),"",INDEX([1]!AlmDAddressSKetAl,MATCH(E22,[1]!AlmDAddressSKDesc,0),3)) -> 
B23: 10 | F23: =IF(OR(D23<0,D23=""),"",INDEX([1]!AlmDAddressSKetAl,MATCH(E23,[1]!AlmDAddressSKDesc,0),3)) -> 
B24: 11 | F24: =IF(OR(D24<0,D24=""),"",INDEX([1]!AlmDAddressSKetAl,MATCH(E24,[1]!AlmDAddressSKDesc,0),3)) -> 
B25: 12 | F25: =IF(OR(D25<0,D25=""),"",INDEX([1]!AlmDAddressSKetAl,MATCH(E25,[1]!AlmDAddressSKDesc,0),3)) -> 
B26: 13
B30: 0 | E30: Detectors & Smokes
B31: =+B30+1 -> 1 | E31: HFS GW-FCI Addressable Smoke Detectors-Sounder Bases | F31: =IF(OR(D31<0,D31=""),"",INDEX([1]!AlmDDetectHWetAl,MATCH(E31,[1]!AlmDDetectHWDesc,0),3)) ->  | J31: =IF(OR(D31="",E31=""),"",IF(G31>0,D31*G31,D31*F31)) ->  | K31: =+J31 ->  | O31: =+K31 -> 
B32: 2 | E32: Honeywell GW-FCI XP95 4” Mounting Base | F32: =IF(OR(D32<0,D32=""),"",INDEX([1]!AlmDDetectHWetAl,MATCH(E32,[1]!AlmDDetectHWDesc,0),3)) -> 
B33: 3 | E33: Honeywell GW-FCI XP95 6” Addressable Sounder Base | F33: =IF(OR(D33<0,D33=""),"",INDEX([1]!AlmDDetectHWetAl,MATCH(E33,[1]!AlmDDetectHWDesc,0),3)) -> 
B34: 4 | E34: Honeywell GW-FCI XP95 6” E-Z Fit Mounting Base
B35: 5 | E35: Honeywell GW-FCI XP95 6” Low Profile Relay Base
B36: 6 | E36: Honeywell GW-FCI XP95 Isolator Base
B37: 7 | E37: Honeywell GW-FCI XP95-Multi sensor detector (ISA)
B38: 8
B42: 0 | E42: Horns
B43: 1 | E43: Add HW Horns data | F43: =IF(OR(D43<0,D43=""),"",INDEX([1]!AlmDHornsHWetAl,MATCH(E43,[1]!AlmDHornsHWDesc,0),3)) ->  | J43: =IF(OR(D43="",E43=""),"",IF(G43>0,D43*G43,D43*F43)) ->  | K43: =+J43 ->  | O43: =+K43 -> 
B44: 2 | E44: Made a HW HORNZ table here | F44: =IF(OR(D44<0,D44=""),"",INDEX([1]!AlmDHornsHWetAl,MATCH(E44,[1]!AlmDHornsHWDesc,0),3)) ->  | J44: =IF(OR(D44="",E44=""),"",IF(G44>0,D44*G44,D44*F44)) ->  | K44: =+J44 ->  | O44: =+K44 -> 
B45: 3 | E45: Add HW Horns data | F45: =IF(OR(D45<0,D45=""),"",INDEX([1]!AlmDHornsHWetAl,MATCH(E45,[1]!AlmDHornsHWDesc,0),3)) -> 
B46: 4 | E46: Made a HW HORNZ table here | F46: =IF(OR(D46<0,D46=""),"",INDEX([1]!AlmDHornsHWetAl,MATCH(E46,[1]!AlmDHornsHWDesc,0),3)) -> 
B47: 5 | E47: Add HW Horns data | F47: =IF(OR(D47<0,D47=""),"",INDEX([1]!AlmDHornsHWetAl,MATCH(E47,[1]!AlmDHornsHWDesc,0),3)) ->  | J47: =IF(OR(D47="",E47=""),"",IF(G47>0,D47*G47,D47*F47)) ->  | K47: =+J47 ->  | O47: =+K47 -> 
B48: 6 | J48: =IF(OR(D48="",E48=""),"",IF(G48>0,D48*G48,D48*F48)) ->  | K48: =+J48 ->  | O48: =+K48 -> 
B52: 0 | E52: Horn-Strobes
B53: 1 | F53: =IF(OR(D53<0,D53=""),"",INDEX([1]!AlmDHornStrobeSKEtAl,MATCH(E53,[1]!AlmDHornStrobeSKDesc,0),3)) ->  | J53: =IF(OR(D53="",E53=""),"",IF(G53>0,D53*G53,D53*F53)) ->  | K53: =+J53 ->  | O53: =+K53 -> 
B54: 2 | F54: =IF(OR(D54<0,D54=""),"",INDEX([1]!AlmDHornStrobeSKEtAl,MATCH(E54,[1]!AlmDHornStrobeSKDesc,0),3)) ->  | J54: =IF(OR(D54="",E54=""),"",IF(G54>0,D54*G54,D54*F54)) ->  | K54: =+J54 ->  | O54: =+K54 -> 
B55: 3 | F55: =IF(OR(D55<0,D55=""),"",INDEX([1]!AlmDHornStrobeSKEtAl,MATCH(E55,[1]!AlmDHornStrobeSKDesc,0),3)) -> 
B56: 4 | F56: =IF(OR(D56<0,D56=""),"",INDEX([1]!AlmDHornStrobeSKEtAl,MATCH(E56,[1]!AlmDHornStrobeSKDesc,0),3)) -> 
B57: 5 | F57: =IF(OR(D57<0,D57=""),"",INDEX([1]!AlmDHornStrobeSKEtAl,MATCH(E57,[1]!AlmDHornStrobeSKDesc,0),3)) -> 
B58: 6 | F58: =IF(OR(D58<0,D58=""),"",INDEX([1]!AlmDHornStrobeSKEtAl,MATCH(E58,[1]!AlmDHornStrobeSKDesc,0),3)) -> 
B59: 7 | F59: =IF(OR(D59<0,D59=""),"",INDEX([1]!AlmDHornStrobeSKEtAl,MATCH(E59,[1]!AlmDHornStrobeSKDesc,0),3)) -> 
B60: 8
B62: 0 | E62: Power Supplies BADD
B63: 1 | E63: Add HW Power Supply Data | F63: =IF(OR(D63<0,D63=""),"",INDEX([1]!AlmDPowerHWetAl,MATCH(E63,[1]!AlmDPowerHWDesc,0),3)) ->  | J63: =IF(OR(D63="",E63=""),"",IF(G63>0,D63*G63,D63*F63)) ->  | K63: =+J63 ->  | O63: =+K63 -> 
B64: 2 | E64: HW PS Table 1 | F64: =IF(OR(D64<0,D64=""),"",INDEX([1]!AlmDPowerHWetAl,MATCH(E64,[1]!AlmDPowerHWDesc,0),3)) -> 
B65: 3 | E65: HW PS Table 2 | F65: =IF(OR(D65<0,D65=""),"",INDEX([1]!AlmDPowerHWetAl,MATCH(E65,[1]!AlmDPowerHWDesc,0),3)) -> 
B66: 4 | E66: HW PS Table 3 | F66: =IF(OR(D66<0,D66=""),"",INDEX([1]!AlmDPowerHWetAl,MATCH(E66,[1]!AlmDPowerHWDesc,0),3)) -> 
B67: 5
B70: 0 | E70: Pull Stations
B71: 1 | F71: =IF(OR(D71<0,D71=""),"",INDEX([1]!AlmDPullSKEtAl,MATCH(E71,[1]!AlmDPullSKDesc,0),3)) ->  | J71: =IF(OR(D71="",E71=""),"",IF(G71>0,D71*G71,D71*F71)) ->  | K71: =+J71 ->  | O71: =+K71 -> 
B72: 2 | F72: =IF(OR(D72<0,D72=""),"",INDEX([1]!AlmDPullSKEtAl,MATCH(E72,[1]!AlmDPullSKDesc,0),3)) -> 
B73: 3 | F73: =IF(OR(D73<0,D73=""),"",INDEX([1]!AlmDPullSKEtAl,MATCH(E73,[1]!AlmDPullSKDesc,0),3)) -> 
B74: 4 | F74: =IF(OR(D74<0,D74=""),"",INDEX([1]!AlmDPullSKEtAl,MATCH(E74,[1]!AlmDPullSKDesc,0),3)) -> 
B75: 5 | F75: =IF(OR(D75<0,D75=""),"",INDEX([1]!AlmDPullSKEtAl,MATCH(E75,[1]!AlmDPullSKDesc,0),3)) -> 
B76: 6 | F76: =IF(OR(D76<0,D76=""),"",INDEX([1]!AlmDPullSKEtAl,MATCH(E76,[1]!AlmDPullSKDesc,0),3)) -> 
B77: 7
B81: 0 | E81: Strobes only
B82: 1 | F82: =IF(OR(D82<0,D82=""),"",INDEX([1]!AlmDStrobeSKetAl,MATCH(E82,[1]!AlmDStrobeSKDesc,0),3)) ->  | J82: =IF(OR(D82="",E82=""),"",IF(G82>0,D82*G82,D82*F82)) ->  | K82: =+J82 ->  | O82: =+K82 -> 
B83: 2 | F83: =IF(OR(D83<0,D83=""),"",INDEX([1]!AlmDStrobeSKetAl,MATCH(E83,[1]!AlmDStrobeSKDesc,0),3)) -> 
B84: 3 | F84: =IF(OR(D84<0,D84=""),"",INDEX([1]!AlmDStrobeSKetAl,MATCH(E84,[1]!AlmDStrobeSKDesc,0),3)) -> 
B85: 4 | F85: =IF(OR(D85<0,D85=""),"",INDEX([1]!AlmDStrobeSKetAl,MATCH(E85,[1]!AlmDStrobeSKDesc,0),3)) -> 
B86: 5 | F86: =IF(OR(D86<0,D86=""),"",INDEX([1]!AlmDStrobeSKetAl,MATCH(E86,[1]!AlmDStrobeSKDesc,0),3)) -> 
B87: 6
B91: 0 | E91: zMisc
B92: 1 | F92: =IF(OR(D92<0,D92=""),"",INDEX([1]!AlmDMiscSKetAl,MATCH(E92,[1]!AlmDMiscSKDesc,0),3)) ->  | J92: =IF(OR(D92="",E92=""),"",IF(G92>0,D92*G92,D92*F92)) ->  | K92: =+J92 ->  | O92: =+K92 -> 
B93: 2 | F93: =IF(OR(D93<0,D93=""),"",INDEX([1]!AlmDMiscSKetAl,MATCH(E93,[1]!AlmDMiscSKDesc,0),3)) -> 
B94: 3
B98: 0 | E98: zOther
B99: 1 | E99: Add HW OTHER data | F99: =IF(OR(D99<0,D99=""),"",INDEX([1]!AlmDOtherHWetAL,MATCH(E99,[1]!AlmDOtherHWDesc,0),3)) ->  | J99: =IF(OR(D99="",E99=""),"",IF(G99>0,D99*G99,D99*F99)) ->  | K99: =+J99 ->  | O99: =+K99 -> 
B100: 2 | E100: Made a HW OTHER table here | F100: =IF(OR(D100<0,D100=""),"",INDEX([1]!AlmDOtherHWetAL,MATCH(E100,[1]!AlmDOtherHWDesc,0),3)) -> 
B101: =+B100+1 -> 3 | E101: Made a HW OTHER table here | F101: =IF(OR(D101<0,D101=""),"",INDEX([1]!AlmDOtherHWetAL,MATCH(E101,[1]!AlmDOtherHWDesc,0),3)) -> 
B102: 4 | E102: Made a HW OTHER table here | F102: =IF(OR(D102<0,D102=""),"",INDEX([1]!AlmDOtherHWetAL,MATCH(E102,[1]!AlmDOtherHWDesc,0),3)) -> 
B103: 5
B107: =+B106+1 -> 1 | J107: =IF(OR(D107="",E107=""),"",IF(G107>0,D107*G107,D107*F107)) ->  | K107: =+J107 ->  | O107: =+K107 -> 
E109: Alarm Devices etc | O109: =SUM(O9:O108) -> 0

Sheet L Alms SK
D1: To Table of Contents
N2: FALSE
D3: Rev: 2016-10-30 13:25
E5: =MID(CELL("filename",A1),FIND("]",CELL("filename",A1))+1,255) -> L Alms SK | O5: Sales Tax
E6: Click in a cell below to change a line item | N6: TRUE | O6: =+UTsalesTax -> 0.071
E7: from the list | F7: =CHAR(242) -> ò | G7: ò | H7: ò | I7: ò | J7: ò | K7: ò | O7: =IF(N6=TRUE,SUM(O9:O100)+(SUM(O9:O100))*O6,SUM(O9:O100)) -> 0
E8: ò | F8: Remember the SPARE devices for the after-install service & warranty period. You must ADD in the cost of additional units
E9: Alarm Parts SK | F9: Either | G9: Or | H9: Unit | J9: Extension | K9: Totals | O9: Final
E10: Devices
E11: Silent Knight SK
B13: 0 | E13: Addressable SK
B14: =+B13+1 -> 1 | E14: SK-Acclimate Mult-Criteria Detector W/ Base | F14: =IF(OR(D14<0,D14=""),"",INDEX([1]!AlmDAddressSKetAl,MATCH(E14,[1]!AlmDAddressSKDesc,0),3)) ->  | J14: =IF(OR(D14="",E14=""),"",IF(G14>0,D14*G14,D14*F14)) ->  | K14: =+J14 ->  | O14: =+K14 -> 
B15: 2 | E15: SK-Beam Beam Detector | F15: =IF(OR(D15<0,D15=""),"",INDEX([1]!AlmDAddressSKetAl,MATCH(E15,[1]!AlmDAddressSKDesc,0),3)) -> 
B16: 3 | E16: SK-Beam-T Beam Detector W/ Test | F16: =IF(OR(D16<0,D16=""),"",INDEX([1]!AlmDAddressSKetAl,MATCH(E16,[1]!AlmDAddressSKDesc,0),3)) -> 
B17: 4 | E17: SK-Control Control Module | F17: =IF(OR(D17<0,D17=""),"",INDEX([1]!AlmDAddressSKetAl,MATCH(E17,[1]!AlmDAddressSKDesc,0),3)) -> 
B18: 5 | E18: SK-Control-6 6 Output Control Module | F18: =IF(OR(D18<0,D18=""),"",INDEX([1]!AlmDAddressSKetAl,MATCH(E18,[1]!AlmDAddressSKDesc,0),3)) -> 
B19: 6 | E19: SK-Duct Duct Detector W/ Photo | F19: =IF(OR(D19<0,D19=""),"",INDEX([1]!AlmDAddressSKetAl,MATCH(E19,[1]!AlmDAddressSKDesc,0),3)) -> 
B20: 7 | E20: SK-FIRE-CO Addressable Combo Fire/ CO Det | F20: =IF(OR(D20<0,D20=""),"",INDEX([1]!AlmDAddressSKetAl,MATCH(E20,[1]!AlmDAddressSKDesc,0),3)) -> 
B21: 8 | E21: SK-Heat Heat Detector W/ Base | F21: =IF(OR(D21<0,D21=""),"",INDEX([1]!AlmDAddressSKetAl,MATCH(E21,[1]!AlmDAddressSKDesc,0),3)) -> 
B22: 9 | E22: SK-Heat-HT High Temp Heat Detector W/ Base | F22: =IF(OR(D22<0,D22=""),"",INDEX([1]!AlmDAddressSKetAl,MATCH(E22,[1]!AlmDAddressSKDesc,0),3)) -> 
B23: 10 | F23: =IF(OR(D23<0,D23=""),"",INDEX([1]!AlmDAddressSKetAl,MATCH(E23,[1]!AlmDAddressSKDesc,0),3)) -> 
B24: 11 | F24: =IF(OR(D24<0,D24=""),"",INDEX([1]!AlmDAddressSKetAl,MATCH(E24,[1]!AlmDAddressSKDesc,0),3)) -> 
B25: 12 | F25: =IF(OR(D25<0,D25=""),"",INDEX([1]!AlmDAddressSKetAl,MATCH(E25,[1]!AlmDAddressSKDesc,0),3)) -> 
B26: 13
B30: 0 | E30: Detectors & Smokes
B31: =+B30+1 -> 1 | E31: Add SK Detect data | F31: =IF(OR(D31<0,D31=""),"",INDEX([1]!AlmDDetectSKEtAl,MATCH(E31,[1]!AlmDDetectSKDesc,0),3)) ->  | J31: =IF(OR(D31="",E31=""),"",IF(G31>0,D31*G31,D31*F31)) ->  | K31: =+J31 ->  | O31: =+K31 -> 
B32: 2 | E32: Made an SK Detect table here | F32: =IF(OR(D32<0,D32=""),"",INDEX([1]!AlmDDetectSKEtAl,MATCH(E32,[1]!AlmDDetectSKDesc,0),3)) -> 
B33: 3 | F33: =IF(OR(D33<0,D33=""),"",INDEX([1]!AlmDDetectSKEtAl,MATCH(E33,[1]!AlmDDetectSKDesc,0),3)) -> 
B34: 4
B38: 0 | E38: Horns
B39: 1 | E39: Add SK Horns data | F39: =IF(OR(D39<0,D39=""),"",INDEX([1]!AlmDHornsSKEtAl,MATCH(E39,[1]!AlmDHornsSKDesc,0),3)) ->  | J39: =IF(OR(D39="",E39=""),"",IF(G39>0,D39*G39,D39*F39)) ->  | K39: =+J39 ->  | O39: =+K39 -> 
B40: 2 | E40: Made a SK HORNZ table here | F40: =IF(OR(D40<0,D40=""),"",INDEX([1]!AlmDHornsSKEtAl,MATCH(E40,[1]!AlmDHornsSKDesc,0),3)) -> 
B41: 3
B42: 4 | J42: =IF(OR(D42="",E42=""),"",IF(G42>0,D42*G42,D42*F42)) ->  | K42: =+J42 ->  | O42: =+K42 -> 
B46: 0 | E46: Horn-Strobes
B47: 1 | E47: Add SK Horn STROBE data | F47: =IF(OR(D47<0,D47=""),"",INDEX([1]!AlmDHornStrobeSKEtAl,MATCH(E47,[1]!AlmDHornStrobeSKDesc,0),3)) ->  | J47: =IF(OR(D47="",E47=""),"",IF(G47>0,D47*G47,D47*F47)) ->  | K47: =+J47 ->  | O47: =+K47 -> 
B48: 2 | E48: Made a SK HornStrobe table here | F48: =IF(OR(D48<0,D48=""),"",INDEX([1]!AlmDHornStrobeSKEtAl,MATCH(E48,[1]!AlmDHornStrobeSKDesc,0),3)) -> 
B49: 3 | F49: =IF(OR(D49<0,D49=""),"",INDEX([1]!AlmDHornStrobeSKEtAl,MATCH(E49,[1]!AlmDHornStrobeSKDesc,0),3)) -> 
B50: 4 | F50: =IF(OR(D50<0,D50=""),"",INDEX([1]!AlmDHornStrobeSKEtAl,MATCH(E50,[1]!AlmDHornStrobeSKDesc,0),3)) -> 
B56: 0 | E56: Power Supplies
B57: 1 | E57: SK 5495 6A 6 Amp NAC Power Supply W/ Sync | F57: =IF(OR(D57<0,D57=""),"",INDEX([1]!AlmDPsBattSKetAl,MATCH(E57,[1]!AlmDPsBattSKDesc,0),3)) ->  | J57: =IF(OR(D57="",E57=""),"",IF(G57>0,D57*G57,D57*F57)) ->  | K57: =+J57 ->  | O57: =+K57 -> 
B58: 2 | E58: SK 5496 6A Intelligent 6 Amp Power Supply | F58: =IF(OR(D58<0,D58=""),"",INDEX([1]!AlmDPsBattSKetAl,MATCH(E58,[1]!AlmDPsBattSKDesc,0),3)) -> 
B59: 3 | E59: SK 5499 9A 9 Amp NAC Power Supply W/ Sync | F59: =IF(OR(D59<0,D59=""),"",INDEX([1]!AlmDPsBattSKetAl,MATCH(E59,[1]!AlmDPsBattSKDesc,0),3)) -> 
B60: 4 | E60: SK 5895 XL Inteliknight Power Supply | F60: =IF(OR(D60<0,D60=""),"",INDEX([1]!AlmDPsBattSKetAl,MATCH(E60,[1]!AlmDPsBattSKDesc,0),3)) -> 
B64: 0 | E64: Pull Stations
B65: 1 | E65: SK-PSDA Dual Action Pull Stn Conventional | F65: =IF(OR(D65<0,D65=""),"",INDEX([1]!AlmDPullSKEtAl,MATCH(E65,[1]!AlmDPullSKDesc,0),3)) ->  | J65: =IF(OR(D65="",E65=""),"",IF(G65>0,D65*G65,D65*F65)) ->  | K65: =+J65 ->  | O65: =+K65 -> 
B66: 2 | E66: SK-Pull-Dual Action Addressable | F66: =IF(OR(D66<0,D66=""),"",INDEX([1]!AlmDPullSKEtAl,MATCH(E66,[1]!AlmDPullSKDesc,0),3)) -> 
B67: 3 | E67: SK-Pull-Single Action Addressable | F67: =IF(OR(D67<0,D67=""),"",INDEX([1]!AlmDPullSKEtAl,MATCH(E67,[1]!AlmDPullSKDesc,0),3)) -> 
B68: 4 | E68: zSpare 1 | F68: =IF(OR(D68<0,D68=""),"",INDEX([1]!AlmDPullSKEtAl,MATCH(E68,[1]!AlmDPullSKDesc,0),3)) -> 
B69: 5 | F69: =IF(OR(D69<0,D69=""),"",INDEX([1]!AlmDPullSKEtAl,MATCH(E69,[1]!AlmDPullSKDesc,0),3)) -> 
B70: 6 | F70: =IF(OR(D70<0,D70=""),"",INDEX([1]!AlmDPullSKEtAl,MATCH(E70,[1]!AlmDPullSKDesc,0),3)) -> 
B71: 7
B75: 0 | E75: Strobes only
B76: 1 | E76: Add STRobe Only data | F76: =IF(OR(D76<0,D76=""),"",INDEX([1]!AlmDStrobeSKetAl,MATCH(E76,[1]!AlmDStrobeSKDesc,0),3)) ->  | J76: =IF(OR(D76="",E76=""),"",IF(G76>0,D76*G76,D76*F76)) ->  | K76: =+J76 ->  | O76: =+K76 -> 
B77: 2 | E77: Made a STrobe Only table here | F77: =IF(OR(D77<0,D77=""),"",INDEX([1]!AlmDStrobeSKetAl,MATCH(E77,[1]!AlmDStrobeSKDesc,0),3)) -> 
B78: 3 | F78: =IF(OR(D78<0,D78=""),"",INDEX([1]!AlmDStrobeSKetAl,MATCH(E78,[1]!AlmDStrobeSKDesc,0),3)) -> 
B79: 4 | F79: =IF(OR(D79<0,D79=""),"",INDEX([1]!AlmDStrobeSKetAl,MATCH(E79,[1]!AlmDStrobeSKDesc,0),3)) -> 
B80: 5 | F80: =IF(OR(D80<0,D80=""),"",INDEX([1]!AlmDStrobeSKetAl,MATCH(E80,[1]!AlmDStrobeSKDesc,0),3)) -> 
B81: 6
B85: 0 | E85: zMisc
B86: 1 | E86: Add SK zMisc data | F86: =IF(OR(D86<0,D86=""),"",INDEX([1]!AlmDMiscSKetAl,MATCH(E86,[1]!AlmDMiscSKDesc,0),3)) ->  | J86: =IF(OR(D86="",E86=""),"",IF(G86>0,D86*G86,D86*F86)) ->  | K86: =+J86 ->  | O86: =+K86 -> 
B87: 2 | E87: Make a zMisc SK table here | F87: =IF(OR(D87<0,D87=""),"",INDEX([1]!AlmDMiscSKetAl,MATCH(E87,[1]!AlmDMiscSKDesc,0),3)) -> 
B88: 3
B92: 0 | E92: zOther
B93: 1 | E93: Add SK OTHER data | F93: =IF(OR(D93<0,D93=""),"",INDEX([1]!AlmDOtherSKEtAl,MATCH(E93,[1]!AlmDOtherSKDesc,0),3)) ->  | J93: =IF(OR(D93="",E93=""),"",IF(G93>0,D93*G93,D93*F93)) ->  | K93: =+J93 ->  | O93: =+K93 -> 
B94: 2 | E94: Made a SK OTHER table here | F94: =IF(OR(D94<0,D94=""),"",INDEX([1]!AlmDOtherSKEtAl,MATCH(E94,[1]!AlmDOtherSKDesc,0),3)) -> 
B95: =+B94+1 -> 3
B99: =+B98+1 -> 1 | J99: =IF(OR(D99="",E99=""),"",IF(G99>0,D99*G99,D99*F99)) ->  | K99: =+J99 ->  | O99: =+K99 -> 
E101: Alarm Devices etc | O101: =SUM(O9:O100) -> 0

Sheet M Alms VS
D1: To Table of Contents
N2: FALSE
D3: Rev: 2016-12-17 16:00
E5: =MID(CELL("filename",A1),FIND("]",CELL("filename",A1))+1,255) -> M Alms VS | O5: Sales Tax
E6: Click in a cell below to change a line item | N6: TRUE | O6: =+UTsalesTax -> 0.071
E7: from the list | F7: =CHAR(242) -> ò | G7: ò | H7: ò | I7: ò | J7: ò | K7: ò | O7: =IF(N6=TRUE,SUM(O9:O105)+(SUM(O9:O105))*O6,SUM(O9:O105)) -> 0
E8: ò | F8: Remember the SPARE devices for the after-install service & warranty period. You must ADD in the cost of additional units
E9: Alarm Parts VS | F9: Either | G9: Or | H9: Unit | J9: Extension | K9: Totals | O9: Final
E10: Devices
E11: Vigilant VS
B13: 0 | E13: Addressable VS BADDDD
B14: =+B13+1 -> 1 | E14: Probably won't implement | F14: =IF(OR(D14<0,D14=""),"",INDEX([1]!AlmDAddressVSetAl,MATCH(E14,[1]!AlmDAddressVSDesc,0),3)) ->  | J14: =IF(OR(D14="",E14=""),"",IF(G14>0,D14*G14,D14*F14)) ->  | K14: =+J14 ->  | O14: =+K14 -> 
B15: 2 | F15: =IF(OR(D15<0,D15=""),"",INDEX([1]!AlmDAddressVSetAl,MATCH(E15,[1]!AlmDAddressVSDesc,0),3)) -> 
B16: 3 | F16: =IF(OR(D16<0,D16=""),"",INDEX([1]!AlmDAddressVSetAl,MATCH(E16,[1]!AlmDAddressVSDesc,0),3)) -> 
B17: 4 | F17: =IF(OR(D17<0,D17=""),"",INDEX([1]!AlmDAddressVSetAl,MATCH(E17,[1]!AlmDAddressVSDesc,0),3)) -> 
B18: 5 | F18: =IF(OR(D18<0,D18=""),"",INDEX([1]!AlmDAddressVSetAl,MATCH(E18,[1]!AlmDAddressVSDesc,0),3)) -> 
B19: 6 | F19: =IF(OR(D19<0,D19=""),"",INDEX([1]!AlmDAddressVSetAl,MATCH(E19,[1]!AlmDAddressVSDesc,0),3)) -> 
B20: 7 | F20: =IF(OR(D20<0,D20=""),"",INDEX([1]!AlmDAddressVSetAl,MATCH(E20,[1]!AlmDAddressVSDesc,0),3)) -> 
B21: 8 | F21: =IF(OR(D21<0,D21=""),"",INDEX([1]!AlmDAddressVSetAl,MATCH(E21,[1]!AlmDAddressVSDesc,0),3)) -> 
B22: 9 | F22: =IF(OR(D22<0,D22=""),"",INDEX([1]!AlmDAddressVSetAl,MATCH(E22,[1]!AlmDAddressVSDesc,0),3)) -> 
B23: 10 | F23: =IF(OR(D23<0,D23=""),"",INDEX([1]!AlmDAddressVSetAl,MATCH(E23,[1]!AlmDAddressVSDesc,0),3)) -> 
B24: 11 | F24: =IF(OR(D24<0,D24=""),"",INDEX([1]!AlmDAddressVSetAl,MATCH(E24,[1]!AlmDAddressVSDesc,0),3)) -> 
B25: 12 | F25: =IF(OR(D25<0,D25=""),"",INDEX([1]!AlmDAddressVSetAl,MATCH(E25,[1]!AlmDAddressVSDesc,0),3)) -> 
B26: 13
B30: 0 | E30: Detectors & Smokes
B31: =+B30+1 -> 1 | E31: VS GSA-PS Photoelectric Smoke Detector Intelligent | F31: =IF(OR(D31<0,D31=""),"",INDEX([1]!AlmDDetectVSetAl,MATCH(E31,[1]!AlmDDetectVSDesc,0),3)) ->  | J31: =IF(OR(D31="",E31=""),"",IF(G31>0,D31*G31,D31*F31)) ->  | K31: =+J31 ->  | O31: =+K31 -> 
B32: 2 | E32: VS GSA-SD Duct Detector Intelligent | F32: =IF(OR(D32<0,D32=""),"",INDEX([1]!AlmDDetectVSetAl,MATCH(E32,[1]!AlmDDetectVSDesc,0),3)) ->  | J32: =IF(OR(D32="",E32=""),"",IF(G32>0,D32*G32,D32*F32)) ->  | K32: =+J32 ->  | O32: =+K32 -> 
B33: 3 | E33: VS-PS Photo Detector Analog Addressable Vernal | F33: =IF(OR(D33<0,D33=""),"",INDEX([1]!AlmDDetectVSetAl,MATCH(E33,[1]!AlmDDetectVSDesc,0),3)) -> 
E34: zSpare 1 VS D&S
B35: =+B33+1 -> 4
B39: 0 | E39: Horns
B40: 1 | E40: Add VS Horn data | F40: =IF(OR(D40<0,D40=""),"",INDEX([1]!AlmDHornsVSetAl,MATCH(E40,[1]!AlmDHornsVSDesc,0),3)) ->  | J40: =IF(OR(D40="",E40=""),"",IF(G40>0,D40*G40,D40*F40)) ->  | K40: =+J40 ->  | O40: =+K40 -> 
B41: 2 | E41: Make a VS Horn table here | F41: =IF(OR(D41<0,D41=""),"",INDEX([1]!AlmDHornsVSetAl,MATCH(E41,[1]!AlmDHornsVSDesc,0),3)) -> 
B42: 3 | E42: zSpare 1 | F42: =IF(OR(D42<0,D42=""),"",INDEX([1]!AlmDHornsVSetAl,MATCH(E42,[1]!AlmDHornsVSDesc,0),3)) -> 
B43: 4 | J43: =IF(OR(D43="",E43=""),"",IF(G43>0,D43*G43,D43*F43)) ->  | K43: =+J43 ->  | O43: =+K43 -> 
B47: 0 | E47: Horn-Strobes
B48: 1 | E48: M85001-0559 Horn-Strobe Field Configurable Genesis | F48: =IF(OR(D48<0,D48=""),"",INDEX([1]!AlmDHornStrobeVSetAl,MATCH(E48,[1]!AlmDHornStrobeVSDesc,0),3)) ->  | J48: =IF(OR(D48="",E48=""),"",IF(G48>0,D48*G48,D48*F48)) ->  | K48: =+J48 ->  | O48: =+K48 -> 
B49: 2 | E49: zSpare 1 | F49: =IF(OR(D49<0,D49=""),"",INDEX([1]!AlmDHornStrobeVSetAl,MATCH(E49,[1]!AlmDHornStrobeVSDesc,0),3)) -> 
B50: 3 | E50: M85001-0559 Horn-Strobe Field Configurable Genesis | F50: =IF(OR(D50<0,D50=""),"",INDEX([1]!AlmDHornStrobeVSetAl,MATCH(E50,[1]!AlmDHornStrobeVSDesc,0),3)) -> 
B51: 4 | E51: zSpare 1 | F51: =IF(OR(D51<0,D51=""),"",INDEX([1]!AlmDHornStrobeVSetAl,MATCH(E51,[1]!AlmDHornStrobeVSDesc,0),3)) -> 
B57: 0 | E57: Power Supplies
B58: 1 | E58: VS 2 Booster Power Supplies for VS-2 | F58: =IF(OR(D58<0,D58=""),"",INDEX([1]!AlmDPowerVSetAl,MATCH(E58,[1]!AlmDPowerVSDesc,0),3)) ->  | J58: =IF(OR(D58="",E58=""),"",IF(G58>0,D58*G58,D58*F58)) ->  | K58: =+J58 ->  | O58: =+K58 -> 
B59: 2 | E59: VS E-BPS-10 Amp Hr | F59: =IF(OR(D59<0,D59=""),"",INDEX([1]!AlmDPowerVSetAl,MATCH(E59,[1]!AlmDPowerVSDesc,0),3)) ->  | J59: =IF(OR(D59="",E59=""),"",IF(G59>0,D59*G59,D59*F59)) ->  | K59: =+J59 ->  | O59: =+K59 -> 
B60: 3 | E60: VS E-BPS-6 Amp Hr | F60: =IF(OR(D60<0,D60=""),"",INDEX([1]!AlmDPowerVSetAl,MATCH(E60,[1]!AlmDPowerVSDesc,0),3)) -> 
B61: 4 | E61: zSpare 1 | F61: =IF(OR(D61<0,D61=""),"",INDEX([1]!AlmDPowerVSetAl,MATCH(E61,[1]!AlmDPowerVSDesc,0),3)) -> 
B62: 5
B65: 0 | E65: Pull Stations
B66: 1 | E66: M85001-0279 Manuall Pull Intell GSA-M270, M270P, M278 | F66: =IF(OR(D66<0,D66=""),"",INDEX([1]!AlmDPullVSetAl,MATCH(E66,[1]!AlmDPullVSDesc,0),3)) ->  | J66: =IF(OR(D66="",E66=""),"",IF(G66>0,D66*G66,D66*F66)) ->  | K66: =+J66 ->  | O66: =+K66 -> 
B67: 2 | E67: zSpare 1 | F67: =IF(OR(D67<0,D67=""),"",INDEX([1]!AlmDPullVSetAl,MATCH(E67,[1]!AlmDPullVSDesc,0),3)) -> 
B68: 3 | E68: M85001-0279 Manuall Pull Intell GSA-M270, M270P, M278 | F68: =IF(OR(D68<0,D68=""),"",INDEX([1]!AlmDPullVSetAl,MATCH(E68,[1]!AlmDPullVSDesc,0),3)) -> 
B69: 4 | E69: zSpare 1 | F69: =IF(OR(D69<0,D69=""),"",INDEX([1]!AlmDPullVSetAl,MATCH(E69,[1]!AlmDPullVSDesc,0),3)) -> 
B70: 5 | E70: M85001-0279 Manuall Pull Intell GSA-M270, M270P, M278 | F70: =IF(OR(D70<0,D70=""),"",INDEX([1]!AlmDPullVSetAl,MATCH(E70,[1]!AlmDPullVSDesc,0),3)) -> 
B71: 6 | E71: zSpare 1 | F71: =IF(OR(D71<0,D71=""),"",INDEX([1]!AlmDPullVSetAl,MATCH(E71,[1]!AlmDPullVSDesc,0),3)) -> 
B72: 7
B76: 0 | E76: Strobes only
B77: 1 | E77: M85001-0557 Strobe Field Configurable Genesis | F77: =IF(OR(D77<0,D77=""),"",INDEX([1]!AlmDStrobeVSetAl,MATCH(E77,[1]!AlmDStrobeVSDesc,0),3)) ->  | J77: =IF(OR(D77="",E77=""),"",IF(G77>0,D77*G77,D77*F77)) ->  | K77: =+J77 ->  | O77: =+K77 -> 
B78: 2 | E78: zSpare 1 | F78: =IF(OR(D78<0,D78=""),"",INDEX([1]!AlmDStrobeVSetAl,MATCH(E78,[1]!AlmDStrobeVSDesc,0),3)) -> 
B79: 3 | E79: zSpare 2 | F79: =IF(OR(D79<0,D79=""),"",INDEX([1]!AlmDStrobeVSetAl,MATCH(E79,[1]!AlmDStrobeVSDesc,0),3)) -> 
B80: 4 | E80: M85001-0557 Strobe Field Configurable Genesis | F80: =IF(OR(D80<0,D80=""),"",INDEX([1]!AlmDStrobeVSetAl,MATCH(E80,[1]!AlmDStrobeVSDesc,0),3)) -> 
B81: 5 | E81: zSpare 2 | F81: =IF(OR(D81<0,D81=""),"",INDEX([1]!AlmDStrobeVSetAl,MATCH(E81,[1]!AlmDStrobeVSDesc,0),3)) -> 
B82: 6
B86: 0 | E86: zMisc
B87: 1 | E87: VS GSA-WTM Waterflow/Tamper Module | F87: =IF(OR(D87<0,D87=""),"",INDEX([1]!AlmDMiscVSetAl,MATCH(E87,[1]!AlmDMiscVSDesc,0),3)) ->  | J87: =IF(OR(D87="",E87=""),"",IF(G87>0,D87*G87,D87*F87)) ->  | K87: =+J87 ->  | O87: =+K87 -> 
B88: 2 | E88: Input Modules GSA-CT1HT M85001-0241 | F88: =IF(OR(D88<0,D88=""),"",INDEX([1]!AlmDMiscVSetAl,MATCH(E88,[1]!AlmDMiscVSDesc,0),3)) -> 
B89: 3 | F89: =IF(OR(D89<0,D89=""),"",INDEX([1]!AlmDMiscVSetAl,MATCH(E89,[1]!AlmDMiscVSDesc,0),3)) -> 
B90: 4 | F90: =IF(OR(D90<0,D90=""),"",INDEX([1]!AlmDMiscVSetAl,MATCH(E90,[1]!AlmDMiscVSDesc,0),3)) -> 
B91: 5
B95: 0 | E95: zOther
B96: 1 | E96: Add VS zOther data | F96: =IF(OR(D96<0,D96=""),"",INDEX([1]!AlmDOtherVSetAl,MATCH(E96,[1]!AlmDOtherVSDesc,0),3)) ->  | J96: =IF(OR(D96="",E96=""),"",IF(G96>0,D96*G96,D96*F96)) ->  | K96: =+J96 ->  | O96: =+K96 -> 
B97: 2 | E97: Made a VS zOther table here | F97: =IF(OR(D97<0,D97=""),"",INDEX([1]!AlmDOtherVSetAl,MATCH(E97,[1]!AlmDOtherVSDesc,0),3)) ->  | J97: =IF(OR(D97="",E97=""),"",IF(G97>0,D97*G97,D97*F97)) ->  | K97: =+J97 ->  | O97: =+K97 -> 
B98: 3 | E98: zSpare 2 | F98: =IF(OR(D98<0,D98=""),"",INDEX([1]!AlmDOtherVSetAl,MATCH(E98,[1]!AlmDOtherVSDesc,0),3)) -> 
B99: 4 | E99: zSpare 2 | F99: =IF(OR(D99<0,D99=""),"",INDEX([1]!AlmDOtherVSetAl,MATCH(E99,[1]!AlmDOtherVSDesc,0),3)) -> 
B100: =+B99+1 -> 5
B104: =+B103+1 -> 1 | J104: =IF(OR(D104="",E104=""),"",IF(G104>0,D104*G104,D104*F104)) ->  | K104: =+J104 ->  | O104: =+K104 -> 
E106: Alarm Devices etc | O106: =SUM(O9:O105) -> 0

Sheet N Alms GTex
D1: To Table of Contents
N2: FALSE
D3: Rev: 2018-11-02 14:00
E5: =MID(CELL("filename",A1),FIND("]",CELL("filename",A1))+1,255) -> N Alms GTex | O5: Sales Tax
E6: Click in a cell below to change a line item | N6: TRUE | O6: =+UTsalesTax -> 0.071
E7: from the list | F7: =CHAR(242) -> ò | G7: ò | H7: ò | I7: ò | J7: ò | K7: ò | O7: =IF(N6=TRUE,SUM(O9:O118)+(SUM(O9:O118))*O6,SUM(O9:O118)) -> 0
E8: ò | F8: Remember the SPARE devices for the after-install service & warranty period. You must ADD in the cost of additional units
E9: Alarm Parts | F9: Either | G9: Or | H9: Unit | J9: Extension | K9: Totals | O9: Final
E10: Devices
E11: GenTex Compatible with Silent Knight
E12: Detectors & Smokes
B13: =+B12+1 -> 1 | E13: GCC 24 C R Horn Strobe Ceiling | F13: =IF(OR(D13<0,D13=""),"",INDEX([1]!AlmDHStrobesGenTexEtAl,MATCH(E13,[1]!AlmDHStrobesGenTexDesc,0),3)) ->  | J13: =IF(OR(D13="",E13=""),"",IF(G13>0,D13*G13,D13*F13)) ->  | K13: =+J13 ->  | O13: =+K13 -> 
B14: 2 | E14: GEC3 24 R H/S Wall | F14: =IF(OR(D14<0,D14=""),"",INDEX([1]!AlmDHStrobesGenTexEtAl,MATCH(E14,[1]!AlmDHStrobesGenTexDesc,0),3)) -> 
B15: 3 | E15: GES3 24 R Strobe Wall | F15: =IF(OR(D15<0,D15=""),"",INDEX([1]!AlmDHStrobesGenTexEtAl,MATCH(E15,[1]!AlmDHStrobesGenTexDesc,0),3)) -> 
B16: 4 | E16: GOELP Low Profile BB for Outdoor HS | F16: =IF(OR(D16<0,D16=""),"",INDEX([1]!AlmDHStrobesGenTexEtAl,MATCH(E16,[1]!AlmDHStrobesGenTexDesc,0),3)) -> 
B17: 5 | E17: WGEC75WR H/S Outdoor with w/water-proof-backbox | F17: =IF(OR(D17<0,D17=""),"",INDEX([1]!AlmDHStrobesGenTexEtAl,MATCH(E17,[1]!AlmDHStrobesGenTexDesc,0),3)) -> 
B18: 6 | E18: GCC 24 C R Horn Strobe Ceiling | F18: =IF(OR(D18<0,D18=""),"",INDEX([1]!AlmDHStrobesGenTexEtAl,MATCH(E18,[1]!AlmDHStrobesGenTexDesc,0),3)) -> 
B19: 7 | E19: GCC 24 C R Horn Strobe Ceiling | F19: =IF(OR(D19<0,D19=""),"",INDEX([1]!AlmDHStrobesGenTexEtAl,MATCH(E19,[1]!AlmDHStrobesGenTexDesc,0),3)) -> 
B20: 8 | E20: GCC 24 C R Horn Strobe Ceiling | F20: =IF(OR(D20<0,D20=""),"",INDEX([1]!AlmDHStrobesGenTexEtAl,MATCH(E20,[1]!AlmDHStrobesGenTexDesc,0),3)) -> 
B21: 9 | E21: GCC 24 C R Horn Strobe Ceiling | F21: =IF(OR(D21<0,D21=""),"",INDEX([1]!AlmDHStrobesGenTexEtAl,MATCH(E21,[1]!AlmDHStrobesGenTexDesc,0),3)) -> 
B22: 10
B25: 0 | E25: Horns
B26: 1 | F26: =IF(OR(D26<0,D26=""),"",INDEX([1]!AlmDHornsHKetAl,MATCH(E26,[1]!AlmDHornsHKDesc,0),3)) ->  | J26: =IF(OR(D26="",E26=""),"",IF(G26>0,D26*G26,D26*F26)) ->  | K26: =+J26 ->  | O26: =+K26 -> 
B27: 2 | F27: =IF(OR(D27<0,D27=""),"",INDEX([1]!AlmDHornsHKetAl,MATCH(E27,[1]!AlmDHornsHKDesc,0),3)) -> 
B28: 3 | F28: =IF(OR(D28<0,D28=""),"",INDEX([1]!AlmDHornsHKetAl,MATCH(E28,[1]!AlmDHornsHKDesc,0),3)) -> 
B29: 4 | F29: =IF(OR(D29<0,D29=""),"",INDEX([1]!AlmDHornsHKetAl,MATCH(E29,[1]!AlmDHornsHKDesc,0),3)) -> 
B30: 5 | F30: =IF(OR(D30<0,D30=""),"",INDEX([1]!AlmDHornsHKetAl,MATCH(E30,[1]!AlmDHornsHKDesc,0),3)) -> 
B31: 6 | F31: =IF(OR(D31<0,D31=""),"",INDEX([1]!AlmDHornsHKetAl,MATCH(E31,[1]!AlmDHornsHKDesc,0),3)) -> 
B32: 7 | F32: =IF(OR(D32<0,D32=""),"",INDEX([1]!AlmDHornsHKetAl,MATCH(E32,[1]!AlmDHornsHKDesc,0),3)) -> 
B33: 8 | F33: =IF(OR(D33<0,D33=""),"",INDEX([1]!AlmDHornsHKetAl,MATCH(E33,[1]!AlmDHornsHKDesc,0),3)) -> 
B34: 9 | F34: =IF(OR(D34<0,D34=""),"",INDEX([1]!AlmDHornsHKetAl,MATCH(E34,[1]!AlmDHornsHKDesc,0),3)) -> 
B35: 10 | F35: =IF(OR(D35<0,D35=""),"",INDEX([1]!AlmDHornsHKetAl,MATCH(E35,[1]!AlmDHornsHKDesc,0),3)) -> 
B36: 11
B40: 0 | E40: Horn-Strobes
B41: 1 | F41: =IF(OR(D41<0,D41=""),"",INDEX([1]!AlmDHornStrobeHKetAl,MATCH(E41,[1]!AlmDHornStrobeHKDesc,0),3)) ->  | J41: =IF(OR(D41="",E41=""),"",IF(G41>0,D41*G41,D41*F41)) ->  | K41: =+J41 ->  | O41: =+K41 -> 
B42: 2 | F42: =IF(OR(D42<0,D42=""),"",INDEX([1]!AlmDHornStrobeHKetAl,MATCH(E42,[1]!AlmDHornStrobeHKDesc,0),3)) -> 
B43: 3 | F43: =IF(OR(D43<0,D43=""),"",INDEX([1]!AlmDHornStrobeHKetAl,MATCH(E43,[1]!AlmDHornStrobeHKDesc,0),3)) -> 
B44: 4 | F44: =IF(OR(D44<0,D44=""),"",INDEX([1]!AlmDHornStrobeHKetAl,MATCH(E44,[1]!AlmDHornStrobeHKDesc,0),3)) -> 
B45: 5 | F45: =IF(OR(D45<0,D45=""),"",INDEX([1]!AlmDHornStrobeHKetAl,MATCH(E45,[1]!AlmDHornStrobeHKDesc,0),3)) -> 
B46: 6 | F46: =IF(OR(D46<0,D46=""),"",INDEX([1]!AlmDHornStrobeHKetAl,MATCH(E46,[1]!AlmDHornStrobeHKDesc,0),3)) -> 
B47: 7 | F47: =IF(OR(D47<0,D47=""),"",INDEX([1]!AlmDHornStrobeHKetAl,MATCH(E47,[1]!AlmDHornStrobeHKDesc,0),3)) -> 
B48: 8 | F48: =IF(OR(D48<0,D48=""),"",INDEX([1]!AlmDHornStrobeHKetAl,MATCH(E48,[1]!AlmDHornStrobeHKDesc,0),3)) -> 
B49: 9 | F49: =IF(OR(D49<0,D49=""),"",INDEX([1]!AlmDHornStrobeHKetAl,MATCH(E49,[1]!AlmDHornStrobeHKDesc,0),3)) -> 
B50: 10 | F50: =IF(OR(D50<0,D50=""),"",INDEX([1]!AlmDHornStrobeHKetAl,MATCH(E50,[1]!AlmDHornStrobeHKDesc,0),3)) -> 
B51: 11 | F51: =IF(OR(D51<0,D51=""),"",INDEX([1]!AlmDHornStrobeHKetAl,MATCH(E51,[1]!AlmDHornStrobeHKDesc,0),3)) -> 
B52: 12 | F52: =IF(OR(D52<0,D52=""),"",INDEX([1]!AlmDHornStrobeHKetAl,MATCH(E52,[1]!AlmDHornStrobeHKDesc,0),3)) -> 
B53: 13
B56: 0 | E56: Power Supplies & Batteries
B57: =+B56+1 -> 1 | F57: =IF(OR(D57<0,D57=""),"",INDEX([1]!AlmDPowerVSetAl,MATCH(E57,[1]!AlmDPowerVSDesc,0),3)) ->  | J57: =IF(OR(D57="",E57=""),"",IF(G57>0,D57*G57,D57*F57)) ->  | K57: =+J57 ->  | O57: =+K57 -> 
B58: 2 | F58: =IF(OR(D58<0,D58=""),"",INDEX([1]!AlmDPowerVSetAl,MATCH(E58,[1]!AlmDPowerVSDesc,0),3)) -> 
B59: 3 | F59: =IF(OR(D59<0,D59=""),"",INDEX([1]!AlmDPowerVSetAl,MATCH(E59,[1]!AlmDPowerVSDesc,0),3)) -> 
B60: 4 | F60: =IF(OR(D60<0,D60=""),"",INDEX([1]!AlmDPowerVSetAl,MATCH(E60,[1]!AlmDPowerVSDesc,0),3)) -> 
B61: 5
B64: 0 | E64: Pull Stations
B65: =+B64+1 -> 1 | F65: =IF(OR(D65=0,E65=""),"",VLOOKUP(E65,[1]!AlmPullStnEtAl,3)) ->  | J65: =IF(OR(D65="",E65=""),"",IF(G65>0,D65*G65,D65*F65)) ->  | K65: =+J65 ->  | O65: =+K65 -> 
B66: 2 | F66: =IF(OR(D66=0,E66=""),"",VLOOKUP(E66,[1]!AlmPullStnEtAl,3)) -> 
B67: 3
B70: 0 | E70: Strobes only
B71: 1 | F71: =IF(OR(D71<0,D71=""),"",INDEX([1]!AlmDStrobeHKetAl,MATCH(E71,[1]!AlmDStrobeHKDesc,0),3)) ->  | J71: =IF(OR(D71="",E71=""),"",IF(G71>0,D71*G71,D71*F71)) ->  | K71: =+J71 ->  | O71: =+K71 -> 
B72: 2 | F72: =IF(OR(D72<0,D72=""),"",INDEX([1]!AlmDStrobeHKetAl,MATCH(E72,[1]!AlmDStrobeHKDesc,0),3)) -> 
B73: 3 | F73: =IF(OR(D73<0,D73=""),"",INDEX([1]!AlmDStrobeHKetAl,MATCH(E73,[1]!AlmDStrobeHKDesc,0),3)) -> 
B74: 4 | F74: =IF(OR(D74<0,D74=""),"",INDEX([1]!AlmDStrobeHKetAl,MATCH(E74,[1]!AlmDStrobeHKDesc,0),3)) -> 
B75: 5 | F75: =IF(OR(D75<0,D75=""),"",INDEX([1]!AlmDStrobeHKetAl,MATCH(E75,[1]!AlmDStrobeHKDesc,0),3)) -> 
B76: 6 | F76: =IF(OR(D76<0,D76=""),"",INDEX([1]!AlmDStrobeHKetAl,MATCH(E76,[1]!AlmDStrobeHKDesc,0),3)) -> 
B77: =+B76+1 -> 7 | F77: =IF(OR(D77<0,D77=""),"",INDEX([1]!AlmDStrobeHKetAl,MATCH(E77,[1]!AlmDStrobeHKDesc,0),3)) -> 
B78: 8 | F78: =IF(OR(D78<0,D78=""),"",INDEX([1]!AlmDStrobeHKetAl,MATCH(E78,[1]!AlmDStrobeHKDesc,0),3)) -> 
B79: 9 | F79: =IF(OR(D79<0,D79=""),"",INDEX([1]!AlmDStrobeHKetAl,MATCH(E79,[1]!AlmDStrobeHKDesc,0),3)) -> 
B80: 10 | F80: =IF(OR(D80<0,D80=""),"",INDEX([1]!AlmDStrobeHKetAl,MATCH(E80,[1]!AlmDStrobeHKDesc,0),3)) -> 
B81: 11
E86: zMisc
B87: 1 | F87: =IF(OR(D87<0,D87=""),"",INDEX([1]!AlmDzMiscHKetAl,MATCH(E87,[1]!AlmDzMiscHKDesc,0),3)) ->  | J87: =IF(OR(D87="",E87=""),"",IF(G87>0,D87*G87,D87*F87)) ->  | K87: =+J87 ->  | O87: =+K87 -> 
B88: 2 | F88: =IF(OR(D88<0,D88=""),"",INDEX([1]!AlmDzMiscHKetAl,MATCH(E88,[1]!AlmDzMiscHKDesc,0),3)) -> 
B89: 3 | F89: =IF(OR(D89<0,D89=""),"",INDEX([1]!AlmDzMiscHKetAl,MATCH(E89,[1]!AlmDzMiscHKDesc,0),3)) -> 
B90: 4 | F90: =IF(OR(D90<0,D90=""),"",INDEX([1]!AlmDzMiscHKetAl,MATCH(E90,[1]!AlmDzMiscHKDesc,0),3)) -> 
B91: 5 | F91: =IF(OR(D91<0,D91=""),"",INDEX([1]!AlmDzMiscHKetAl,MATCH(E91,[1]!AlmDzMiscHKDesc,0),3)) -> 
B92: 6
J95: =IF(D95>0,IF(G95>0,D95*G95,D95*F95),"") ->  | K95: =+J95 ->  | O95: =+K95 -> 
B96: 0 | E96: zOther
B97: =+B96+1 -> 1 | F97: =IF(OR(D97<0,D97=""),"",INDEX([1]!AlmDOtherHKetAl,MATCH(E97,[1]!AlmDOtherHKDesc,0),3)) ->  | J97: =IF(OR(D97="",E97=""),"",IF(G97>0,D97*G97,D97*F97)) ->  | K97: =+J97 ->  | O97: =+K97 -> 
B98: 2 | F98: =IF(OR(D98<0,D98=""),"",INDEX([1]!AlmDOtherHKetAl,MATCH(E98,[1]!AlmDOtherHKDesc,0),3)) -> 
B99: 3 | F99: =IF(OR(D99<0,D99=""),"",INDEX([1]!AlmDOtherHKetAl,MATCH(E99,[1]!AlmDOtherHKDesc,0),3)) -> 
B100: 4 | F100: =IF(OR(D100<0,D100=""),"",INDEX([1]!AlmDOtherHKetAl,MATCH(E100,[1]!AlmDOtherHKDesc,0),3)) -> 
B101: 5 | F101: =IF(OR(D101<0,D101=""),"",INDEX([1]!AlmDOtherHKetAl,MATCH(E101,[1]!AlmDOtherHKDesc,0),3)) -> 
B102: 6 | F102: =IF(OR(D102<0,D102=""),"",INDEX([1]!AlmDOtherHKetAl,MATCH(E102,[1]!AlmDOtherHKDesc,0),3)) -> 
B103: 7 | F103: =IF(OR(D103<0,D103=""),"",INDEX([1]!AlmDOtherHKetAl,MATCH(E103,[1]!AlmDOtherHKDesc,0),3)) -> 
B104: 8 | F104: =IF(OR(D104<0,D104=""),"",INDEX([1]!AlmDOtherHKetAl,MATCH(E104,[1]!AlmDOtherHKDesc,0),3)) -> 
B105: 9 | F105: =IF(OR(D105<0,D105=""),"",INDEX([1]!AlmDOtherHKetAl,MATCH(E105,[1]!AlmDOtherHKDesc,0),3)) -> 
B106: 10 | F106: =IF(OR(D106<0,D106=""),"",INDEX([1]!AlmDOtherHKetAl,MATCH(E106,[1]!AlmDOtherHKDesc,0),3)) -> 
B107: 11 | F107: =IF(OR(D107<0,D107=""),"",INDEX([1]!AlmDOtherHKetAl,MATCH(E107,[1]!AlmDOtherHKDesc,0),3)) -> 
B108: 12 | F108: =IF(OR(D108<0,D108=""),"",INDEX([1]!AlmDOtherHKetAl,MATCH(E108,[1]!AlmDOtherHKDesc,0),3)) -> 
B109: 13
J110: =IF(D110>0,IF(G110>0,D110*G110,D110*F110),"") -> 
J111: =IF(D111>0,IF(G111>0,D111*G111,D111*F111),"") -> 
J112: =IF(OR(D112="",E112=""),"",IF(G112>0,D112*G112,D112*F112)) -> 
E119: Alarm Devices etc | O119: =SUM(O9:O118) -> 0
E123: 01 Electrician KP Electric Sandy | F123: =IF(OR(D123<0,E123=""),"",VLOOKUP(E123,[1]!subsEtAl,3)) -> 82.5
E124: Digital Alarm Communicator Transmitter (DACT)

Sheet O Alms SS
D1: To Table of Contents
N2: FALSE
D3: Rev: 2018-11-02 14:00
E5: =MID(CELL("filename",A1),FIND("]",CELL("filename",A1))+1,255) -> O Alms SS | O5: Sales Tax
E6: Click in a cell below to change a line item | N6: TRUE | O6: =+UTsalesTax -> 0.071
E7: from the list | F7: =CHAR(242) -> ò | G7: ò | H7: ò | I7: ò | J7: ò | K7: ò | O7: =IF(N6=TRUE,SUM(O9:O118)+(SUM(O9:O118))*O6,SUM(O9:O118)) -> 0
E8: ò | F8: Remember the SPARE devices for the after-install service & warranty period. You must ADD in the cost of additional units
E9: Alarm Parts | F9: Either | G9: Or | H9: Unit | J9: Extension | K9: Totals | O9: Final
E10: Devices
E11: System Sensor Compatible with brand name
E12: Detectors & Smokes
B13: =+B12+1 -> 1 | E13: GCC 24 C R Horn Strobe Ceiling | F13: =IF(OR(D13<0,D13=""),"",INDEX([1]!AlmDHStrobesGenTexEtAl,MATCH(E13,[1]!AlmDHStrobesGenTexDesc,0),3)) ->  | J13: =IF(OR(D13="",E13=""),"",IF(G13>0,D13*G13,D13*F13)) ->  | K13: =+J13 ->  | O13: =+K13 -> 
B14: 2 | E14: GEC3 24 R H/S Wall | F14: =IF(OR(D14<0,D14=""),"",INDEX([1]!AlmDHStrobesGenTexEtAl,MATCH(E14,[1]!AlmDHStrobesGenTexDesc,0),3)) -> 
B15: 3 | E15: GES3 24 R Strobe Wall | F15: =IF(OR(D15<0,D15=""),"",INDEX([1]!AlmDHStrobesGenTexEtAl,MATCH(E15,[1]!AlmDHStrobesGenTexDesc,0),3)) -> 
B16: 4 | E16: GOELP Low Profile BB for Outdoor HS | F16: =IF(OR(D16<0,D16=""),"",INDEX([1]!AlmDHStrobesGenTexEtAl,MATCH(E16,[1]!AlmDHStrobesGenTexDesc,0),3)) -> 
B17: 5 | E17: WGEC75WR H/S Outdoor with w/water-proof-backbox | F17: =IF(OR(D17<0,D17=""),"",INDEX([1]!AlmDHStrobesGenTexEtAl,MATCH(E17,[1]!AlmDHStrobesGenTexDesc,0),3)) -> 
B18: 6 | E18: GCC 24 C R Horn Strobe Ceiling | F18: =IF(OR(D18<0,D18=""),"",INDEX([1]!AlmDHStrobesGenTexEtAl,MATCH(E18,[1]!AlmDHStrobesGenTexDesc,0),3)) -> 
B19: 7 | E19: GCC 24 C R Horn Strobe Ceiling | F19: =IF(OR(D19<0,D19=""),"",INDEX([1]!AlmDHStrobesGenTexEtAl,MATCH(E19,[1]!AlmDHStrobesGenTexDesc,0),3)) -> 
B20: 8 | E20: GCC 24 C R Horn Strobe Ceiling | F20: =IF(OR(D20<0,D20=""),"",INDEX([1]!AlmDHStrobesGenTexEtAl,MATCH(E20,[1]!AlmDHStrobesGenTexDesc,0),3)) -> 
B21: 9 | E21: GCC 24 C R Horn Strobe Ceiling | F21: =IF(OR(D21<0,D21=""),"",INDEX([1]!AlmDHStrobesGenTexEtAl,MATCH(E21,[1]!AlmDHStrobesGenTexDesc,0),3)) -> 
B22: 10
E24: Devices
B25: 0 | E25: Horns
B26: 1 | F26: =IF(OR(D26<0,D26=""),"",INDEX([1]!AlmDHornsHKetAl,MATCH(E26,[1]!AlmDHornsHKDesc,0),3)) ->  | J26: =IF(OR(D26="",E26=""),"",IF(G26>0,D26*G26,D26*F26)) ->  | K26: =+J26 ->  | O26: =+K26 -> 
B27: 2 | F27: =IF(OR(D27<0,D27=""),"",INDEX([1]!AlmDHornsHKetAl,MATCH(E27,[1]!AlmDHornsHKDesc,0),3)) -> 
B28: 3 | F28: =IF(OR(D28<0,D28=""),"",INDEX([1]!AlmDHornsHKetAl,MATCH(E28,[1]!AlmDHornsHKDesc,0),3)) -> 
B29: 4 | F29: =IF(OR(D29<0,D29=""),"",INDEX([1]!AlmDHornsHKetAl,MATCH(E29,[1]!AlmDHornsHKDesc,0),3)) -> 
B30: 5 | F30: =IF(OR(D30<0,D30=""),"",INDEX([1]!AlmDHornsHKetAl,MATCH(E30,[1]!AlmDHornsHKDesc,0),3)) -> 
B31: 6 | F31: =IF(OR(D31<0,D31=""),"",INDEX([1]!AlmDHornsHKetAl,MATCH(E31,[1]!AlmDHornsHKDesc,0),3)) -> 
B32: 7 | F32: =IF(OR(D32<0,D32=""),"",INDEX([1]!AlmDHornsHKetAl,MATCH(E32,[1]!AlmDHornsHKDesc,0),3)) -> 
B33: 8 | F33: =IF(OR(D33<0,D33=""),"",INDEX([1]!AlmDHornsHKetAl,MATCH(E33,[1]!AlmDHornsHKDesc,0),3)) -> 
B34: 9 | F34: =IF(OR(D34<0,D34=""),"",INDEX([1]!AlmDHornsHKetAl,MATCH(E34,[1]!AlmDHornsHKDesc,0),3)) -> 
B35: 10 | F35: =IF(OR(D35<0,D35=""),"",INDEX([1]!AlmDHornsHKetAl,MATCH(E35,[1]!AlmDHornsHKDesc,0),3)) -> 
B36: 11
E39: Devices
B40: 0 | E40: Horn-Strobes
B41: 1 | F41: =IF(OR(D41<0,D41=""),"",INDEX([1]!AlmDHornStrobeHKetAl,MATCH(E41,[1]!AlmDHornStrobeHKDesc,0),3)) ->  | J41: =IF(OR(D41="",E41=""),"",IF(G41>0,D41*G41,D41*F41)) ->  | K41: =+J41 ->  | O41: =+K41 -> 
B42: 2 | F42: =IF(OR(D42<0,D42=""),"",INDEX([1]!AlmDHornStrobeHKetAl,MATCH(E42,[1]!AlmDHornStrobeHKDesc,0),3)) -> 
B43: 3 | F43: =IF(OR(D43<0,D43=""),"",INDEX([1]!AlmDHornStrobeHKetAl,MATCH(E43,[1]!AlmDHornStrobeHKDesc,0),3)) -> 
B44: 4 | F44: =IF(OR(D44<0,D44=""),"",INDEX([1]!AlmDHornStrobeHKetAl,MATCH(E44,[1]!AlmDHornStrobeHKDesc,0),3)) -> 
B45: 5 | F45: =IF(OR(D45<0,D45=""),"",INDEX([1]!AlmDHornStrobeHKetAl,MATCH(E45,[1]!AlmDHornStrobeHKDesc,0),3)) -> 
B46: 6 | F46: =IF(OR(D46<0,D46=""),"",INDEX([1]!AlmDHornStrobeHKetAl,MATCH(E46,[1]!AlmDHornStrobeHKDesc,0),3)) -> 
B47: 7 | F47: =IF(OR(D47<0,D47=""),"",INDEX([1]!AlmDHornStrobeHKetAl,MATCH(E47,[1]!AlmDHornStrobeHKDesc,0),3)) -> 
B48: 8 | F48: =IF(OR(D48<0,D48=""),"",INDEX([1]!AlmDHornStrobeHKetAl,MATCH(E48,[1]!AlmDHornStrobeHKDesc,0),3)) -> 
B49: 9 | F49: =IF(OR(D49<0,D49=""),"",INDEX([1]!AlmDHornStrobeHKetAl,MATCH(E49,[1]!AlmDHornStrobeHKDesc,0),3)) -> 
B50: 10 | F50: =IF(OR(D50<0,D50=""),"",INDEX([1]!AlmDHornStrobeHKetAl,MATCH(E50,[1]!AlmDHornStrobeHKDesc,0),3)) -> 
B51: 11 | F51: =IF(OR(D51<0,D51=""),"",INDEX([1]!AlmDHornStrobeHKetAl,MATCH(E51,[1]!AlmDHornStrobeHKDesc,0),3)) -> 
B52: 12 | F52: =IF(OR(D52<0,D52=""),"",INDEX([1]!AlmDHornStrobeHKetAl,MATCH(E52,[1]!AlmDHornStrobeHKDesc,0),3)) -> 
B53: 13
E55: Devices
B56: 0 | E56: Power Supplies & Batteries
B57: =+B56+1 -> 1 | F57: =IF(OR(D57<0,D57=""),"",INDEX([1]!AlmDPowerVSetAl,MATCH(E57,[1]!AlmDPowerVSDesc,0),3)) ->  | J57: =IF(OR(D57="",E57=""),"",IF(G57>0,D57*G57,D57*F57)) ->  | K57: =+J57 ->  | O57: =+K57 -> 
B58: 2 | F58: =IF(OR(D58<0,D58=""),"",INDEX([1]!AlmDPowerVSetAl,MATCH(E58,[1]!AlmDPowerVSDesc,0),3)) -> 
B59: 3 | F59: =IF(OR(D59<0,D59=""),"",INDEX([1]!AlmDPowerVSetAl,MATCH(E59,[1]!AlmDPowerVSDesc,0),3)) -> 
B60: 4 | F60: =IF(OR(D60<0,D60=""),"",INDEX([1]!AlmDPowerVSetAl,MATCH(E60,[1]!AlmDPowerVSDesc,0),3)) -> 
B61: 5
E63: Devices
B64: 0 | E64: Pull Stations
B65: =+B64+1 -> 1 | F65: =IF(OR(D65=0,E65=""),"",VLOOKUP(E65,[1]!AlmPullStnEtAl,3)) ->  | J65: =IF(OR(D65="",E65=""),"",IF(G65>0,D65*G65,D65*F65)) ->  | K65: =+J65 ->  | O65: =+K65 -> 
B66: 2 | F66: =IF(OR(D66=0,E66=""),"",VLOOKUP(E66,[1]!AlmPullStnEtAl,3)) -> 
B67: 3
E69: Devices
B70: 0 | E70: Strobes only
B71: 1 | F71: =IF(OR(D71<0,D71=""),"",INDEX([1]!AlmDStrobeHKetAl,MATCH(E71,[1]!AlmDStrobeHKDesc,0),3)) ->  | J71: =IF(OR(D71="",E71=""),"",IF(G71>0,D71*G71,D71*F71)) ->  | K71: =+J71 ->  | O71: =+K71 -> 
B72: 2 | F72: =IF(OR(D72<0,D72=""),"",INDEX([1]!AlmDStrobeHKetAl,MATCH(E72,[1]!AlmDStrobeHKDesc,0),3)) -> 
B73: 3 | F73: =IF(OR(D73<0,D73=""),"",INDEX([1]!AlmDStrobeHKetAl,MATCH(E73,[1]!AlmDStrobeHKDesc,0),3)) -> 
B74: 4 | F74: =IF(OR(D74<0,D74=""),"",INDEX([1]!AlmDStrobeHKetAl,MATCH(E74,[1]!AlmDStrobeHKDesc,0),3)) -> 
B75: 5 | F75: =IF(OR(D75<0,D75=""),"",INDEX([1]!AlmDStrobeHKetAl,MATCH(E75,[1]!AlmDStrobeHKDesc,0),3)) -> 
B76: 6 | F76: =IF(OR(D76<0,D76=""),"",INDEX([1]!AlmDStrobeHKetAl,MATCH(E76,[1]!AlmDStrobeHKDesc,0),3)) -> 
B77: =+B76+1 -> 7 | F77: =IF(OR(D77<0,D77=""),"",INDEX([1]!AlmDStrobeHKetAl,MATCH(E77,[1]!AlmDStrobeHKDesc,0),3)) -> 
B78: 8 | F78: =IF(OR(D78<0,D78=""),"",INDEX([1]!AlmDStrobeHKetAl,MATCH(E78,[1]!AlmDStrobeHKDesc,0),3)) -> 
B79: 9 | F79: =IF(OR(D79<0,D79=""),"",INDEX([1]!AlmDStrobeHKetAl,MATCH(E79,[1]!AlmDStrobeHKDesc,0),3)) -> 
B80: 10 | F80: =IF(OR(D80<0,D80=""),"",INDEX([1]!AlmDStrobeHKetAl,MATCH(E80,[1]!AlmDStrobeHKDesc,0),3)) -> 
B81: 11
E85: Devices
E86: zMisc
B87: 1 | F87: =IF(OR(D87<0,D87=""),"",INDEX([1]!AlmDzMiscHKetAl,MATCH(E87,[1]!AlmDzMiscHKDesc,0),3)) ->  | J87: =IF(OR(D87="",E87=""),"",IF(G87>0,D87*G87,D87*F87)) ->  | K87: =+J87 ->  | O87: =+K87 -> 
B88: 2 | F88: =IF(OR(D88<0,D88=""),"",INDEX([1]!AlmDzMiscHKetAl,MATCH(E88,[1]!AlmDzMiscHKDesc,0),3)) -> 
B89: 3 | F89: =IF(OR(D89<0,D89=""),"",INDEX([1]!AlmDzMiscHKetAl,MATCH(E89,[1]!AlmDzMiscHKDesc,0),3)) -> 
B90: 4 | F90: =IF(OR(D90<0,D90=""),"",INDEX([1]!AlmDzMiscHKetAl,MATCH(E90,[1]!AlmDzMiscHKDesc,0),3)) -> 
B91: 5 | F91: =IF(OR(D91<0,D91=""),"",INDEX([1]!AlmDzMiscHKetAl,MATCH(E91,[1]!AlmDzMiscHKDesc,0),3)) -> 
B92: 6
E95: Devices | J95: =IF(D95>0,IF(G95>0,D95*G95,D95*F95),"") ->  | K95: =+J95 ->  | O95: =+K95 -> 
B96: 0 | E96: zOther
B97: =+B96+1 -> 1 | F97: =IF(OR(D97<0,D97=""),"",INDEX([1]!AlmDOtherHKetAl,MATCH(E97,[1]!AlmDOtherHKDesc,0),3)) ->  | J97: =IF(OR(D97="",E97=""),"",IF(G97>0,D97*G97,D97*F97)) ->  | K97: =+J97 ->  | O97: =+K97 -> 
B98: 2 | F98: =IF(OR(D98<0,D98=""),"",INDEX([1]!AlmDOtherHKetAl,MATCH(E98,[1]!AlmDOtherHKDesc,0),3)) -> 
B99: 3 | F99: =IF(OR(D99<0,D99=""),"",INDEX([1]!AlmDOtherHKetAl,MATCH(E99,[1]!AlmDOtherHKDesc,0),3)) -> 
B100: 4 | F100: =IF(OR(D100<0,D100=""),"",INDEX([1]!AlmDOtherHKetAl,MATCH(E100,[1]!AlmDOtherHKDesc,0),3)) -> 
B101: 5 | F101: =IF(OR(D101<0,D101=""),"",INDEX([1]!AlmDOtherHKetAl,MATCH(E101,[1]!AlmDOtherHKDesc,0),3)) -> 
B102: 6 | F102: =IF(OR(D102<0,D102=""),"",INDEX([1]!AlmDOtherHKetAl,MATCH(E102,[1]!AlmDOtherHKDesc,0),3)) -> 
B103: 7 | F103: =IF(OR(D103<0,D103=""),"",INDEX([1]!AlmDOtherHKetAl,MATCH(E103,[1]!AlmDOtherHKDesc,0),3)) -> 
B104: 8 | F104: =IF(OR(D104<0,D104=""),"",INDEX([1]!AlmDOtherHKetAl,MATCH(E104,[1]!AlmDOtherHKDesc,0),3)) -> 
B105: 9 | F105: =IF(OR(D105<0,D105=""),"",INDEX([1]!AlmDOtherHKetAl,MATCH(E105,[1]!AlmDOtherHKDesc,0),3)) -> 
B106: 10 | F106: =IF(OR(D106<0,D106=""),"",INDEX([1]!AlmDOtherHKetAl,MATCH(E106,[1]!AlmDOtherHKDesc,0),3)) -> 
B107: 11 | F107: =IF(OR(D107<0,D107=""),"",INDEX([1]!AlmDOtherHKetAl,MATCH(E107,[1]!AlmDOtherHKDesc,0),3)) -> 
B108: 12 | F108: =IF(OR(D108<0,D108=""),"",INDEX([1]!AlmDOtherHKetAl,MATCH(E108,[1]!AlmDOtherHKDesc,0),3)) -> 
B109: 13
J110: =IF(D110>0,IF(G110>0,D110*G110,D110*F110),"") -> 
E111: Devices | J111: =IF(D111>0,IF(G111>0,D111*G111,D111*F111),"") -> 
J112: =IF(OR(D112="",E112=""),"",IF(G112>0,D112*G112,D112*F112)) -> 
E119: Alarm Devices etc | O119: =SUM(O9:O118) -> 0
E123: 01 Electrician KP Electric Sandy | F123: =IF(OR(D123<0,E123=""),"",VLOOKUP(E123,[1]!subsEtAl,3)) -> 82.5
E124: Digital Alarm Communicator Transmitter (DACT)

Sheet w Alms BLANK
D1: To Table of Contents
N2: FALSE
D3: Rev: 2018-11-02 14:00
E5: =MID(CELL("filename",A1),FIND("]",CELL("filename",A1))+1,255) -> w Alms BLANK | O5: Sales Tax
E6: Click in a cell below to change a line item | N6: TRUE | O6: =+UTsalesTax -> 0.071
E7: from the list | F7: =CHAR(242) -> ò | G7: ò | H7: ò | I7: ò | J7: ò | K7: ò | O7: =IF(N6=TRUE,SUM(O9:O118)+(SUM(O9:O118))*O6,SUM(O9:O118)) -> 0
E8: ò | F8: Remember the SPARE devices for the after-install service & warranty period. You must ADD in the cost of additional units
E9: Alarm Parts | F9: Either | G9: Or | H9: Unit | J9: Extension | K9: Totals | O9: Final
E10: Devices
E11: Brand name Compatible with brand name
E12: Detectors & Smokes
B13: =+B12+1 -> 1 | E13: GCC 24 C R Horn Strobe Ceiling | F13: =IF(OR(D13<0,D13=""),"",INDEX([1]!AlmDHStrobesGenTexEtAl,MATCH(E13,[1]!AlmDHStrobesGenTexDesc,0),3)) ->  | J13: =IF(OR(D13="",E13=""),"",IF(G13>0,D13*G13,D13*F13)) ->  | K13: =+J13 ->  | O13: =+K13 -> 
B14: 2 | E14: GEC3 24 R H/S Wall | F14: =IF(OR(D14<0,D14=""),"",INDEX([1]!AlmDHStrobesGenTexEtAl,MATCH(E14,[1]!AlmDHStrobesGenTexDesc,0),3)) -> 
B15: 3 | E15: GES3 24 R Strobe Wall | F15: =IF(OR(D15<0,D15=""),"",INDEX([1]!AlmDHStrobesGenTexEtAl,MATCH(E15,[1]!AlmDHStrobesGenTexDesc,0),3)) -> 
B16: 4 | E16: GOELP Low Profile BB for Outdoor HS | F16: =IF(OR(D16<0,D16=""),"",INDEX([1]!AlmDHStrobesGenTexEtAl,MATCH(E16,[1]!AlmDHStrobesGenTexDesc,0),3)) -> 
B17: 5 | E17: WGEC75WR H/S Outdoor with w/water-proof-backbox | F17: =IF(OR(D17<0,D17=""),"",INDEX([1]!AlmDHStrobesGenTexEtAl,MATCH(E17,[1]!AlmDHStrobesGenTexDesc,0),3)) -> 
B18: 6 | E18: GCC 24 C R Horn Strobe Ceiling | F18: =IF(OR(D18<0,D18=""),"",INDEX([1]!AlmDHStrobesGenTexEtAl,MATCH(E18,[1]!AlmDHStrobesGenTexDesc,0),3)) -> 
B19: 7 | E19: GCC 24 C R Horn Strobe Ceiling | F19: =IF(OR(D19<0,D19=""),"",INDEX([1]!AlmDHStrobesGenTexEtAl,MATCH(E19,[1]!AlmDHStrobesGenTexDesc,0),3)) -> 
B20: 8 | E20: GCC 24 C R Horn Strobe Ceiling | F20: =IF(OR(D20<0,D20=""),"",INDEX([1]!AlmDHStrobesGenTexEtAl,MATCH(E20,[1]!AlmDHStrobesGenTexDesc,0),3)) -> 
B21: 9 | E21: GCC 24 C R Horn Strobe Ceiling | F21: =IF(OR(D21<0,D21=""),"",INDEX([1]!AlmDHStrobesGenTexEtAl,MATCH(E21,[1]!AlmDHStrobesGenTexDesc,0),3)) -> 
B22: 10
E24: Devices
B25: 0 | E25: Horns
B26: 1 | F26: =IF(OR(D26<0,D26=""),"",INDEX([1]!AlmDHornsHKetAl,MATCH(E26,[1]!AlmDHornsHKDesc,0),3)) ->  | J26: =IF(OR(D26="",E26=""),"",IF(G26>0,D26*G26,D26*F26)) ->  | K26: =+J26 ->  | O26: =+K26 -> 
B27: 2 | F27: =IF(OR(D27<0,D27=""),"",INDEX([1]!AlmDHornsHKetAl,MATCH(E27,[1]!AlmDHornsHKDesc,0),3)) -> 
B28: 3 | F28: =IF(OR(D28<0,D28=""),"",INDEX([1]!AlmDHornsHKetAl,MATCH(E28,[1]!AlmDHornsHKDesc,0),3)) -> 
B29: 4 | F29: =IF(OR(D29<0,D29=""),"",INDEX([1]!AlmDHornsHKetAl,MATCH(E29,[1]!AlmDHornsHKDesc,0),3)) -> 
B30: 5 | F30: =IF(OR(D30<0,D30=""),"",INDEX([1]!AlmDHornsHKetAl,MATCH(E30,[1]!AlmDHornsHKDesc,0),3)) -> 
B31: 6 | F31: =IF(OR(D31<0,D31=""),"",INDEX([1]!AlmDHornsHKetAl,MATCH(E31,[1]!AlmDHornsHKDesc,0),3)) -> 
B32: 7 | F32: =IF(OR(D32<0,D32=""),"",INDEX([1]!AlmDHornsHKetAl,MATCH(E32,[1]!AlmDHornsHKDesc,0),3)) -> 
B33: 8 | F33: =IF(OR(D33<0,D33=""),"",INDEX([1]!AlmDHornsHKetAl,MATCH(E33,[1]!AlmDHornsHKDesc,0),3)) -> 
B34: 9 | F34: =IF(OR(D34<0,D34=""),"",INDEX([1]!AlmDHornsHKetAl,MATCH(E34,[1]!AlmDHornsHKDesc,0),3)) -> 
B35: 10 | F35: =IF(OR(D35<0,D35=""),"",INDEX([1]!AlmDHornsHKetAl,MATCH(E35,[1]!AlmDHornsHKDesc,0),3)) -> 
B36: 11
E39: Devices
B40: 0 | E40: Horn-Strobes
B41: 1 | F41: =IF(OR(D41<0,D41=""),"",INDEX([1]!AlmDHornStrobeHKetAl,MATCH(E41,[1]!AlmDHornStrobeHKDesc,0),3)) ->  | J41: =IF(OR(D41="",E41=""),"",IF(G41>0,D41*G41,D41*F41)) ->  | K41: =+J41 ->  | O41: =+K41 -> 
B42: 2 | F42: =IF(OR(D42<0,D42=""),"",INDEX([1]!AlmDHornStrobeHKetAl,MATCH(E42,[1]!AlmDHornStrobeHKDesc,0),3)) -> 
B43: 3 | F43: =IF(OR(D43<0,D43=""),"",INDEX([1]!AlmDHornStrobeHKetAl,MATCH(E43,[1]!AlmDHornStrobeHKDesc,0),3)) -> 
B44: 4 | F44: =IF(OR(D44<0,D44=""),"",INDEX([1]!AlmDHornStrobeHKetAl,MATCH(E44,[1]!AlmDHornStrobeHKDesc,0),3)) -> 
B45: 5 | F45: =IF(OR(D45<0,D45=""),"",INDEX([1]!AlmDHornStrobeHKetAl,MATCH(E45,[1]!AlmDHornStrobeHKDesc,0),3)) -> 
B46: 6 | F46: =IF(OR(D46<0,D46=""),"",INDEX([1]!AlmDHornStrobeHKetAl,MATCH(E46,[1]!AlmDHornStrobeHKDesc,0),3)) -> 
B47: 7 | F47: =IF(OR(D47<0,D47=""),"",INDEX([1]!AlmDHornStrobeHKetAl,MATCH(E47,[1]!AlmDHornStrobeHKDesc,0),3)) -> 
B48: 8 | F48: =IF(OR(D48<0,D48=""),"",INDEX([1]!AlmDHornStrobeHKetAl,MATCH(E48,[1]!AlmDHornStrobeHKDesc,0),3)) -> 
B49: 9 | F49: =IF(OR(D49<0,D49=""),"",INDEX([1]!AlmDHornStrobeHKetAl,MATCH(E49,[1]!AlmDHornStrobeHKDesc,0),3)) -> 
B50: 10 | F50: =IF(OR(D50<0,D50=""),"",INDEX([1]!AlmDHornStrobeHKetAl,MATCH(E50,[1]!AlmDHornStrobeHKDesc,0),3)) -> 
B51: 11 | F51: =IF(OR(D51<0,D51=""),"",INDEX([1]!AlmDHornStrobeHKetAl,MATCH(E51,[1]!AlmDHornStrobeHKDesc,0),3)) -> 
B52: 12 | F52: =IF(OR(D52<0,D52=""),"",INDEX([1]!AlmDHornStrobeHKetAl,MATCH(E52,[1]!AlmDHornStrobeHKDesc,0),3)) -> 
B53: 13
E55: Devices
B56: 0 | E56: Power Supplies & Batteries
B57: =+B56+1 -> 1 | F57: =IF(OR(D57<0,D57=""),"",INDEX([1]!AlmDPowerVSetAl,MATCH(E57,[1]!AlmDPowerVSDesc,0),3)) ->  | J57: =IF(OR(D57="",E57=""),"",IF(G57>0,D57*G57,D57*F57)) ->  | K57: =+J57 ->  | O57: =+K57 -> 
B58: 2 | F58: =IF(OR(D58<0,D58=""),"",INDEX([1]!AlmDPowerVSetAl,MATCH(E58,[1]!AlmDPowerVSDesc,0),3)) -> 
B59: 3 | F59: =IF(OR(D59<0,D59=""),"",INDEX([1]!AlmDPowerVSetAl,MATCH(E59,[1]!AlmDPowerVSDesc,0),3)) -> 
B60: 4 | F60: =IF(OR(D60<0,D60=""),"",INDEX([1]!AlmDPowerVSetAl,MATCH(E60,[1]!AlmDPowerVSDesc,0),3)) -> 
B61: 5
E63: Devices
B64: 0 | E64: Pull Stations
B65: =+B64+1 -> 1 | F65: =IF(OR(D65=0,E65=""),"",VLOOKUP(E65,[1]!AlmPullStnEtAl,3)) ->  | J65: =IF(OR(D65="",E65=""),"",IF(G65>0,D65*G65,D65*F65)) ->  | K65: =+J65 ->  | O65: =+K65 -> 
B66: 2 | F66: =IF(OR(D66=0,E66=""),"",VLOOKUP(E66,[1]!AlmPullStnEtAl,3)) -> 
B67: 3
E69: Devices
B70: 0 | E70: Strobes only
B71: 1 | F71: =IF(OR(D71<0,D71=""),"",INDEX([1]!AlmDStrobeHKetAl,MATCH(E71,[1]!AlmDStrobeHKDesc,0),3)) ->  | J71: =IF(OR(D71="",E71=""),"",IF(G71>0,D71*G71,D71*F71)) ->  | K71: =+J71 ->  | O71: =+K71 -> 
B72: 2 | F72: =IF(OR(D72<0,D72=""),"",INDEX([1]!AlmDStrobeHKetAl,MATCH(E72,[1]!AlmDStrobeHKDesc,0),3)) -> 
B73: 3 | F73: =IF(OR(D73<0,D73=""),"",INDEX([1]!AlmDStrobeHKetAl,MATCH(E73,[1]!AlmDStrobeHKDesc,0),3)) -> 
B74: 4 | F74: =IF(OR(D74<0,D74=""),"",INDEX([1]!AlmDStrobeHKetAl,MATCH(E74,[1]!AlmDStrobeHKDesc,0),3)) -> 
B75: 5 | F75: =IF(OR(D75<0,D75=""),"",INDEX([1]!AlmDStrobeHKetAl,MATCH(E75,[1]!AlmDStrobeHKDesc,0),3)) -> 
B76: 6 | F76: =IF(OR(D76<0,D76=""),"",INDEX([1]!AlmDStrobeHKetAl,MATCH(E76,[1]!AlmDStrobeHKDesc,0),3)) -> 
B77: =+B76+1 -> 7 | F77: =IF(OR(D77<0,D77=""),"",INDEX([1]!AlmDStrobeHKetAl,MATCH(E77,[1]!AlmDStrobeHKDesc,0),3)) -> 
B78: 8 | F78: =IF(OR(D78<0,D78=""),"",INDEX([1]!AlmDStrobeHKetAl,MATCH(E78,[1]!AlmDStrobeHKDesc,0),3)) -> 
B79: 9 | F79: =IF(OR(D79<0,D79=""),"",INDEX([1]!AlmDStrobeHKetAl,MATCH(E79,[1]!AlmDStrobeHKDesc,0),3)) -> 
B80: 10 | F80: =IF(OR(D80<0,D80=""),"",INDEX([1]!AlmDStrobeHKetAl,MATCH(E80,[1]!AlmDStrobeHKDesc,0),3)) -> 
B81: 11
E85: Devices
E86: zMisc
B87: 1 | F87: =IF(OR(D87<0,D87=""),"",INDEX([1]!AlmDzMiscHKetAl,MATCH(E87,[1]!AlmDzMiscHKDesc,0),3)) ->  | J87: =IF(OR(D87="",E87=""),"",IF(G87>0,D87*G87,D87*F87)) ->  | K87: =+J87 ->  | O87: =+K87 -> 
B88: 2 | F88: =IF(OR(D88<0,D88=""),"",INDEX([1]!AlmDzMiscHKetAl,MATCH(E88,[1]!AlmDzMiscHKDesc,0),3)) -> 
B89: 3 | F89: =IF(OR(D89<0,D89=""),"",INDEX([1]!AlmDzMiscHKetAl,MATCH(E89,[1]!AlmDzMiscHKDesc,0),3)) -> 
B90: 4 | F90: =IF(OR(D90<0,D90=""),"",INDEX([1]!AlmDzMiscHKetAl,MATCH(E90,[1]!AlmDzMiscHKDesc,0),3)) -> 
B91: 5 | F91: =IF(OR(D91<0,D91=""),"",INDEX([1]!AlmDzMiscHKetAl,MATCH(E91,[1]!AlmDzMiscHKDesc,0),3)) -> 
B92: 6
E95: Devices | J95: =IF(D95>0,IF(G95>0,D95*G95,D95*F95),"") ->  | K95: =+J95 ->  | O95: =+K95 -> 
B96: 0 | E96: zOther
B97: =+B96+1 -> 1 | F97: =IF(OR(D97<0,D97=""),"",INDEX([1]!AlmDOtherHKetAl,MATCH(E97,[1]!AlmDOtherHKDesc,0),3)) ->  | J97: =IF(OR(D97="",E97=""),"",IF(G97>0,D97*G97,D97*F97)) ->  | K97: =+J97 ->  | O97: =+K97 -> 
B98: 2 | F98: =IF(OR(D98<0,D98=""),"",INDEX([1]!AlmDOtherHKetAl,MATCH(E98,[1]!AlmDOtherHKDesc,0),3)) -> 
B99: 3 | F99: =IF(OR(D99<0,D99=""),"",INDEX([1]!AlmDOtherHKetAl,MATCH(E99,[1]!AlmDOtherHKDesc,0),3)) -> 
B100: 4 | F100: =IF(OR(D100<0,D100=""),"",INDEX([1]!AlmDOtherHKetAl,MATCH(E100,[1]!AlmDOtherHKDesc,0),3)) -> 
B101: 5 | F101: =IF(OR(D101<0,D101=""),"",INDEX([1]!AlmDOtherHKetAl,MATCH(E101,[1]!AlmDOtherHKDesc,0),3)) -> 
B102: 6 | F102: =IF(OR(D102<0,D102=""),"",INDEX([1]!AlmDOtherHKetAl,MATCH(E102,[1]!AlmDOtherHKDesc,0),3)) -> 
B103: 7 | F103: =IF(OR(D103<0,D103=""),"",INDEX([1]!AlmDOtherHKetAl,MATCH(E103,[1]!AlmDOtherHKDesc,0),3)) -> 
B104: 8 | F104: =IF(OR(D104<0,D104=""),"",INDEX([1]!AlmDOtherHKetAl,MATCH(E104,[1]!AlmDOtherHKDesc,0),3)) -> 
B105: 9 | F105: =IF(OR(D105<0,D105=""),"",INDEX([1]!AlmDOtherHKetAl,MATCH(E105,[1]!AlmDOtherHKDesc,0),3)) -> 
B106: 10 | F106: =IF(OR(D106<0,D106=""),"",INDEX([1]!AlmDOtherHKetAl,MATCH(E106,[1]!AlmDOtherHKDesc,0),3)) -> 
B107: 11 | F107: =IF(OR(D107<0,D107=""),"",INDEX([1]!AlmDOtherHKetAl,MATCH(E107,[1]!AlmDOtherHKDesc,0),3)) -> 
B108: 12 | F108: =IF(OR(D108<0,D108=""),"",INDEX([1]!AlmDOtherHKetAl,MATCH(E108,[1]!AlmDOtherHKDesc,0),3)) -> 
B109: 13
J110: =IF(D110>0,IF(G110>0,D110*G110,D110*F110),"") -> 
E111: Devices | J111: =IF(D111>0,IF(G111>0,D111*G111,D111*F111),"") -> 
J112: =IF(OR(D112="",E112=""),"",IF(G112>0,D112*G112,D112*F112)) -> 
E119: Alarm Devices etc | O119: =SUM(O9:O118) -> 0
E123: 01 Electrician KP Electric Sandy | F123: =IF(OR(D123<0,E123=""),"",VLOOKUP(E123,[1]!subsEtAl,3)) -> 82.5
E124: Digital Alarm Communicator Transmitter (DACT)

Sheet x AWP
D1: To Table of Contents
D3: Rev: 2017-01-07 14:24
E4: IMPLEMENTED | G4: IMPLEMENTED | O4: IMPLEMENTED
E5: =MID(CELL("filename",A1),FIND("]",CELL("filename",A1))+1,255) -> x AWP
E6: Click in a cell below to change a line item | N6: 1 | O6: =+UTsalesTax -> 0.071
E7: from the Drop-down Pick-List | G7: =+G25 -> 0 | O7: =+O25 -> 0
E8: =CHAR(242) -> ò | G8: Drop off | I8: How many
D9: # | E9: AWP | F9: Rate | G9: PickUp | H9: Period | I9: Periods | J9: Extension | K9: Totals | O9: Final
B10: 1 | F10: =IF(ISBLANK(E10),"<-Choose",IF(OR(D10<1),"<-How Many?",IF(H10="Day",VLOOKUP(E10,[1]!equipRent,2),(IF(H10="Week",VLOOKUP(E10,[1]!equipRent,3),(VLOOKUP(E10,[1]!equipRent,4))))))) -> <-Choose | G10: =IF(D10>0,VLOOKUP(E10,[1]!equipRent,5,)*D10,0) -> 0 | H10: Month | I10: 2 | J10: =IF(D10>0,(IF(I10>0,D10*I10*F10,"")),"") ->  | K10: =+J10 ->  | O10: =+K10 -> 
B11: =+B10+1 -> 2 | F11: =IF(ISBLANK(E11),"<-Choose",IF(OR(D11<1),"<-How Many?",IF(H11="Day",VLOOKUP(E11,[1]!equipRent,2),(IF(H11="Week",VLOOKUP(E11,[1]!equipRent,3),(VLOOKUP(E11,[1]!equipRent,4))))))) -> <-Choose | G11: =IF(D11>0,VLOOKUP(E11,[1]!equipRent,5,)*D11,0) -> 0 | H11: Month
B12: 3 | F12: =IF(ISBLANK(E12),"<-Choose",IF(OR(D12<1),"<-How Many?",IF(H12="Day",VLOOKUP(E12,[1]!equipRent,2),(IF(H12="Week",VLOOKUP(E12,[1]!equipRent,3),(VLOOKUP(E12,[1]!equipRent,4))))))) -> <-Choose | G12: =IF(D12>0,VLOOKUP(E12,[1]!equipRent,5,)*D12,0) -> 0 | H12: Month
B13: 4 | F13: =IF(ISBLANK(E13),"<-Choose",IF(OR(D13<1),"<-How Many?",IF(H13="Day",VLOOKUP(E13,[1]!equipRent,2),(IF(H13="Week",VLOOKUP(E13,[1]!equipRent,3),(VLOOKUP(E13,[1]!equipRent,4))))))) -> <-Choose | G13: =IF(D13>0,VLOOKUP(E13,[1]!equipRent,5,)*D13,0) -> 0 | H13: Month
B14: 5 | F14: =IF(ISBLANK(E14),"<-Choose",IF(OR(D14<1),"<-How Many?",IF(H14="Day",VLOOKUP(E14,[1]!equipRent,2),(IF(H14="Week",VLOOKUP(E14,[1]!equipRent,3),(VLOOKUP(E14,[1]!equipRent,4))))))) -> <-Choose | G14: =IF(D14>0,VLOOKUP(E14,[1]!equipRent,5,)*D14,0) -> 0 | H14: Month
B15: 6 | F15: =IF(ISBLANK(E15),"<-Choose",IF(OR(D15<1),"<-How Many?",IF(H15="Day",VLOOKUP(E15,[1]!equipRent,2),(IF(H15="Week",VLOOKUP(E15,[1]!equipRent,3),(VLOOKUP(E15,[1]!equipRent,4))))))) -> <-Choose | G15: =IF(D15>0,VLOOKUP(E15,[1]!equipRent,5,)*D15,0) -> 0 | H15: Month
B16: 7 | F16: =IF(ISBLANK(E16),"<-Choose",IF(OR(D16<1),"<-How Many?",IF(H16="Day",VLOOKUP(E16,[1]!equipRent,2),(IF(H16="Week",VLOOKUP(E16,[1]!equipRent,3),(VLOOKUP(E16,[1]!equipRent,4))))))) -> <-Choose | G16: =IF(D16>0,VLOOKUP(E16,[1]!equipRent,5,)*D16,0) -> 0 | H16: Month
B17: 8 | F17: =IF(ISBLANK(E17),"<-Choose",IF(OR(D17<1),"<-How Many?",IF(H17="Day",VLOOKUP(E17,[1]!equipRent,2),(IF(H17="Week",VLOOKUP(E17,[1]!equipRent,3),(VLOOKUP(E17,[1]!equipRent,4))))))) -> <-Choose | G17: =IF(D17>0,VLOOKUP(E17,[1]!equipRent,5,)*D17,0) -> 0 | H17: Month
B18: 9 | F18: =IF(ISBLANK(E18),"<-Choose",IF(OR(D18<1),"<-How Many?",IF(H18="Day",VLOOKUP(E18,[1]!equipRent,2),(IF(H18="Week",VLOOKUP(E18,[1]!equipRent,3),(VLOOKUP(E18,[1]!equipRent,4))))))) -> <-Choose | G18: =IF(D18>0,VLOOKUP(E18,[1]!equipRent,5,)*D18,0) -> 0 | H18: Month
B19: 10 | F19: =IF(ISBLANK(E19),"<-Choose",IF(OR(D19<1),"<-How Many?",IF(H19="Day",VLOOKUP(E19,[1]!equipRent,2),(IF(H19="Week",VLOOKUP(E19,[1]!equipRent,3),(VLOOKUP(E19,[1]!equipRent,4))))))) -> <-Choose | G19: =IF(D19>0,VLOOKUP(E19,[1]!equipRent,5,)*D19,0) -> 0 | H19: Month
B20: 11 | F20: =IF(ISBLANK(E20),"<-Choose",IF(OR(D20<1),"<-How Many?",IF(H20="Day",VLOOKUP(E20,[1]!equipRent,2),(IF(H20="Week",VLOOKUP(E20,[1]!equipRent,3),(VLOOKUP(E20,[1]!equipRent,4))))))) -> <-Choose | G20: =IF(D20>0,VLOOKUP(E20,[1]!equipRent,5,)*D20,0) -> 0 | H20: Month
B21: 12 | F21: =IF(ISBLANK(E21),"<-Choose",IF(OR(D21<1),"<-How Many?",IF(H21="Day",VLOOKUP(E21,[1]!equipRent,2),(IF(H21="Week",VLOOKUP(E21,[1]!equipRent,3),(VLOOKUP(E21,[1]!equipRent,4))))))) -> <-Choose | G21: =IF(D21>0,VLOOKUP(E21,[1]!equipRent,5,)*D21,0) -> 0 | H21: Month
B22: 13 | F22: =IF(ISBLANK(E22),"<-Choose",IF(OR(D22<1),"<-How Many?",IF(H22="Day",VLOOKUP(E22,[1]!equipRent,2),(IF(H22="Week",VLOOKUP(E22,[1]!equipRent,3),(VLOOKUP(E22,[1]!equipRent,4))))))) -> <-Choose | G22: =IF(D22>0,VLOOKUP(E22,[1]!equipRent,5,)*D22,0) -> 0 | H22: Month
B23: 14 | F23: =IF(ISBLANK(E23),"<-Choose",IF(OR(D23<1),"<-How Many?",IF(H23="Day",VLOOKUP(E23,[1]!equipRent,2),(IF(H23="Week",VLOOKUP(E23,[1]!equipRent,3),(VLOOKUP(E23,[1]!equipRent,4))))))) -> <-Choose | G23: =IF(D23>0,VLOOKUP(E23,[1]!equipRent,5,)*D23,0) -> 0 | H23: Month | K23: =+J23 ->  | O23: =+K23 -> 
G24: )
D25: =SUM(D9:D24) -> 0 | E25: =+E9 -> AWP | G25: =SUM(G9:G24) -> 0 | O25: =IF(N6>0,SUM(O9:O24)+(SUM(O9:O24))*O6,SUM(O9:O24)) -> 0

Sheet y Misc
D1: To Table of Contents
D3: Rev: 2016-10-23 17:00
D4: To Table of Contents | F4: to Wet Suppression
E5: =MID(CELL("filename",A1),FIND("]",CELL("filename",A1))+1,255) -> y Misc
E6: Click in a cell below to change a line item | N6: 1 | O6: =+UTsalesTax -> 0.071
E7: from the list | O7: =+O63 -> 514.03716
E8: =CHAR(242) -> ò
B9: 0 | D9: # | E9: Miscellaneous | F9: Either | G9: Or | H9: Unit | J9: Extension | K9: Totals | O9: Final
B10: 1 | D10: 10 | E10: Tape Teflon 0.75" x 520" 80 rolls to a ctn. Per roll is | F10: =IF(OR(D10<0,E10=""),"",VLOOKUP(E10,[1]!wetMiscPartsEtAl,3)) -> 1 | J10: =IF(OR(D10="",E10=""),"",IF(G10>0,D10*G10,D10*F10)) -> 10 | K10: =+J10 -> 10 | O10: =+K10 -> 10
B11: =+B10+1 -> 2 | D11: 4 | E11: Gloves per pair Black Nitr Foam Coat | F11: =IF(OR(D11<0,E11=""),"",VLOOKUP(E11,[1]!wetMiscPartsEtAl,3)) -> 4.25 | J11: 17 | K11: 17 | O11: 17
B12: 3 | D12: 4 | E12: Terry Cloth (3 towels) | F12: =IF(OR(D12<0,E12=""),"",VLOOKUP(E12,[1]!wetMiscPartsEtAl,3)) -> 5 | J12: 20 | K12: 20 | O12: 20
B13: 4 | D13: 2 | E13: Porta Band blades Milwaukee each | F13: =IF(OR(D13<0,E13=""),"",VLOOKUP(E13,[1]!wetMiscPartsEtAl,3)) -> 9 | J13: 18 | K13: 18 | O13: 18
B14: 5 | D14: 2 | E14: WD-40 8oz | F14: =IF(OR(D14<0,E14=""),"",VLOOKUP(E14,[1]!wetMiscPartsEtAl,3)) -> 7 | J14: 14 | K14: 14 | O14: 14
B15: 6 | D15: 1 | E15: Lithium Ion battery Millwaukee | F15: =IF(OR(D15<0,E15=""),"",VLOOKUP(E15,[1]!wetMiscPartsEtAl,3)) -> 24 | J15: 24 | K15: 24 | O15: 24
B16: 7 | D16: 1 | E16: Pipe Dope | F16: =IF(OR(D16<0,E16=""),"",VLOOKUP(E16,[1]!wetMiscPartsEtAl,3)) -> 47.66 | J16: 47.66 | K16: 47.66 | O16: 47.66
B17: 8 | D17: 1 | E17: Plastic sheeting per Roll | F17: =IF(OR(D17<0,E17=""),"",VLOOKUP(E17,[1]!wetMiscPartsEtAl,3)) -> 20 | J17: 20 | K17: 20 | O17: 20
B18: 9 | D18: 1 | E18: Rigid Die Set 1 to 2 " HS (here I put 1/4 of our cost) | F18: =IF(OR(D18<0,E18=""),"",VLOOKUP(E18,[1]!wetMiscPartsEtAl,3)) -> 42.25 | J18: 42.25 | K18: 42.25 | O18: 42.25
B19: 10 | D19: 1 | E19: Thread Seal Blue 1 pint | F19: =IF(OR(D19<0,E19=""),"",VLOOKUP(E19,[1]!wetMiscPartsEtAl,3)) -> 5 | J19: 5 | K19: 5 | O19: 5
B20: 11 | D20: 1 | E20: Vic Lube $11 per Quart + Brush $2 | F20: =IF(OR(D20<0,E20=""),"",VLOOKUP(E20,[1]!wetMiscPartsEtAl,3)) -> 13 | J20: 13 | K20: 13 | O20: 13
B21: 12 | D21: 1 | E21: Wrench Impact Milwaukee 0.5" (here I put 1/4 of our cost) | F21: =IF(OR(D21<0,E21=""),"",VLOOKUP(E21,[1]!wetMiscPartsEtAl,3)) -> 40 | J21: 40 | K21: 40 | O21: 40
B22: 13 | D22: 1 | E22: Wrench Pipe Rigid #31100 Alum 18" $62 (here I put 1/4 of our cost) | F22: =IF(OR(D22<0,E22=""),"",VLOOKUP(E22,[1]!wetMiscPartsEtAl,3)) -> 15.5 | J22: 15.5 | K22: 15.5 | O22: 15.5
B23: 14 | D23: 1 | E23: All Thread 3/8 Black 10ft length 0.26 per ft | F23: =IF(OR(D23<0,E23=""),"",VLOOKUP(E23,[1]!wetMiscPartsEtAl,3)) -> 6.2 | J23: 6.2 | K23: 6.2 | O23: 6.2
B24: 15 | D24: 1 | E24: Chop Saw DeWalt 14" HD 15 Amp $215 | F24: =IF(OR(D24<0,E24=""),"",VLOOKUP(E24,[1]!wetMiscPartsEtAl,3)) -> 43 | G24: 5 | J24: 5 | K24: 5 | O24: 5
B25: 16 | D25: 1 | E25: Drill Bits (for Wood, Hammer drill etc.) | F25: =IF(OR(D25<0,E25=""),"",VLOOKUP(E25,[1]!wetMiscPartsEtAl,3)) -> 25 | J25: 25 | K25: 25 | O25: 25
B26: 17 | D26: 1 | E26: Drill portable. Milwaukee 0.5" chuck (here I put 1/4 of our cost) | F26: =IF(OR(D26<0,E26=""),"",VLOOKUP(E26,[1]!wetMiscPartsEtAl,3)) -> 42.5 | J26: 42.5 | K26: 42.5 | O26: 42.5
B27: 18 | D27: 1 | E27: Fire Caulk HD Supply 12 in a case, price ea tube is | F27: =IF(OR(D27<0,E27=""),"",VLOOKUP(E27,[1]!wetMiscPartsEtAl,3)) -> 12 | J27: 12 | K27: 12 | O27: 12
B28: 19 | D28: 1 | E28: Hole Saw 1.50" | F28: =IF(OR(D28<0,E28=""),"",VLOOKUP(E28,[1]!wetMiscPartsEtAl,3)) -> 13 | J28: 13 | K28: 13 | O28: 13
B29: 20 | D29: 1 | E29: Hole Saw 3.00" | F29: =IF(OR(D29<0,E29=""),"",VLOOKUP(E29,[1]!wetMiscPartsEtAl,3)) -> 17 | J29: 17 | K29: 17 | O29: 17
B30: 21 | D30: 1 | E30: Hole Saw 7/16" ARBOR QC | F30: =IF(OR(D30<0,E30=""),"",VLOOKUP(E30,[1]!wetMiscPartsEtAl,3)) -> 19 | J30: 19 | K30: 19 | O30: 19
B31: 22 | D31: 1 | E31: Magnetic bit holder 3" | F31: =IF(OR(D31<0,E31=""),"",VLOOKUP(E31,[1]!wetMiscPartsEtAl,3)) -> 6.85 | J31: 6.85 | K31: 6.85 | O31: 6.85
B32: 23 | D32: 1 | E32: Wrench Pipe Rigid #31105 Alum 24" $140 (here I put 1/4 of our cost) | F32: =IF(OR(D32<0,E32=""),"",VLOOKUP(E32,[1]!wetMiscPartsEtAl,3)) -> 35 | G32: 5 | J32: 5 | K32: 5 | O32: 5
B33: 24 | D33: 1 | E33: Riser Sign "Fire Sprinkler Riser Room" 9" x 15" | F33: =IF(OR(D33<0,E33=""),"",VLOOKUP(E33,[1]!wetMiscPartsEtAl,3)) -> 37 | J33: 37 | K33: 37 | O33: 37
B34: 25 | D34: 1 | E34: Sammy Xpress Install Tool | F34: =IF(OR(D34<0,E34=""),"",VLOOKUP(E34,[1]!wetMiscPartsEtAl,3)) -> 30 | G34: 5 | J34: 5 | K34: 5 | O34: 5
B35: 26 | E35: Electrical Breaker B120 S01- SP20A | F35: =IF(OR(D35<0,E35=""),"",VLOOKUP(E35,[1]!wetMiscPartsEtAl,3)) -> 30
B36: 27 | E36: Electrical Breaker Shunt-Trip B12000 S01- SP20A Siemans | F36: =IF(OR(D36<0,E36=""),"",VLOOKUP(E36,[1]!wetMiscPartsEtAl,3)) -> 30
B37: 28 | E37: Electrical Breaker Shunt-Trip B21500 S01- DP15A Siemans | F37: =IF(OR(D37<0,E37=""),"",VLOOKUP(E37,[1]!wetMiscPartsEtAl,3)) -> 75
B38: 29 | E38: FeDex Binding per one NFPA-25 Red cover | F38: =IF(OR(D38<0,E38=""),"",VLOOKUP(E38,[1]!wetMiscPartsEtAl,3)) -> 5.5
B39: 30 | E39: Fire Caulk Ferguson 12 in a case, price ea tube is | F39: =IF(OR(D39<0,E39=""),"",VLOOKUP(E39,[1]!wetMiscPartsEtAl,3)) -> 12
B40: 31 | E40: Glow Rods 4-per pack (Fish sticks) | F40: =IF(OR(D40<0,E40=""),"",VLOOKUP(E40,[1]!wetMiscPartsEtAl,3)) -> 4.25
B41: 32 | E41: Hole Saw 1.75" | F41: =IF(OR(D41<0,E41=""),"",VLOOKUP(E41,[1]!wetMiscPartsEtAl,3)) -> 13.55
B42: 33 | E42: Hole Saw 2.00" | F42: =IF(OR(D42<0,E42=""),"",VLOOKUP(E42,[1]!wetMiscPartsEtAl,3)) -> 15.59
B43: 34 | E43: Hole Saw 2.50" | F43: =IF(OR(D43<0,E43=""),"",VLOOKUP(E43,[1]!wetMiscPartsEtAl,3)) -> 16.5
B44: 35 | E44: Hole Saw 4.00" | F44: =IF(OR(D44<0,E44=""),"",VLOOKUP(E44,[1]!wetMiscPartsEtAl,3)) -> 26
B45: 36 | E45: Jim-Caps with Hose Clamp | F45: =IF(OR(D45<0,E45=""),"",VLOOKUP(E45,[1]!wetMiscPartsEtAl,3)) -> 3
B46: 37 | E46: Laser Measure 135ft $100 | F46: =IF(OR(D46<0,E46=""),"",VLOOKUP(E46,[1]!wetMiscPartsEtAl,3)) -> 100
B47: 38 | E47: Level Torpedo | F47: =IF(OR(D47<0,E47=""),"",VLOOKUP(E47,[1]!wetMiscPartsEtAl,3)) -> 32
B48: 39 | E48: Marker VLV Action Paint Red/Whit/ or Yell each | F48: =IF(OR(D48<0,E48=""),"",VLOOKUP(E48,[1]!wetMiscPartsEtAl,3)) -> 4.25
B49: 40 | E49: Pipe Sleeve Blue/Cold IPS 200ft box | F49: =IF(OR(D49<0,E49=""),"",VLOOKUP(E49,[1]!wetMiscPartsEtAl,3)) -> 47.66
B50: 41 | E50: Pipe Wrap Mtn States | F50: =IF(OR(D50<0,E50=""),"",VLOOKUP(E50,[1]!wetMiscPartsEtAl,3)) -> 165
B51: 42 | E51: Punch OC 2 Center & Level | F51: =IF(OR(D51<0,E51=""),"",VLOOKUP(E51,[1]!wetMiscPartsEtAl,3)) -> 69
B52: 43 | E52: Rigid Pipe Extractor .75" Model 84 35615 | F52: =IF(OR(D52<0,E52=""),"",VLOOKUP(E52,[1]!wetMiscPartsEtAl,3)) -> 26
B53: 44 | E53: Rigid Pipe Extractor 1.5" Model 87 35630 | F53: =IF(OR(D53<0,E53=""),"",VLOOKUP(E53,[1]!wetMiscPartsEtAl,3)) -> 32
B54: 45 | E54: Rigid Pipe Extractor SET 1.5" Model 87 35630 | F54: =IF(OR(D54<0,E54=""),"",VLOOKUP(E54,[1]!wetMiscPartsEtAl,3)) -> 0
B55: 46 | E55: Tape Pipe Grinnell PT 1000 | F55: =IF(OR(D55<0,E55=""),"",VLOOKUP(E55,[1]!wetMiscPartsEtAl,3)) -> 32 | J55: =IF(OR(D55="",E55=""),"",IF(G55>0,D55*G55,D55*F55)) ->  | K55: =+J55 ->  | O55: =+K55 -> 
B56: 47 | E56: Toggles 1/2-13 $97.36 per 100 | F56: =IF(OR(D56<0,E56=""),"",VLOOKUP(E56,[1]!wetMiscPartsEtAl,3)) -> 1
B57: 48 | E57: Trubolt (RedHead) Wedge Anchr 3/8x2-3/4 CS WA38234 $106 per 100 | F57: =IF(OR(D57<0,E57=""),"",VLOOKUP(E57,[1]!wetMiscPartsEtAl,3)) -> 1.05287
B58: 49 | E58: WD-40 8oz | F58: =IF(OR(D58<0,E58=""),"",VLOOKUP(E58,[1]!wetMiscPartsEtAl,3)) -> 7
B59: 50 | E59: zSpare | F59: =IF(OR(D59<0,E59=""),"",VLOOKUP(E59,[1]!wetMiscPartsEtAl,3)) -> 35
B60: 51 | J60: =IF(OR(D60="",E60=""),"",IF(G60>0,D60*G60,D60*F60)) ->  | K60: =+J60 ->  | O60: =+K60 -> 
B61: 52
D63: =+SUM(D9:D62) -> 42 | E63: Misc Parts etc | O63: =IF(N6>0,SUM(O9:O62)+(SUM(O9:O62))*O6,SUM(O9:O62)) -> 514.03716

Sheet zCalcs
C1: To Table of Contents | E1: =MID(CELL("filename",A1),FIND("]",CELL("filename",A1))+1,255) -> zCalcs | G1: Rev: 2016-11-21 10:00
D4: =IF(OR(ISBLANK(D8),ISBLANK(E8)),"",INDEX('01 Parts List WKS dBase.xlsm'!weldletsEtAl,MATCH(E8,'01 Parts List WKS dBase.xlsm'!weldcoupleList,0),3))
B5: CONSTANTS
B6: Tax | C6: 0.071 | E6: <--Change here to affect all sheets
C8: Fire Watch Calcs
C9: Spread | D9: Start | E9: End | F9: Hours
C10: Fri-Sat | D10: 16:30:00 | E10: 16:00:00 | F10: =24*IF(D10>E10,E10+1-D10,E10-D10) -> 23.5
C11: Sat-Sun | D11: 16:00:00 | E11: 15:30:00 | F11: =24*IF(D11>E11,E11+1-D11,E11-D11) -> 23.5
C12: Sun-Mon | D12: 15:30:00 | E12: 08:00:00 | F12: =24*IF(D12>E12,E12+1-D12,E12-D12) -> 16.5
F13: =SUM(F10:F12) -> 63.5 | G13: WeekEnd Hours
C14: Daily | D14: 16:30:00 | E14: 08:00:00 | F14: =24*IF(D14>E14,E14+1-D14,E14-D14) -> 15.5
L17: =+"Rev: "& "2017-04-29" -> Rev: 2017-04-29
M18: used by Alarms & Wet Sheets Labour Drop Downs E26 etc
L19: Labour Rates
M20: T1 | N20: T2 | O20: Fitter I | P20: Fitter II | Q20: Fitter III | R20: Lead I | S20: Lead II | T20: Lead III | U20: Insp | V20: Mgm | W20: Corp | X20: NICET
M21: 1 | N21: 2 | O21: 3 | R21: 4 | U21: 5 | V21: 6 | W21: 7 | X21: 8
M22: 18 | O22: 20 | R22: 25 | U22: 30 | V22: 35 | W22: 45 | X22: 150
M23: 18 | N23: 20 | O23: =22-4 -> 18 | P23: 23 | Q23: 24 | R23: 25 | S23: 27 | T23: 29 | U23: 30 | V23: 35 | W23: 70 | X23: 150
G27: =IF(C71>0,IF(F71>0,C71*F71,C71*E71),"")
A29: Correct test for blank
A30: 0 | B30: =IF(ISBLANK(A30),"blank",IF(A30=0,"zero","other")) -> zero
B31: =IF(ISBLANK(A31),"blank",IF(A31=0,"zero","other")) -> blank
B32: =IF(ISBLANK(A14),"blank",IF(A14=0,"zero","other"))
F33: =IF(ISBLANK(E17),"",IF(OR(E17=0),"","Calc"))
E34: 1 | F34: =IF(ISBLANK(E34),"<- How Many?",IF(OR(G34=0),"Choose ->","by")) -> by | G34: Level Torpedo
D36: Testing for both empty/blank at the same time...
D37: =AND(Table1[@col1]="",Table1[@col]="")
D39: Testing for both empty at the same time...
D40: =AND(ISBLANK(Table1[@col1]),ISBLANK(Table1[@col]))
B42: 2 | C42: 2 | D42: Test one cell for: Blank, then for Zero, then for ""
D43: =IF(ISBLANK(B43),"",IF(OR(B43=0),"",IF(OR(B43=""),"",B42*C42))) ->  | E43: =IF(ISBLANK(J75),"",IF(OR(J75=0),"",IF(OR(J75=""),"",B28*C28)))
G44: Need to add test for EMPTY
D46: =AND((B46=""),(C46="")) -> TRUE | E46: =AND((B32=""),(C32="")) | H46: Either or Both
D47: =AND(ISBLANK(B47),ISBLANK(C47)) -> TRUE | E47: =AND(ISBLANK(B31),ISBLANK(C31)) | H47: Either or Both
J48: =IF(C36=TRUE,(IF(F36>0,F36,E36)),"")
E49: Fixed | F49: Variant | J49: =IF(ISNUMBER(I50),(IF(F50>0,F50,E50)),"") -> 
C50: TRUE | E50: try | I50: =IF(ISNUMBER(E50),678,"") ->  | J50: =(IF(F50>0,F50,E50)) -> try
G52: one or the other but NOT both.= XOR or EOR or eXclusive OR
B55: 101 | D55: =IF(AND(B55>100, B56>100, B57>100),"Over Budget","Acceptable") -> Acceptable
B56: 100
B57: 100 | D57: =IF(OR(B55>100, B56>100, B57>100),"Over Budget","Acceptable") -> Over Budget
D60: If switch is on
E61: Test Freight Bucket
E63: add Knox Freight
C65: 1 | E65: 50 | F65: 12 | J65: =IF(C65>0,IF(F65>0,C65*F65,C65*E65),0) -> 12
A67: Pipe Weights
C69: =IF(E10="Black-S40",D10*$S$5,IF(E10="DynaFlow-S10",$S$6*D10,IF(E10="CPVC",$S$7*D10,IF(E10="Galvanised",D10*$S$8,""))))
G71: IF(E10="DynaThread",D10*$S$8,"")
A73: MarkUp & Percentages
C74: CP | D74: 2400
C75: SP | D75: 2700
C76: percentage gain is: | D76: =+((D75-D74)/2400) -> 0.125
C78: i.e.: | D78: (SP-CP) | E78: x 100
D79: CP

Sheet zColumns
D1: To Table of Contents
E2: =MID(CELL("filename",A2),FIND("]",CELL("filename",A2))+1,255) -> zColumns
D3: Rev: 2016-10-23 17:00
C10: Black Bar | D10: # | E10: Description | G10: Or
A11: FACP
E12: Alarm Parts | F12: Either | G12: Or | H12: Unit | J12: Extension | K12: Totals | O12: Final
A13: HEADs
D14: =+'2 Wet'!C101 -> 0 | E14: Description Drop-down Pick-List | F14: Either | G14: Or | H14: Unit | J14: Extension | K14: Totals | O14: Final
A16: PIPE
D17: Hover | E17: Description Drop-down Pick-List | F17: Diam | G17: Unit Price | H17: Unit | I17: Sticks | J17: Extension | K17: Totals | O17: Final | Q17: Weight
A20: ELS
D21: # | E21: Description Drop-down Pick-List | F21: Type | G21: Unit Price | H21: Unit | J21: Extension | K21: Totals | O21: Final
A23: Mech-T
D24: # | E24: Description Drop-down Pick-List | F24: Either | G24: Or | H24: Unit | J24: Extension | K24: Totals | O24: Final
A26: WeldLets
D27: # | E27: Description Drop-down Pick-List | F27: Either | G27: Or | J27: Extension | K27: Totals | O27: Final
A29: Valves
D30: # | E30: Description Drop-down Pick-List | F30: Either | G30: Or | H30: Unit | J30: Extension | K30: Totals | O30: Final
A32: Hangars
D33: # | E33: Description Drop-down Pick-List | F33: Either | G33: Or | H33: Unit | J33: Extension | K33: Totals | O33: Final
A35: AWP
D36: # | E36: Description Drop-down Pick-List | F36: Rate | G36: PickUp | H36: Period | I36: Periods | J36: Extension | K36: Totals | O36: Final
A38: Misc
D39: # | E39: Miscellaneous | F39: Either | G39: Or | H39: Unit | J39: Extension | K39: Totals | O39: Final
B41: Alm EST
E42: Alarm Parts | F42: Either | G42: Or | H42: Unit | J42: Extension | K42: Totals | O42: Final
B46: Alm SK
E47: Alarm Parts SK | F47: Either | G47: Or | H47: Unit | J47: Extension | K47: Totals | O47: Final

Sheet zWageSheet
